Body Name,Body,Service Division Label,Service Division Code,Organisational Unit,Expenditure Category,Expenditure Code,CIPFA detailed expediture type,CIPFA detailed expediture code,Narrative,Date,Transaction number,Net Amount,Capital and Revenue,Supplier Name,Supplier ID
Chorley Borough Council,http://statistics.data.gov.uk/id/local-authority/30UE,Corporate Management,1008,Health Environment & Neighbourhoods,Taxi Testing & Vehicle Safety Report,40234,Services,5027,MOT,09/03/2016,110621,274.25,Revenue,A & A Auto Care Limited,19361
Chorley Borough Council,http://statistics.data.gov.uk/id/local-authority/30UE,Corporate Management,1008,Health Environment & Neighbourhoods,Taxi Testing & Vehicle Safety Report,40234,Services,5027,taxi test,09/03/2016,110621,51.25,Revenue,A & A Auto Care Limited,19361
Chorley Borough Council,http://statistics.data.gov.uk/id/local-authority/30UE,Democratic Represent and  Mgnt,1007,Streetscene & Leisure Contracts,External Contractor - Trust or Charity,50008,Private Contractors,5042,Active Nation Monthly Management Fee For the Period April 2015 - March 2016. Monthly Fee to be invoiced each month.,09/03/2016,110555,"31,211.54",Revenue,Active Nation UK Ltd,17144
Chorley Borough Council,http://statistics.data.gov.uk/id/local-authority/30UE,Central Support Services,1009,Health Environment & Neighbourhoods,Rent/Hire Of Premises,20017,Premises Rents,5007,"Hire of Clayton Green Leisure Centre on Friday nights March 4th, 11th, 18th for Doorstep Sports Club 7-9pm",16/03/2016,110660,406.50,Revenue,Active Nation UK Ltd,17144
Chorley Borough Council,http://statistics.data.gov.uk/id/local-authority/30UE,Central Support Services,1009,Health Environment & Neighbourhoods,Rent/Hire Of Premises,20017,Premises Rents,5007,Hire of Clayton Green Sports Centre on Friday nights 7-9pm for DSC during February (4  sessions),02/03/2016,109802,542.00,Revenue,Active Nation UK Ltd,17144
Chorley Borough Council,http://statistics.data.gov.uk/id/local-authority/30UE,Central Support Services,1009,Health Environment & Neighbourhoods,Children's Activities,40188,Miscellaneous Expenses,5034,Feb HT dance sessions delivery,18/03/2016,110893,30.00,Revenue,Adele Bannister,19442
Chorley Borough Council,http://statistics.data.gov.uk/id/local-authority/30UE,Central Support Services,1009,Health Environment & Neighbourhoods,Miscellaneous Expenses,40200,Miscellaneous Expenses,5034,Delivery of Dance for Club 1 and Girls DSC sessions,18/03/2016,110893,80.00,Revenue,Adele Bannister,19442
Chorley Borough Council,http://statistics.data.gov.uk/id/local-authority/30UE,Central Support Services,1009,Health Environment & Neighbourhoods,Sports Development Initiatives,40186,Miscellaneous Expenses,5034,Delivery of Dance session at Croston Trinity & St Michaels 23/02/16,18/03/2016,110893,40.00,Revenue,Adele Bannister,19442
Chorley Borough Council,http://statistics.data.gov.uk/id/local-authority/30UE,Central Support Services,1009,Health Environment & Neighbourhoods,Sports Development Initiatives,40186,Miscellaneous Expenses,5034,Delivery of dance sessions at Clayton le Woods Primary,18/03/2016,110893,260.00,Revenue,Adele Bannister,19442
Chorley Borough Council,http://statistics.data.gov.uk/id/local-authority/30UE,Service Management & Support,1009,Streetscene & Leisure Contracts,External Contractor,40198,Miscellaneous Expenses,5034,Dismantle clean and rebuild castle turret in Astley Park as requested,16/03/2016,110682,300.00,Revenue,Adlington Dry Stone Walling,63372
Chorley Borough Council,http://statistics.data.gov.uk/id/local-authority/30UE,Service Management & Support,1009,Streetscene & Leisure Contracts,External Contractor,40198,Miscellaneous Expenses,5034,materials,09/03/2016,110618,240.00,Revenue,Adlington Dry Stone Walling,63372
Chorley Borough Council,http://statistics.data.gov.uk/id/local-authority/30UE,Service Management & Support,1009,Streetscene & Leisure Contracts,External Contractor,40198,Miscellaneous Expenses,5034,materials,16/03/2016,110682,50.00,Revenue,Adlington Dry Stone Walling,63372
Chorley Borough Council,http://statistics.data.gov.uk/id/local-authority/30UE,Service Management & Support,1009,Streetscene & Leisure Contracts,External Contractor,40198,Miscellaneous Expenses,5034,"Stone wall repair works completed @ The Lodge, Brinscall",09/03/2016,110618,400.00,Revenue,Adlington Dry Stone Walling,63372
Chorley Borough Council,http://statistics.data.gov.uk/id/local-authority/30UE,Service Management & Support,1009,Streetscene & Leisure Contracts,Supplies-Grounds Maintenance,40025,"Equipment, Furniture & Materia",5023,materials,18/03/2016,110840,"1,550.00",Revenue,Adlington Dry Stone Walling,63372
Chorley Borough Council,http://statistics.data.gov.uk/id/local-authority/30UE,Service Management & Support,1009,Streetscene & Leisure Contracts,Supplies-Grounds Maintenance,40025,"Equipment, Furniture & Materia",5023,"To supply and construct 2 stone planters @ junction of Chancery Road, Astley Village",18/03/2016,110840,"1,300.00",Revenue,Adlington Dry Stone Walling,63372
Chorley Borough Council,http://statistics.data.gov.uk/id/local-authority/30UE,Democratic Represent and  Mgnt,1007,Governance,Grants To Other Organisations,40127,Grants and Subscriptions,5031,,24/03/2016,110809,250.00,Revenue,Adlington Luncheon Club,59141
Chorley Borough Council,http://statistics.data.gov.uk/id/local-authority/30UE,Homelessness,1075,Housing,Burglar Alarms & Security Systems,20075,Fixtures and Fittings,5010,card access fixed,02/03/2016,109877,659.74,Revenue,ADT Fire & Security,16645
Chorley Borough Council,http://statistics.data.gov.uk/id/local-authority/30UE,Unapportionable Central OHeads,1009,Governance,Burglar Alarms & Security Systems,20075,Fixtures and Fittings,5010,Invoice number 31833880-10 Work to replace CCTV camera at the town Hall covering main doors.,09/03/2016,110619,743.59,Revenue,ADT Fire & Security,16645
Chorley Borough Council,http://statistics.data.gov.uk/id/local-authority/30UE,Unapportionable Central OHeads,1009,Governance,Burglar Alarms & Security Systems,20075,Fixtures and Fittings,5010,,31/03/2016,110839,323.00,Revenue,ADT Fire & Security,16645
Chorley Borough Council,http://statistics.data.gov.uk/id/local-authority/30UE,Unapportionable Central OHeads,1009,Governance,Planned Maintenance,20006,Repairs Maintenance & Alts,5005,Maintenance of fire alarm system at Clayton Brook as per Invoice 30858566-10.,31/03/2016,111053,430.00,Revenue,ADT Fire & Security,16645
Chorley Borough Council,http://statistics.data.gov.uk/id/local-authority/30UE,Service Management & Support,1009,Streetscene & Leisure Contracts,Vehicle Maintenance,30045,Direct Transport Costs,5016," 2 x Service Kits, as per quote supplied on 08/03/2016, for Swingo AE14 AXX at price quoted of 254.56 per kit.  ",18/03/2016,110829,519.11,Revenue,Aebi Schmidt UK Ltd,17287
Chorley Borough Council,http://statistics.data.gov.uk/id/local-authority/30UE,Service Management & Support,1009,Streetscene & Leisure Contracts,Vehicle Maintenance,30045,Direct Transport Costs,5016,Supply diagnostic equipment as per discussion include onsite training for workshop staff. ,09/03/2016,110310,"1,300.00",Revenue,Aebi Schmidt UK Ltd,17287
Chorley Borough Council,http://statistics.data.gov.uk/id/local-authority/30UE,Service Management & Support,1009,Streetscene & Leisure Contracts,Vehicle Maintenance,30045,Direct Transport Costs,5016,Supply windscreen as on quote number 20116383/09.03.2016 from Damien to include carriage,16/03/2016,110815,795.65,Revenue,Aebi Schmidt UK Ltd,17287
Chorley Borough Council,http://statistics.data.gov.uk/id/local-authority/30UE,Business Support,1095,Policy & Performance,Research & Feasibilities,40079,Services,5027,Market Walk extension - additional work to amend plans based on tenants requirements,02/03/2016,109601,"1,780.00",Revenue,AEW Architects & Designers Ltd,66520
Chorley Borough Council,http://statistics.data.gov.uk/id/local-authority/30UE,Business Support,1095,Policy & Performance,Research & Feasibilities,40079,Services,5027,Market Walk extension - additional work to amend plans based on tenants requirements,16/03/2016,110518,"2,940.00",Revenue,AEW Architects & Designers Ltd,66520
Chorley Borough Council,http://statistics.data.gov.uk/id/local-authority/30UE,Unapportionable Central OHeads,1009,"Customer, ICT & Transactional",Bank Charges,40151,Miscellaneous Expenses,5034,,09/03/2016,110622,864.79,Revenue,Allpay Net Ltd,17242
Chorley Borough Council,http://statistics.data.gov.uk/id/local-authority/30UE,Democratic Represent and  Mgnt,1007,Shared Service Arrangement,Car Leasing Payment,14100,Direct Employee Expenses,5001,NAME REDACTED,18/03/2016,110765,329.10,Revenue,Alphabet (Uk) Fleet Management Ltd,16651
Chorley Borough Council,http://statistics.data.gov.uk/id/local-authority/30UE,Democratic Represent and  Mgnt,1007,Shared Service Arrangement,Car Leasing Payment,14100,Direct Employee Expenses,5001,NAME REDACTED,18/03/2016,110765,110.07,Revenue,Alphabet (Uk) Fleet Management Ltd,16651
Chorley Borough Council,http://statistics.data.gov.uk/id/local-authority/30UE,Corporate Management,1008,Shared Service Arrangement,Car Leasing Payment,14100,Direct Employee Expenses,5001,NAME REDACTED,18/03/2016,110765,275.70,Revenue,Alphabet (Uk) Fleet Management Ltd,16651
Chorley Borough Council,http://statistics.data.gov.uk/id/local-authority/30UE,Unapportionable Central OHeads,1009,Shared Service Arrangement,Car Leasing Payment,14100,Direct Employee Expenses,5001,NAME REDACTED,18/03/2016,110765,244.80,Revenue,Alphabet (Uk) Fleet Management Ltd,16651
Chorley Borough Council,http://statistics.data.gov.uk/id/local-authority/30UE,Unapportionable Central OHeads,1009,Shared Service Arrangement,Car Leasing Payment,14100,Direct Employee Expenses,5001,NAME REDACTED,31/03/2016,111137,"2,181.33",Revenue,Alphabet (Uk) Fleet Management Ltd,16651
Chorley Borough Council,http://statistics.data.gov.uk/id/local-authority/30UE,Unapportionable Central OHeads,1009,Shared Service Arrangement,Car Leasing Payment,14100,Direct Employee Expenses,5001,NAME REDACTED,18/03/2016,110765,190.80,Revenue,Alphabet (Uk) Fleet Management Ltd,16651
Chorley Borough Council,http://statistics.data.gov.uk/id/local-authority/30UE,Planning Policy,1092,Shared Service Arrangement,Car Leasing Payment,14100,Direct Employee Expenses,5001,NAME REDACTED,18/03/2016,110765,29.16,Revenue,Alphabet (Uk) Fleet Management Ltd,16651
Chorley Borough Council,http://statistics.data.gov.uk/id/local-authority/30UE,Unapportionable Central OHeads,1009,Shared Service Arrangement,Car Leasing Payment,14100,Direct Employee Expenses,5001,vat,31/03/2016,111137,184.07,Revenue,Alphabet (Uk) Fleet Management Ltd,16651
Chorley Borough Council,http://statistics.data.gov.uk/id/local-authority/30UE,Unapportionable Central OHeads,1009,Shared Service Arrangement,Car Leasing Payment,14100,Direct Employee Expenses,5001,Car Leasing,18/03/2016,110765,16.17,Revenue,Alphabet (Uk) Fleet Management Ltd,16651
Chorley Borough Council,http://statistics.data.gov.uk/id/local-authority/30UE,Unapportionable Central OHeads,1009,Shared Service Arrangement,Car Leasing Payment,14100,Direct Employee Expenses,5001,Car Leasing,18/03/2016,110765,22.53,Revenue,Alphabet (Uk) Fleet Management Ltd,16651
Chorley Borough Council,http://statistics.data.gov.uk/id/local-authority/30UE,Corporate Management,1008,Shared Service Arrangement,Car Leasing Payment,14100,Direct Employee Expenses,5001,Car Leasing,18/03/2016,110765,24.00,Revenue,Alphabet (Uk) Fleet Management Ltd,16651
Chorley Borough Council,http://statistics.data.gov.uk/id/local-authority/30UE,Democratic Represent and  Mgnt,1007,Shared Service Arrangement,Car Leasing Payment,14100,Direct Employee Expenses,5001,Car Leasing,18/03/2016,110765,10.06,Revenue,Alphabet (Uk) Fleet Management Ltd,16651
Chorley Borough Council,http://statistics.data.gov.uk/id/local-authority/30UE,Planning Policy,1092,Shared Service Arrangement,Car Leasing Payment,14100,Direct Employee Expenses,5001,Car Leasing,18/03/2016,110765,2.62,Revenue,Alphabet (Uk) Fleet Management Ltd,16651
Chorley Borough Council,http://statistics.data.gov.uk/id/local-authority/30UE,Control Accounts,Control,Shared Service Arrangement,Manual Control Account,1,Balance Sheet,Balance,,18/03/2016,110765,-2.62,Revenue,Alphabet (Uk) Fleet Management Ltd,16651
Chorley Borough Council,http://statistics.data.gov.uk/id/local-authority/30UE,Democratic Represent and  Mgnt,1007,Shared Service Arrangement,Transport Operating Leases,30029,Contrct Hire & Operating Lease,5018,Mayors Car,02/03/2016,109988,474.00,Revenue,Alphabet (Uk) Fleet Management Ltd,16651
Chorley Borough Council,http://statistics.data.gov.uk/id/local-authority/30UE,Central Support Services,1009,Health Environment & Neighbourhoods,Children's Activities,40188,Miscellaneous Expenses,5034,Delivery of activity on Wednesday 17th February for Reach Up and Go session agreed,02/03/2016,110213,350.00,Revenue,Anderton Centre - LOAI,56108
Chorley Borough Council,http://statistics.data.gov.uk/id/local-authority/30UE,Central Support Services,1009,Health Environment & Neighbourhoods,Miscellaneous Expenses,40200,Miscellaneous Expenses,5034,Delivery of activity on Feb 29th booked by NAME REDACTED,31/03/2016,110212,255.00,Revenue,Anderton Centre - LOAI,56108
Chorley Borough Council,http://statistics.data.gov.uk/id/local-authority/30UE,Central Support Services,1009,Health Environment & Neighbourhoods,Miscellaneous Expenses,40200,Miscellaneous Expenses,5034,Delivery of activity on March 4th booked by NAME REDACTED,31/03/2016,110212,255.00,Revenue,Anderton Centre - LOAI,56108
Chorley Borough Council,http://statistics.data.gov.uk/id/local-authority/30UE,Service Management & Support,1009,Streetscene & Leisure Contracts,External Contractor,40198,Miscellaneous Expenses,5034,Carryout excavation works at Lodge Bank Brinscal to repair undermining of stone wall caused from flooding of road. Expose,24/03/2016,110990,"1,530.00",Revenue,AP Broom Landscapes,67257
Chorley Borough Council,http://statistics.data.gov.uk/id/local-authority/30UE,Service Management & Support,1009,Streetscene & Leisure Contracts,External Contractor,40198,Miscellaneous Expenses,5034,Investigate blocked overflow causing flooding to properties at Higher Meadow. Excavate two tree stumps and roots replace ,24/03/2016,110991,965.00,Revenue,AP Broom Landscapes,67257
Chorley Borough Council,http://statistics.data.gov.uk/id/local-authority/30UE,Capital,Capital,Streetscene & Leisure Contracts,Main Contractor,3007,Capital Expenditure,Capital,Drainage works to Amber Drive open space and play area,04/03/2016,110507,"2,385.00",Capital,AP Broom Landscapes,67257
Chorley Borough Council,http://statistics.data.gov.uk/id/local-authority/30UE,Capital,Capital,Streetscene & Leisure Contracts,Main Contractor,3007,Capital Expenditure,Capital,"Improvements to Amber Drive Play area - removing old edgings and wetpour, new PCC edging, MOT, prep of swing area",24/03/2016,110985,"4,160.00",Capital,AP Broom Landscapes,67257
Chorley Borough Council,http://statistics.data.gov.uk/id/local-authority/30UE,Central Support Services,1009,Streetscene & Leisure Contracts,Miscellaneous Expenses,40200,Miscellaneous Expenses,5034,"Carryout works to footpath at Buttermere Green to include.Digging out and removing concrete around manhole cover.",24/03/2016,110984,575.00,Revenue,AP Broom Landscapes,67257
Chorley Borough Council,http://statistics.data.gov.uk/id/local-authority/30UE,Central Support Services,1009,Streetscene & Leisure Contracts,Miscellaneous Expenses,40200,Miscellaneous Expenses,5034,Manufacture and supply 15 x cyclists as per your quote to be painted in RAL 3020 as per me Email request ,31/03/2016,110988,"1,800.00",Revenue,AP Broom Landscapes,67257
Chorley Borough Council,http://statistics.data.gov.uk/id/local-authority/30UE,Central Support Services,1009,Health Environment & Neighbourhoods,Miscellaneous Expenses,40200,Miscellaneous Expenses,5034,Ref Quote Q1391 Buttermere Road footpath Work carried out as per quote dated 8/2/2016,31/03/2016,110989,"3,985.00",Revenue,AP Broom Landscapes,67257
Chorley Borough Council,http://statistics.data.gov.uk/id/local-authority/30UE,Service Management & Support,1009,Streetscene & Leisure Contracts,Supplies-Grounds Maintenance,40025,"Equipment, Furniture & Materia",5023,Supply and install drains and boardwalk to collapsed path at Astley Park snowdrop trail.off where necessary and make good,31/03/2016,110986,"1,600.00",Revenue,AP Broom Landscapes,67257
Chorley Borough Council,http://statistics.data.gov.uk/id/local-authority/30UE,Unapportionable Central OHeads,1009,Shared Service Arrangement,Computer Software-Maintenance,40107,Communication and Computing,5028,APT Bacs Datasafe License commencing April 2016,24/03/2016,110846,75.00,Revenue,APT,17305
Chorley Borough Council,http://statistics.data.gov.uk/id/local-authority/30UE,Unapportionable Central OHeads,1009,Shared Service Arrangement,Computer Software-Maintenance,40107,Communication and Computing,5028,Iconnect hosted site licence commencing April 2016,24/03/2016,110846,999.00,Revenue,APT,17305
Chorley Borough Council,http://statistics.data.gov.uk/id/local-authority/30UE,Service Management & Support,1009,Streetscene & Leisure Contracts,External Contractor,40198,Miscellaneous Expenses,5034,Carryout works to welcome to Chorley signs as on invoice number 01636,24/03/2016,110952,960.00,Revenue,Ark Welding Ltd,18154
Chorley Borough Council,http://statistics.data.gov.uk/id/local-authority/30UE,Service Management & Support,1009,Streetscene & Leisure Contracts,Supplies-Grounds Maintenance,40025,"Equipment, Furniture & Materia",5023,Manufacture and supply bin liners as on invoice number 01640,24/03/2016,110957,275.00,Revenue,Ark Welding Ltd,18154
Chorley Borough Council,http://statistics.data.gov.uk/id/local-authority/30UE,Unapportionable Central OHeads,1009,Shared Service Arrangement,Car Leasing Payment,14100,Direct Employee Expenses,5001,NAME REDACTED,18/03/2016,110922,"2,628.00",Revenue,Arnold Clark Finance Ltd,20685
Chorley Borough Council,http://statistics.data.gov.uk/id/local-authority/30UE,Development Control,1091,Shared Service Arrangement,Car Leasing Payment,14100,Direct Employee Expenses,5001,NAME REDACTED,18/03/2016,110923,"5,004.00",Revenue,Arnold Clark Finance Ltd,20685
Chorley Borough Council,http://statistics.data.gov.uk/id/local-authority/30UE,Unapportionable Central OHeads,1009,Shared Service Arrangement,Car Leasing Payment,14100,Direct Employee Expenses,5001,NAME REDACTED,11/03/2016,110522,319.78,Revenue,Arnold Clark Finance Ltd,20685
Chorley Borough Council,http://statistics.data.gov.uk/id/local-authority/30UE,Unapportionable Central OHeads,1009,Shared Service Arrangement,Car Leasing Payment,14100,Direct Employee Expenses,5001,NAME REDACTED,31/03/2016,111113,279.43,Revenue,Arnold Clark Finance Ltd,20685
Chorley Borough Council,http://statistics.data.gov.uk/id/local-authority/30UE,Unapportionable Central OHeads,1009,Shared Service Arrangement,Car Leasing Payment,14100,Direct Employee Expenses,5001,NAME REDACTED,18/03/2016,110921,"2,142.12",Revenue,Arnold Clark Finance Ltd,20685
Chorley Borough Council,http://statistics.data.gov.uk/id/local-authority/30UE,Corporate Management,1008,Shared Service Arrangement,Car Leasing Payment,14100,Direct Employee Expenses,5001,NAME REDACTED,11/03/2016,110522,462.33,Revenue,Arnold Clark Finance Ltd,20685
Chorley Borough Council,http://statistics.data.gov.uk/id/local-authority/30UE,Corporate Management,1008,Shared Service Arrangement,Car Leasing Payment,14100,Direct Employee Expenses,5001,vat,02/03/2016,108553,213.16,Revenue,Arnold Clark Finance Ltd,20685
Chorley Borough Council,http://statistics.data.gov.uk/id/local-authority/30UE,Corporate Management,1008,Shared Service Arrangement,Car Leasing Payment,14100,Direct Employee Expenses,5001,vat,11/03/2016,110522,40.18,Revenue,Arnold Clark Finance Ltd,20685
Chorley Borough Council,http://statistics.data.gov.uk/id/local-authority/30UE,Unapportionable Central OHeads,1009,Shared Service Arrangement,Car Leasing Payment,14100,Direct Employee Expenses,5001,vat,11/03/2016,110522,27.07,Revenue,Arnold Clark Finance Ltd,20685
Chorley Borough Council,http://statistics.data.gov.uk/id/local-authority/30UE,Unapportionable Central OHeads,1009,Shared Service Arrangement,Car Leasing Payment,14100,Direct Employee Expenses,5001,vat,31/03/2016,111113,23.65,Revenue,Arnold Clark Finance Ltd,20685
Chorley Borough Council,http://statistics.data.gov.uk/id/local-authority/30UE,Unapportionable Central OHeads,1009,Economic Development,Car Leasing Payment,14100,Direct Employee Expenses,5001,Car Leasing,31/03/2016,111095,"2,488.20",Revenue,Arnold Clark Finance Ltd,20685
Chorley Borough Council,http://statistics.data.gov.uk/id/local-authority/30UE,Corporate Management,1008,Shared Service Arrangement,Car Leasing Payment,14100,Direct Employee Expenses,5001,Car Leasing,02/03/2016,108553,"2,556.00",Revenue,Arnold Clark Finance Ltd,20685
Chorley Borough Council,http://statistics.data.gov.uk/id/local-authority/30UE,Unapportionable Central OHeads,1009,Shared Service Arrangement,Car Leasing Payment,14100,Direct Employee Expenses,5001,Car Leasing,18/03/2016,110921,167.50,Revenue,Arnold Clark Finance Ltd,20685
Chorley Borough Council,http://statistics.data.gov.uk/id/local-authority/30UE,Unapportionable Central OHeads,1009,Shared Service Arrangement,Car Leasing Payment,14100,Direct Employee Expenses,5001,Car Leasing,18/03/2016,110922,191.23,Revenue,Arnold Clark Finance Ltd,20685
Chorley Borough Council,http://statistics.data.gov.uk/id/local-authority/30UE,Development Control,1091,Shared Service Arrangement,Car Leasing Payment,14100,Direct Employee Expenses,5001,Car Leasing,18/03/2016,110923,438.34,Revenue,Arnold Clark Finance Ltd,20685
Chorley Borough Council,http://statistics.data.gov.uk/id/local-authority/30UE,Control Accounts,Control,Shared Service Arrangement,Manual Control Account,1,Balance Sheet,Balance,vat,02/03/2016,108553,-213.16,Revenue,Arnold Clark Finance Ltd,20685
Chorley Borough Council,http://statistics.data.gov.uk/id/local-authority/30UE,Control Accounts,Control,Shared Service Arrangement,Manual Control Account,1,Balance Sheet,Balance,vat,11/03/2016,110522,-40.18,Revenue,Arnold Clark Finance Ltd,20685
Chorley Borough Council,http://statistics.data.gov.uk/id/local-authority/30UE,Control Accounts,Control,Shared Service Arrangement,Manual Control Account,1,Balance Sheet,Balance,vat,11/03/2016,110522,-27.07,Revenue,Arnold Clark Finance Ltd,20685
Chorley Borough Council,http://statistics.data.gov.uk/id/local-authority/30UE,Democratic Represent and  Mgnt,1007,Streetscene & Leisure Contracts,Miscellaneous Expenses,40200,Miscellaneous Expenses,5034,Construction of reed bed in Astley Park with rock ramps and revetment of eroded banks as per the contract documentation ,18/03/2016,110843,792.00,Revenue,Bailey Construction (NW) Ltd,58139
Chorley Borough Council,http://statistics.data.gov.uk/id/local-authority/30UE,Democratic Represent and  Mgnt,1007,Streetscene & Leisure Contracts,Miscellaneous Expenses,40200,Miscellaneous Expenses,5034,labour,18/03/2016,110843,"12,980.00",Revenue,Bailey Construction (NW) Ltd,58139
Chorley Borough Council,http://statistics.data.gov.uk/id/local-authority/30UE,Homelessness,1075,Shared Service Arrangement,Christmas Tree / Decorations,40178,Miscellaneous Expenses,5034,14/12/15 - Asda Stores - Items for Cotswold House Christmas Party,30/03/2016,111023,113.77,Revenue,Barclaycard Commercial,59848
Chorley Borough Council,http://statistics.data.gov.uk/id/local-authority/30UE,Homelessness,1075,Shared Service Arrangement,Christmas Tree / Decorations,40178,Miscellaneous Expenses,5034, 23/12/15 - Asda Stores - Items for Cotswold Christmas Party,30/03/2016,111023,50.79,Revenue,Barclaycard Commercial,59848
Chorley Borough Council,http://statistics.data.gov.uk/id/local-authority/30UE,Central Support Services,1009,Shared Service Arrangement,Computer Equipment-Purchase,40098,Communication and Computing,5028,16/12/15 - Amazon UK Marketplace - Purchase of keyboards,30/03/2016,111023,614.40,Revenue,Barclaycard Commercial,59848
Chorley Borough Council,http://statistics.data.gov.uk/id/local-authority/30UE,Central Support Services,1009,Shared Service Arrangement,Computer Equipment-Purchase,40098,Communication and Computing,5028, 24/02/16 - Amazon UK Marketplace - prem pu folio stand cover and stylus holder - ICT,30/03/2016,111024,17.98,Revenue,Barclaycard Commercial,59848
Chorley Borough Council,http://statistics.data.gov.uk/id/local-authority/30UE,Central Support Services,1009,Shared Service Arrangement,Computer Software-Maintenance,40107,Communication and Computing,5028,03/12/15 - Sym Secure Site SSL - Certificate,30/03/2016,111023,862.70,Revenue,Barclaycard Commercial,59848
Chorley Borough Council,http://statistics.data.gov.uk/id/local-authority/30UE,Democratic Represent and  Mgnt,1007,Shared Service Arrangement,Conferences - Members,40121,Expenses,5030,20/01/16 - Paypal Downtowinb - Attendance at Lancashire BOOST Conference by Clr,30/03/2016,110732,57.37,Revenue,Barclaycard Commercial,59848
Chorley Borough Council,http://statistics.data.gov.uk/id/local-authority/30UE,Corporate Management,1008,Shared Service Arrangement,Conferences - Staff,40120,Expenses,5030,20/01/16 - Paypal Downtowinb - Attendance at Lancashire BOOST Conference,30/03/2016,110732,57.37,Revenue,Barclaycard Commercial,59848
Chorley Borough Council,http://statistics.data.gov.uk/id/local-authority/30UE,Economic Development,1096,Shared Service Arrangement,Conferences - Staff,40120,Expenses,5030,04/12/15 - EB Unitue Ladies Network - networking event CB,30/03/2016,111023,15.00,Revenue,Barclaycard Commercial,59848
Chorley Borough Council,http://statistics.data.gov.uk/id/local-authority/30UE,Economic Development,1096,Shared Service Arrangement,Conferences - Staff,40120,Expenses,5030,16/02/16 - Skiddl Lancashire Hots - Lancashire Hotspots event NAME REDACTED,30/03/2016,111024,18.00,Revenue,Barclaycard Commercial,59848
Chorley Borough Council,http://statistics.data.gov.uk/id/local-authority/30UE,Economic Development,1096,Shared Service Arrangement,Conferences - Staff,40120,Expenses,5030, 25/01/16 - EB Unitue Ladies Network - networking event CB,30/03/2016,110732,15.00,Revenue,Barclaycard Commercial,59848
Chorley Borough Council,http://statistics.data.gov.uk/id/local-authority/30UE,Economic Development,1096,Shared Service Arrangement,Conferences - Staff,40120,Expenses,5030,29/01/16 - EB Unique Ladies Network - Networking event attend,30/03/2016,111024,15.00,Revenue,Barclaycard Commercial,59848
Chorley Borough Council,http://statistics.data.gov.uk/id/local-authority/30UE,Economic Development,1096,Shared Service Arrangement,Conferences - Staff,40120,Expenses,5030,29/01/16 - Eventbrite Inc - Refund on tickets for Unique Ladies Network,30/03/2016,111024,-15.00,Revenue,Barclaycard Commercial,59848
Chorley Borough Council,http://statistics.data.gov.uk/id/local-authority/30UE,Unapportionable Central OHeads,1009,Shared Service Arrangement,Exhibitions & Special Events,40158,Miscellaneous Expenses,5034,30/12/15 - Facebook - Adverts payments (Christmas Events),30/03/2016,110732,200.00,Revenue,Barclaycard Commercial,59848
Chorley Borough Council,http://statistics.data.gov.uk/id/local-authority/30UE,Unapportionable Central OHeads,1009,Shared Service Arrangement,Exhibitions & Special Events,40158,Miscellaneous Expenses,5034,30/11/15 - Facebook advert Chorley Santa Express,30/03/2016,111023,126.46,Revenue,Barclaycard Commercial,59848
Chorley Borough Council,http://statistics.data.gov.uk/id/local-authority/30UE,Housing Strategy,1069,Shared Service Arrangement,General Subscriptions,40146,Grants and Subscriptions,5031,05/02/16 - www.insidehousing.co.uk - subscription 12 mths,30/03/2016,111024,154.00,Revenue,Barclaycard Commercial,59848
Chorley Borough Council,http://statistics.data.gov.uk/id/local-authority/30UE,Corporate Management,1008,Shared Service Arrangement,General Subscriptions,40146,Grants and Subscriptions,5031,07/01/16 - EMPA Ltd - Subscriptions - Local government chronicle subscription,30/03/2016,110732,249.00,Revenue,Barclaycard Commercial,59848
Chorley Borough Council,http://statistics.data.gov.uk/id/local-authority/30UE,Central Support Services,1009,Shared Service Arrangement,Internet Charges,40104,Communication and Computing,5028,04/12/15 - Paypal Prepaymania -micro/standard/nano triple sim data cards,30/03/2016,111023,74.95,Revenue,Barclaycard Commercial,59848
Chorley Borough Council,http://statistics.data.gov.uk/id/local-authority/30UE,Unapportionable Central OHeads,1009,Shared Service Arrangement,Legal Fees,40171,Miscellaneous Expenses,5034,01/02/16 - HM Courts - Court Fees,30/03/2016,111024,69.00,Revenue,Barclaycard Commercial,59848
Chorley Borough Council,http://statistics.data.gov.uk/id/local-authority/30UE,Unapportionable Central OHeads,1009,Shared Service Arrangement,Legal Fees,40171,Miscellaneous Expenses,5034,14/12/15 - HM Courts - Court Fees,30/03/2016,111023,39.00,Revenue,Barclaycard Commercial,59848
Chorley Borough Council,http://statistics.data.gov.uk/id/local-authority/30UE,Unapportionable Central OHeads,1009,Shared Service Arrangement,Legal Fees,40171,Miscellaneous Expenses,5034,22/01/16 - HM Courts - Court Fees,30/03/2016,111024,54.00,Revenue,Barclaycard Commercial,59848
Chorley Borough Council,http://statistics.data.gov.uk/id/local-authority/30UE,Unapportionable Central OHeads,1009,Shared Service Arrangement,Legal Fees,40171,Miscellaneous Expenses,5034,14/12/15 - HM Courts - Court Fees,30/03/2016,111023,"1,266.00",Revenue,Barclaycard Commercial,59848
Chorley Borough Council,http://statistics.data.gov.uk/id/local-authority/30UE,Unapportionable Central OHeads,1009,Shared Service Arrangement,Legal Fees,40171,Miscellaneous Expenses,5034,01/02/16 - HM Courts - court fees,30/03/2016,111024,969.00,Revenue,Barclaycard Commercial,59848
Chorley Borough Council,http://statistics.data.gov.uk/id/local-authority/30UE,Unapportionable Central OHeads,1009,Shared Service Arrangement,Legal Fees,40171,Miscellaneous Expenses,5034,01/02/16 - HM Courts - court fees,30/03/2016,111024,732.00,Revenue,Barclaycard Commercial,59848
Chorley Borough Council,http://statistics.data.gov.uk/id/local-authority/30UE,Democratic Represent and  Mgnt,1007,Shared Service Arrangement,Mayoral Hospitality,40123,Expenses,5030,20/01/16 - Wm Morrisons.co. - Purchase of wine for Mayoral Event,30/03/2016,110732,150.40,Revenue,Barclaycard Commercial,59848
Chorley Borough Council,http://statistics.data.gov.uk/id/local-authority/30UE,Democratic Represent and  Mgnt,1007,Shared Service Arrangement,Mayoral Hospitality,40123,Expenses,5030,02/02/16 - Clintons 248 - 4 amazon vouchers Mayors Charity Ball,30/03/2016,111024,100.00,Revenue,Barclaycard Commercial,59848
Chorley Borough Council,http://statistics.data.gov.uk/id/local-authority/30UE,Democratic Represent and  Mgnt,1007,Shared Service Arrangement,Mayoral Hospitality,40123,Expenses,5030,26/01/16 - Currys - Purchase of prizes for Mayors Charity Ball,30/03/2016,110732,476.96,Revenue,Barclaycard Commercial,59848
Chorley Borough Council,http://statistics.data.gov.uk/id/local-authority/30UE,Unapportionable Central OHeads,1009,Shared Service Arrangement,Miscellaneous Expenses,40200,Miscellaneous Expenses,5034,23/02/16 - UK Fastnet Ltd - Monthly web hosting for Check Out Chorley,30/03/2016,111024,191.82,Revenue,Barclaycard Commercial,59848
Chorley Borough Council,http://statistics.data.gov.uk/id/local-authority/30UE,Development Control,1091,Shared Service Arrangement,Publications,40054,"Printing, Stationery & General",5026,02/02/16 - www.housing.org.uk - purchase of Housing Standards Handbook,30/03/2016,111024,63.90,Revenue,Barclaycard Commercial,59848
Chorley Borough Council,http://statistics.data.gov.uk/id/local-authority/30UE,Unapportionable Central OHeads,1009,Shared Service Arrangement,Publicity - Advertising,40157,Miscellaneous Expenses,5034,31/01/16 - Facebook - adverts,30/03/2016,111024,41.29,Revenue,Barclaycard Commercial,59848
Chorley Borough Council,http://statistics.data.gov.uk/id/local-authority/30UE,Corporate Management,1008,Shared Service Arrangement,Publicity - Advertising,40157,Miscellaneous Expenses,5034,31/01/16 - Facebook - adverts - Market Walk,30/03/2016,111024,162.34,Revenue,Barclaycard Commercial,59848
Chorley Borough Council,http://statistics.data.gov.uk/id/local-authority/30UE,Unapportionable Central OHeads,1009,Shared Service Arrangement,Publicity - Advertising,40157,Miscellaneous Expenses,5034,31/12/15 - Facebook - Advert payments,30/03/2016,110732,2.77,Revenue,Barclaycard Commercial,59848
Chorley Borough Council,http://statistics.data.gov.uk/id/local-authority/30UE,Corporate Management,1008,Shared Service Arrangement,Publicity - Advertising,40157,Miscellaneous Expenses,5034,31/12/15 - Facebook - Adverts Market Walk,30/03/2016,110732,261.08,Revenue,Barclaycard Commercial,59848
Chorley Borough Council,http://statistics.data.gov.uk/id/local-authority/30UE,Corporate Management,1008,Shared Service Arrangement,Staff Rail Fares,30032,Public Transport,5019,13/01/16 - Trainline - Attendance at Elections Seminar ,30/03/2016,110732,7.78,Revenue,Barclaycard Commercial,59848
Chorley Borough Council,http://statistics.data.gov.uk/id/local-authority/30UE,Elections,1012,Shared Service Arrangement,Staff Rail Fares,30032,Public Transport,5019,13/01/16 - Trainline - Attendance at Elections Seminar,30/03/2016,110732,7.77,Revenue,Barclaycard Commercial,59848
Chorley Borough Council,http://statistics.data.gov.uk/id/local-authority/30UE,Unapportionable Central OHeads,1009,Shared Service Arrangement,Stationery,40050,"Printing, Stationery & General",5026,03/02/16 - Amazon UK Marketplace - replacement ink pads - cust serv,30/03/2016,111024,12.24,Revenue,Barclaycard Commercial,59848
Chorley Borough Council,http://statistics.data.gov.uk/id/local-authority/30UE,Democratic Represent and  Mgnt,1007,Shared Service Arrangement,Tools & Equipment - Purchase,40003,"Equipment, Furniture & Materia",5023,05/01/16 - Birkacre Nurseries - Purchase of Xmas Lights for Lancastrian,30/03/2016,110732,83.30,Revenue,Barclaycard Commercial,59848
Chorley Borough Council,http://statistics.data.gov.uk/id/local-authority/30UE,Central Support Services,1009,Shared Service Arrangement,Training Course Fees,17010,Indirect Employee Expenses,5002,03/12/15 - Trainline - LAF tickets for meeting in Manchester,30/03/2016,111023,21.78,Revenue,Barclaycard Commercial,59848
Chorley Borough Council,http://statistics.data.gov.uk/id/local-authority/30UE,Service Management & Support,1009,Shared Service Arrangement,Vehicle Maintenance,30045,Direct Transport Costs,5016,07/01/16 - ww.dvla.gov.uk - Road Tax NU08 KOJ,30/03/2016,110732,227.50,Revenue,Barclaycard Commercial,59848
Chorley Borough Council,http://statistics.data.gov.uk/id/local-authority/30UE,Corporate Management,1008,Shared Service Arrangement,Vehicle Maintenance,30045,Direct Transport Costs,5016,15/02/16 - www.dvla.gov.uk - road tax PN15 YWB,30/03/2016,111024,227.50,Revenue,Barclaycard Commercial,59848
Chorley Borough Council,http://statistics.data.gov.uk/id/local-authority/30UE,Corporate Management,1008,Shared Service Arrangement,Vehicle Maintenance,30045,Direct Transport Costs,5016,15/02/16 - www.dvla.gov.uk - road tax PO15 VFZ,30/03/2016,111024,227.50,Revenue,Barclaycard Commercial,59848
Chorley Borough Council,http://statistics.data.gov.uk/id/local-authority/30UE,Corporate Management,1008,Shared Service Arrangement,Vehicle Maintenance,30045,Direct Transport Costs,5016,15/02/16 - www.dvla.gov.uk - road tax PO15 VHD,30/03/2016,111024,227.50,Revenue,Barclaycard Commercial,59848
Chorley Borough Council,http://statistics.data.gov.uk/id/local-authority/30UE,Corporate Management,1008,Shared Service Arrangement,Vehicle Maintenance,30045,Direct Transport Costs,5016,15/02/16 - www.dvla.gov.uk - road tax PO15 VHE,30/03/2016,111024,227.50,Revenue,Barclaycard Commercial,59848
Chorley Borough Council,http://statistics.data.gov.uk/id/local-authority/30UE,Corporate Management,1008,Shared Service Arrangement,Vehicle Maintenance,30045,Direct Transport Costs,5016,15/02/16 - www.dvla.gov.uk - Road Tax PO15 VHF,30/03/2016,111024,227.50,Revenue,Barclaycard Commercial,59848
Chorley Borough Council,http://statistics.data.gov.uk/id/local-authority/30UE,Service Management & Support,1009,Shared Service Arrangement,Vehicle Maintenance,30045,Direct Transport Costs,5016,17/12/15 - www.dvla.gov.uk - Road Tax,30/03/2016,111023,227.50,Revenue,Barclaycard Commercial,59848
Chorley Borough Council,http://statistics.data.gov.uk/id/local-authority/30UE,Service Management & Support,1009,Shared Service Arrangement,Vehicle Maintenance,30045,Direct Transport Costs,5016,27/11/15 - www.dvla.gov.uk - Road Tax,30/03/2016,111023,227.50,Revenue,Barclaycard Commercial,59848
Chorley Borough Council,http://statistics.data.gov.uk/id/local-authority/30UE,Corporate Management,1008,Shared Service Arrangement,Bank Charges,40151,Miscellaneous Expenses,5034,,02/03/2016,108964,389.40,Revenue,Barclaycard Merchant Services,61601
Chorley Borough Council,http://statistics.data.gov.uk/id/local-authority/30UE,Corporate Management,1008,Shared Service Arrangement,Bank Charges,40151,Miscellaneous Expenses,5034,,02/03/2016,108965,526.07,Revenue,Barclaycard Merchant Services,61601
Chorley Borough Council,http://statistics.data.gov.uk/id/local-authority/30UE,Corporate Management,1008,Shared Service Arrangement,Bank Charges,40151,Miscellaneous Expenses,5034,,02/03/2016,109941,626.35,Revenue,Barclaycard Merchant Services,61601
Chorley Borough Council,http://statistics.data.gov.uk/id/local-authority/30UE,Corporate Management,1008,Shared Service Arrangement,Bank Charges,40151,Miscellaneous Expenses,5034,,02/03/2016,109942,464.09,Revenue,Barclaycard Merchant Services,61601
Chorley Borough Council,http://statistics.data.gov.uk/id/local-authority/30UE,Corporate Management,1008,Shared Service Arrangement,Bank Charges,40151,Miscellaneous Expenses,5034,,30/03/2016,110714,305.80,Revenue,Barclaycard Merchant Services,61601
Chorley Borough Council,http://statistics.data.gov.uk/id/local-authority/30UE,Unapportionable Central OHeads,1009,Policy & Performance,Exhibitions & Special Events,40158,Miscellaneous Expenses,5034,,02/03/2016,110221,"1,200.00",Revenue,Bauer Active Ltd,50574
Chorley Borough Council,http://statistics.data.gov.uk/id/local-authority/30UE,Business Support,1095,Economic Development,Grants To Other Organisations,40127,Grants and Subscriptions,5031,,09/03/2016,110648,375.00,Revenue,Bay Leaf Indian Restaurant,71750
Chorley Borough Council,http://statistics.data.gov.uk/id/local-authority/30UE,Business Support,1095,Economic Development,Grants To Other Organisations,40127,Grants and Subscriptions,5031,,24/03/2016,110998,390.39,Revenue,Bay Leaf Indian Restaurant,71750
Chorley Borough Council,http://statistics.data.gov.uk/id/local-authority/30UE,Service Management & Support,1009,Policy & Performance,Miscellaneous Expenses,40200,Miscellaneous Expenses,5034,Advert for 2016 Chorley Flower Show,31/03/2016,110246,295.00,Revenue,Beau Business Media,47620
Chorley Borough Council,http://statistics.data.gov.uk/id/local-authority/30UE,Democratic Represent and  Mgnt,1007,Streetscene & Leisure Contracts,Supplies-Grounds Maintenance,40025,"Equipment, Furniture & Materia",5023,900 MAR 9CM PHRAGMITES COMMUNIS 0.850 765.00 300 RT 125CC TYPHA ANGUSTIFOLIA 0.530 159.00,16/03/2016,110803,"1,014.00",Revenue,Beaver Plants,74640
Chorley Borough Council,http://statistics.data.gov.uk/id/local-authority/30UE,Unapportionable Central OHeads,1009,"Customer, ICT & Transactional",Miscellaneous Expenses,40200,Miscellaneous Expenses,5034,10613 Adapt 513 Posture Chair Onyx (Black) 310.50 50400 Height adjustable arms & retractable arm pads for adapt 610,24/03/2016,110948,420.70,Revenue,Bennett Workplace Solutions Limited,62734
Chorley Borough Council,http://statistics.data.gov.uk/id/local-authority/30UE,Democratic Represent and  Mgnt,1007,Streetscene & Leisure Contracts,Exhibitions & Special Events,40158,Miscellaneous Expenses,5034,expenses,24/03/2016,111062,474.00,Revenue,Biscuit Media Ltd,71751
Chorley Borough Council,http://statistics.data.gov.uk/id/local-authority/30UE,Democratic Represent and  Mgnt,1007,Streetscene & Leisure Contracts,Exhibitions & Special Events,40158,Miscellaneous Expenses,5034,Graphic design of exhibition panel for Sacrifice Exhibition,24/03/2016,111063,430.00,Revenue,Biscuit Media Ltd,71751
Chorley Borough Council,http://statistics.data.gov.uk/id/local-authority/30UE,Democratic Represent and  Mgnt,1007,Streetscene & Leisure Contracts,Exhibitions & Special Events,40158,Miscellaneous Expenses,5034,Graphics for A1 text panel - crediting charities @ 250.00 Sacrifice Exhibition,24/03/2016,111054,250.00,Revenue,Biscuit Media Ltd,71751
Chorley Borough Council,http://statistics.data.gov.uk/id/local-authority/30UE,Democratic Represent and  Mgnt,1007,Streetscene & Leisure Contracts,Exhibitions & Special Events,40158,Miscellaneous Expenses,5034,Two days filming and editing on behalf of the Sacrifice project,24/03/2016,111062,"1,500.00",Revenue,Biscuit Media Ltd,71751
Chorley Borough Council,http://statistics.data.gov.uk/id/local-authority/30UE,Unapportionable Central OHeads,1009,HR & Org. Development,HR Recruitment - Advertising,15300,Indirect Employee Expenses,5002,28 day job postings pack x 3 jobs,04/03/2016,109783,897.00,Revenue,Bluetownonline Ltd,74334
Chorley Borough Council,http://statistics.data.gov.uk/id/local-authority/30UE,Housing Strategy,1069,Housing,Professional Fees,40063,Services,5027,,02/03/2016,109669,"1,350.00",Revenue,Brewster Bye Architects,70303
Chorley Borough Council,http://statistics.data.gov.uk/id/local-authority/30UE,Central Support Services,1009,Health Environment & Neighbourhoods,Play Events,40181,Miscellaneous Expenses,5034,Delivery of Punch and Judy for Winter Playday on 20th Feb,02/03/2016,110214,260.00,Revenue,Brian Gore,18370
Chorley Borough Council,http://statistics.data.gov.uk/id/local-authority/30UE,Community Development,1097,Governance,Gas,20014,Energy Costs,5006,accounting,31/03/2016,109522,92.11,Revenue,British Gas Business,22242
Chorley Borough Council,http://statistics.data.gov.uk/id/local-authority/30UE,Community Development,1097,Governance,Gas,20014,Energy Costs,5006,accounting,31/03/2016,109522,73.15,Revenue,British Gas Business,22242
Chorley Borough Council,http://statistics.data.gov.uk/id/local-authority/30UE,Community Development,1097,Governance,Gas,20014,Energy Costs,5006,accounting,31/03/2016,109795,92.11,Revenue,British Gas Business,22242
Chorley Borough Council,http://statistics.data.gov.uk/id/local-authority/30UE,Community Development,1097,Governance,Gas,20014,Energy Costs,5006,accounting,31/03/2016,109795,73.15,Revenue,British Gas Business,22242
Chorley Borough Council,http://statistics.data.gov.uk/id/local-authority/30UE,Community Development,1097,Governance,Gas,20014,Energy Costs,5006,accounting,31/03/2016,109795,55.58,Revenue,British Gas Business,22242
Chorley Borough Council,http://statistics.data.gov.uk/id/local-authority/30UE,Community Development,1097,Governance,Gas,20014,Energy Costs,5006,accounting,11/03/2016,110218,119.92,Revenue,British Gas Business,22242
Chorley Borough Council,http://statistics.data.gov.uk/id/local-authority/30UE,Community Development,1097,Governance,Gas,20014,Energy Costs,5006,accounting,31/03/2016,111077,125.28,Revenue,British Gas Business,22242
Chorley Borough Council,http://statistics.data.gov.uk/id/local-authority/30UE,Democratic Represent and  Mgnt,1007,Governance,Gas,20014,Energy Costs,5006,astley cottage,31/03/2016,109522,147.94,Revenue,British Gas Business,22242
Chorley Borough Council,http://statistics.data.gov.uk/id/local-authority/30UE,Democratic Represent and  Mgnt,1007,Governance,Gas,20014,Energy Costs,5006,astley cottage,31/03/2016,109795,147.94,Revenue,British Gas Business,22242
Chorley Borough Council,http://statistics.data.gov.uk/id/local-authority/30UE,Democratic Represent and  Mgnt,1007,Governance,Gas,20014,Energy Costs,5006,astley cottage,31/03/2016,109795,124.58,Revenue,British Gas Business,22242
Chorley Borough Council,http://statistics.data.gov.uk/id/local-authority/30UE,Democratic Represent and  Mgnt,1007,Governance,Gas,20014,Energy Costs,5006,astley cottage,31/03/2016,109795,99.05,Revenue,British Gas Business,22242
Chorley Borough Council,http://statistics.data.gov.uk/id/local-authority/30UE,Democratic Represent and  Mgnt,1007,Governance,Gas,20014,Energy Costs,5006,astley cottage,11/03/2016,110218,201.35,Revenue,British Gas Business,22242
Chorley Borough Council,http://statistics.data.gov.uk/id/local-authority/30UE,Democratic Represent and  Mgnt,1007,Governance,Gas,20014,Energy Costs,5006,astley cottage,31/03/2016,111077,193.67,Revenue,British Gas Business,22242
Chorley Borough Council,http://statistics.data.gov.uk/id/local-authority/30UE,Democratic Represent and  Mgnt,1007,Governance,Gas,20014,Energy Costs,5006,astley farm house,11/03/2016,110218,122.89,Revenue,British Gas Business,22242
Chorley Borough Council,http://statistics.data.gov.uk/id/local-authority/30UE,Democratic Represent and  Mgnt,1007,Governance,Gas,20014,Energy Costs,5006,astley farm hs,31/03/2016,109795,307.81,Revenue,British Gas Business,22242
Chorley Borough Council,http://statistics.data.gov.uk/id/local-authority/30UE,Democratic Represent and  Mgnt,1007,Governance,Gas,20014,Energy Costs,5006,astley farm hs,31/03/2016,109795,123.85,Revenue,British Gas Business,22242
Chorley Borough Council,http://statistics.data.gov.uk/id/local-authority/30UE,Democratic Represent and  Mgnt,1007,Governance,Gas,20014,Energy Costs,5006,astley farm hs,31/03/2016,109795,0.43,Revenue,British Gas Business,22242
Chorley Borough Council,http://statistics.data.gov.uk/id/local-authority/30UE,Democratic Represent and  Mgnt,1007,Governance,Gas,20014,Energy Costs,5006,astley hall,31/03/2016,109522,"1,159.52",Revenue,British Gas Business,22242
Chorley Borough Council,http://statistics.data.gov.uk/id/local-authority/30UE,Democratic Represent and  Mgnt,1007,Governance,Gas,20014,Energy Costs,5006,astley hall,31/03/2016,109522,"1,422.04",Revenue,British Gas Business,22242
Chorley Borough Council,http://statistics.data.gov.uk/id/local-authority/30UE,Democratic Represent and  Mgnt,1007,Governance,Gas,20014,Energy Costs,5006,astley hall,31/03/2016,109795,"1,159.52",Revenue,British Gas Business,22242
Chorley Borough Council,http://statistics.data.gov.uk/id/local-authority/30UE,Democratic Represent and  Mgnt,1007,Governance,Gas,20014,Energy Costs,5006,astley hall,31/03/2016,109795,"1,422.04",Revenue,British Gas Business,22242
Chorley Borough Council,http://statistics.data.gov.uk/id/local-authority/30UE,Democratic Represent and  Mgnt,1007,Governance,Gas,20014,Energy Costs,5006,astley hall,31/03/2016,109795,924.50,Revenue,British Gas Business,22242
Chorley Borough Council,http://statistics.data.gov.uk/id/local-authority/30UE,Democratic Represent and  Mgnt,1007,Governance,Gas,20014,Energy Costs,5006,Astley Hall,11/03/2016,110218,"1,271.87",Revenue,British Gas Business,22242
Chorley Borough Council,http://statistics.data.gov.uk/id/local-authority/30UE,Democratic Represent and  Mgnt,1007,Governance,Gas,20014,Energy Costs,5006,Astley hall,31/03/2016,111077,"1,485.36",Revenue,British Gas Business,22242
Chorley Borough Council,http://statistics.data.gov.uk/id/local-authority/30UE,Democratic Represent and  Mgnt,1007,Governance,Gas,20014,Energy Costs,5006,astley hall farm,31/03/2016,109522,307.81,Revenue,British Gas Business,22242
Chorley Borough Council,http://statistics.data.gov.uk/id/local-authority/30UE,Democratic Represent and  Mgnt,1007,Governance,Gas,20014,Energy Costs,5006,astley hall farm,31/03/2016,109522,123.85,Revenue,British Gas Business,22242
Chorley Borough Council,http://statistics.data.gov.uk/id/local-authority/30UE,Democratic Represent and  Mgnt,1007,Governance,Gas,20014,Energy Costs,5006,astley hall farm house,31/03/2016,111077,191.02,Revenue,British Gas Business,22242
Chorley Borough Council,http://statistics.data.gov.uk/id/local-authority/30UE,Democratic Represent and  Mgnt,1007,Governance,Gas,20014,Energy Costs,5006,astley vill cc,31/03/2016,109795,307.03,Revenue,British Gas Business,22242
Chorley Borough Council,http://statistics.data.gov.uk/id/local-authority/30UE,Democratic Represent and  Mgnt,1007,Governance,Gas,20014,Energy Costs,5006,astley vill cc,31/03/2016,109795,244.11,Revenue,British Gas Business,22242
Chorley Borough Council,http://statistics.data.gov.uk/id/local-authority/30UE,Democratic Represent and  Mgnt,1007,Governance,Gas,20014,Energy Costs,5006,astley vill cc,31/03/2016,109795,180.43,Revenue,British Gas Business,22242
Chorley Borough Council,http://statistics.data.gov.uk/id/local-authority/30UE,Democratic Represent and  Mgnt,1007,Governance,Gas,20014,Energy Costs,5006,astley vill cc,11/03/2016,110218,362.16,Revenue,British Gas Business,22242
Chorley Borough Council,http://statistics.data.gov.uk/id/local-authority/30UE,Democratic Represent and  Mgnt,1007,Governance,Gas,20014,Energy Costs,5006,astley vill cc,31/03/2016,111077,350.13,Revenue,British Gas Business,22242
Chorley Borough Council,http://statistics.data.gov.uk/id/local-authority/30UE,Democratic Represent and  Mgnt,1007,Governance,Gas,20014,Energy Costs,5006,astley village,31/03/2016,109522,307.03,Revenue,British Gas Business,22242
Chorley Borough Council,http://statistics.data.gov.uk/id/local-authority/30UE,Unapportionable Central OHeads,1009,Governance,Gas,20014,Energy Costs,5006,bengal,31/03/2016,109795,164.85,Revenue,British Gas Business,22242
Chorley Borough Council,http://statistics.data.gov.uk/id/local-authority/30UE,Unapportionable Central OHeads,1009,Governance,Gas,20014,Energy Costs,5006,bengal,31/03/2016,109795,147.47,Revenue,British Gas Business,22242
Chorley Borough Council,http://statistics.data.gov.uk/id/local-authority/30UE,Unapportionable Central OHeads,1009,Governance,Gas,20014,Energy Costs,5006,bengal,31/03/2016,109795,78.99,Revenue,British Gas Business,22242
Chorley Borough Council,http://statistics.data.gov.uk/id/local-authority/30UE,Unapportionable Central OHeads,1009,Governance,Gas,20014,Energy Costs,5006,bengal street,31/03/2016,109522,164.85,Revenue,British Gas Business,22242
Chorley Borough Council,http://statistics.data.gov.uk/id/local-authority/30UE,Unapportionable Central OHeads,1009,Governance,Gas,20014,Energy Costs,5006,bengal street,11/03/2016,110218,274.84,Revenue,British Gas Business,22242
Chorley Borough Council,http://statistics.data.gov.uk/id/local-authority/30UE,Unapportionable Central OHeads,1009,Governance,Gas,20014,Energy Costs,5006,bengal street,31/03/2016,111077,286.75,Revenue,British Gas Business,22242
Chorley Borough Council,http://statistics.data.gov.uk/id/local-authority/30UE,Democratic Represent and  Mgnt,1007,Governance,Gas,20014,Energy Costs,5006,clayton brook cc,31/03/2016,109522,187.50,Revenue,British Gas Business,22242
Chorley Borough Council,http://statistics.data.gov.uk/id/local-authority/30UE,Democratic Represent and  Mgnt,1007,Governance,Gas,20014,Energy Costs,5006,clayton brook cc,31/03/2016,109795,187.50,Revenue,British Gas Business,22242
Chorley Borough Council,http://statistics.data.gov.uk/id/local-authority/30UE,Democratic Represent and  Mgnt,1007,Governance,Gas,20014,Energy Costs,5006,clayton brook cc,31/03/2016,109795,194.66,Revenue,British Gas Business,22242
Chorley Borough Council,http://statistics.data.gov.uk/id/local-authority/30UE,Democratic Represent and  Mgnt,1007,Governance,Gas,20014,Energy Costs,5006,clayton brook cc,31/03/2016,109795,49.10,Revenue,British Gas Business,22242
Chorley Borough Council,http://statistics.data.gov.uk/id/local-authority/30UE,Democratic Represent and  Mgnt,1007,Governance,Gas,20014,Energy Costs,5006,clayton brook cc,11/03/2016,110218,235.64,Revenue,British Gas Business,22242
Chorley Borough Council,http://statistics.data.gov.uk/id/local-authority/30UE,Democratic Represent and  Mgnt,1007,Governance,Gas,20014,Energy Costs,5006,clayton brook cc,31/03/2016,111077,222.93,Revenue,British Gas Business,22242
Chorley Borough Council,http://statistics.data.gov.uk/id/local-authority/30UE,Democratic Represent and  Mgnt,1007,Governance,Gas,20014,Energy Costs,5006,coach house,31/03/2016,109522,403.96,Revenue,British Gas Business,22242
Chorley Borough Council,http://statistics.data.gov.uk/id/local-authority/30UE,Democratic Represent and  Mgnt,1007,Governance,Gas,20014,Energy Costs,5006,coach house,31/03/2016,109522,227.27,Revenue,British Gas Business,22242
Chorley Borough Council,http://statistics.data.gov.uk/id/local-authority/30UE,Democratic Represent and  Mgnt,1007,Governance,Gas,20014,Energy Costs,5006,coach house,31/03/2016,109795,403.96,Revenue,British Gas Business,22242
Chorley Borough Council,http://statistics.data.gov.uk/id/local-authority/30UE,Democratic Represent and  Mgnt,1007,Governance,Gas,20014,Energy Costs,5006,coach house,31/03/2016,109795,227.27,Revenue,British Gas Business,22242
Chorley Borough Council,http://statistics.data.gov.uk/id/local-authority/30UE,Democratic Represent and  Mgnt,1007,Governance,Gas,20014,Energy Costs,5006,coach house,31/03/2016,109795,325.56,Revenue,British Gas Business,22242
Chorley Borough Council,http://statistics.data.gov.uk/id/local-authority/30UE,Democratic Represent and  Mgnt,1007,Governance,Gas,20014,Energy Costs,5006,coach house,11/03/2016,110218,399.84,Revenue,British Gas Business,22242
Chorley Borough Council,http://statistics.data.gov.uk/id/local-authority/30UE,Democratic Represent and  Mgnt,1007,Governance,Gas,20014,Energy Costs,5006,coach house,31/03/2016,111077,445.32,Revenue,British Gas Business,22242
Chorley Borough Council,http://statistics.data.gov.uk/id/local-authority/30UE,Homelessness,1075,Governance,Gas,20014,Energy Costs,5006,cotswold house,31/03/2016,109522,10.46,Revenue,British Gas Business,22242
Chorley Borough Council,http://statistics.data.gov.uk/id/local-authority/30UE,Homelessness,1075,Governance,Gas,20014,Energy Costs,5006,cotswold house,31/03/2016,109795,306.91,Revenue,British Gas Business,22242
Chorley Borough Council,http://statistics.data.gov.uk/id/local-authority/30UE,Homelessness,1075,Governance,Gas,20014,Energy Costs,5006,cotswold house,11/03/2016,110218,405.58,Revenue,British Gas Business,22242
Chorley Borough Council,http://statistics.data.gov.uk/id/local-authority/30UE,Homelessness,1075,Governance,Gas,20014,Energy Costs,5006,cotswold house,31/03/2016,111077,10.12,Revenue,British Gas Business,22242
Chorley Borough Council,http://statistics.data.gov.uk/id/local-authority/30UE,Democratic Represent and  Mgnt,1007,Governance,Gas,20014,Energy Costs,5006,eaves green cc,31/03/2016,109522,214.16,Revenue,British Gas Business,22242
Chorley Borough Council,http://statistics.data.gov.uk/id/local-authority/30UE,Democratic Represent and  Mgnt,1007,Governance,Gas,20014,Energy Costs,5006,eaves green cc,31/03/2016,109795,214.16,Revenue,British Gas Business,22242
Chorley Borough Council,http://statistics.data.gov.uk/id/local-authority/30UE,Democratic Represent and  Mgnt,1007,Governance,Gas,20014,Energy Costs,5006,eaves green cc,31/03/2016,109795,163.14,Revenue,British Gas Business,22242
Chorley Borough Council,http://statistics.data.gov.uk/id/local-authority/30UE,Democratic Represent and  Mgnt,1007,Governance,Gas,20014,Energy Costs,5006,eaves green cc,31/03/2016,109795,132.36,Revenue,British Gas Business,22242
Chorley Borough Council,http://statistics.data.gov.uk/id/local-authority/30UE,Democratic Represent and  Mgnt,1007,Governance,Gas,20014,Energy Costs,5006,eaves green cc,11/03/2016,110218,228.07,Revenue,British Gas Business,22242
Chorley Borough Council,http://statistics.data.gov.uk/id/local-authority/30UE,Democratic Represent and  Mgnt,1007,Governance,Gas,20014,Energy Costs,5006,eaves green cc,31/03/2016,111077,222.49,Revenue,British Gas Business,22242
Chorley Borough Council,http://statistics.data.gov.uk/id/local-authority/30UE,Unapportionable Central OHeads,1009,Governance,Gas,20014,Energy Costs,5006,town hall,31/03/2016,109522,"1,021.94",Revenue,British Gas Business,22242
Chorley Borough Council,http://statistics.data.gov.uk/id/local-authority/30UE,Unapportionable Central OHeads,1009,Governance,Gas,20014,Energy Costs,5006,town hall,31/03/2016,109795,"1,021.94",Revenue,British Gas Business,22242
Chorley Borough Council,http://statistics.data.gov.uk/id/local-authority/30UE,Unapportionable Central OHeads,1009,Governance,Gas,20014,Energy Costs,5006,town hall,31/03/2016,109795,914.39,Revenue,British Gas Business,22242
Chorley Borough Council,http://statistics.data.gov.uk/id/local-authority/30UE,Unapportionable Central OHeads,1009,Governance,Gas,20014,Energy Costs,5006,town hall,31/03/2016,109795,639.69,Revenue,British Gas Business,22242
Chorley Borough Council,http://statistics.data.gov.uk/id/local-authority/30UE,Unapportionable Central OHeads,1009,Governance,Gas,20014,Energy Costs,5006,Town hall,11/03/2016,110218,"1,206.38",Revenue,British Gas Business,22242
Chorley Borough Council,http://statistics.data.gov.uk/id/local-authority/30UE,Unapportionable Central OHeads,1009,Governance,Gas,20014,Energy Costs,5006,Town Hall,31/03/2016,111077,"1,253.01",Revenue,British Gas Business,22242
Chorley Borough Council,http://statistics.data.gov.uk/id/local-authority/30UE,Unapportionable Central OHeads,1009,Governance,Gas,20014,Energy Costs,5006,town halls,31/03/2016,109522,914.39,Revenue,British Gas Business,22242
Chorley Borough Council,http://statistics.data.gov.uk/id/local-authority/30UE,Unapportionable Central OHeads,1009,Governance,Gas,20014,Energy Costs,5006,union street,31/03/2016,109522,"1,251.01",Revenue,British Gas Business,22242
Chorley Borough Council,http://statistics.data.gov.uk/id/local-authority/30UE,Unapportionable Central OHeads,1009,Governance,Gas,20014,Energy Costs,5006,union street,31/03/2016,109522,"1,093.11",Revenue,British Gas Business,22242
Chorley Borough Council,http://statistics.data.gov.uk/id/local-authority/30UE,Unapportionable Central OHeads,1009,Governance,Gas,20014,Energy Costs,5006,union street,31/03/2016,109795,"1,251.01",Revenue,British Gas Business,22242
Chorley Borough Council,http://statistics.data.gov.uk/id/local-authority/30UE,Unapportionable Central OHeads,1009,Governance,Gas,20014,Energy Costs,5006,union street,31/03/2016,109795,"1,093.11",Revenue,British Gas Business,22242
Chorley Borough Council,http://statistics.data.gov.uk/id/local-authority/30UE,Unapportionable Central OHeads,1009,Governance,Gas,20014,Energy Costs,5006,union street,31/03/2016,109795,840.71,Revenue,British Gas Business,22242
Chorley Borough Council,http://statistics.data.gov.uk/id/local-authority/30UE,Unapportionable Central OHeads,1009,Governance,Gas,20014,Energy Costs,5006,union street,11/03/2016,110218,"1,415.23",Revenue,British Gas Business,22242
Chorley Borough Council,http://statistics.data.gov.uk/id/local-authority/30UE,Unapportionable Central OHeads,1009,Governance,Gas,20014,Energy Costs,5006,Union street,31/03/2016,111077,"1,389.47",Revenue,British Gas Business,22242
Chorley Borough Council,http://statistics.data.gov.uk/id/local-authority/30UE,Democratic Represent and  Mgnt,1007,Governance,Gas,20014,Energy Costs,5006,Energy Costs,11/03/2016,109916,317.00,Revenue,British Gas Business,22242
Chorley Borough Council,http://statistics.data.gov.uk/id/local-authority/30UE,Democratic Represent and  Mgnt,1007,Governance,Gas,20014,Energy Costs,5006,Energy Costs,18/03/2016,110751,321.97,Revenue,British Gas Business,22242
Chorley Borough Council,http://statistics.data.gov.uk/id/local-authority/30UE,Service Management & Support,1009,Streetscene & Leisure Contracts,Supplies-Grounds Maintenance,40025,"Equipment, Furniture & Materia",5023,20mm to dust sandstone per tonne delivered to Bengal street,02/03/2016,110241,360.00,Revenue,Burt Wesley & Sons ltd,67887
Chorley Borough Council,http://statistics.data.gov.uk/id/local-authority/30UE,Service Management & Support,1009,Streetscene & Leisure Contracts,Supplies-Grounds Maintenance,40025,"Equipment, Furniture & Materia",5023,Supply 20 tonne of grade 1 soil delivered to Bengal St depot as requested,31/03/2016,111142,400.00,Revenue,Burt Wesley & Sons ltd,67887
Chorley Borough Council,http://statistics.data.gov.uk/id/local-authority/30UE,Service Management & Support,1009,Streetscene & Leisure Contracts,Supplies-Grounds Maintenance,40025,"Equipment, Furniture & Materia",5023,25Kg bags highway C2 fast setting mortar Product code= 02110551,09/03/2016,110304,412.00,Revenue,C & W BERRY LIMITED,18180
Chorley Borough Council,http://statistics.data.gov.uk/id/local-authority/30UE,Service Management & Support,1009,Streetscene & Leisure Contracts,Supplies-Grounds Maintenance,40025,"Equipment, Furniture & Materia",5023,Highway C2 fast setting mortar.  25kg bag.  Product Code = 02110551,16/03/2016,110643,412.00,Revenue,C & W BERRY LIMITED,18180
Chorley Borough Council,http://statistics.data.gov.uk/id/local-authority/30UE,Service Management & Support,1009,Streetscene & Leisure Contracts,External Contractor,40198,Miscellaneous Expenses,5034,Carryout jetting and investigations at various sites as per Email from Rob dated 17/03/2016,31/03/2016,111056,975.00,Revenue,C J Lyon,16579
Chorley Borough Council,http://statistics.data.gov.uk/id/local-authority/30UE,Service Management & Support,1009,Streetscene & Leisure Contracts,External Contractor,40198,Miscellaneous Expenses,5034,Carryout monthly emptying of interceptor tank and gullies at Bengal St depot at price agreed,16/03/2016,110654,300.00,Revenue,C J Lyon,16579
Chorley Borough Council,http://statistics.data.gov.uk/id/local-authority/30UE,Service Management & Support,1009,Streetscene & Leisure Contracts,Vehicle Maintenance,30045,Direct Transport Costs,5016,Callout to recover DK05CXG from Westhead Rd Croston return to workshop fit 2 x steering pipes bleed and test as requested,11/03/2016,110052,441.99,Revenue,C P Davidson & Sons Ltd,21093
Chorley Borough Council,http://statistics.data.gov.uk/id/local-authority/30UE,Business Support,1095,Economic Development,Miscellaneous Expenses,40200,Miscellaneous Expenses,5034,"50% Deposit for catering Choose Chorley Business Evening 7 April 2016 Buffet for 150 guests, fresh orange juice 2 member",18/03/2016,110880,613.50,Revenue,Camerons Restaurant Ltd,53731
Chorley Borough Council,http://statistics.data.gov.uk/id/local-authority/30UE,Unapportionable Central OHeads,1009,"Customer, ICT & Transactional",Computer - Support Services,40111,Communication and Computing,5028,"EOY support request.  6 tokens.  2 x HB, 2 x CTAX, 2 x TECHNICAL for Sat 5th and Sun 6th March 2016. 2,700.",24/03/2016,110987,"2,700.00",Revenue,Capita Business Services Ltd,17151
Chorley Borough Council,http://statistics.data.gov.uk/id/local-authority/30UE,Unapportionable Central OHeads,1009,"Customer, ICT & Transactional",Computer Software-Maintenance,40107,Communication and Computing,5028,"LA data sharing ICT costs Software changes for :CTS, Payment Deduction Programme (PDP) and Back Dating and Removal",16/03/2016,110805,"5,640.05",Revenue,Capita Business Services Ltd,17151
Chorley Borough Council,http://statistics.data.gov.uk/id/local-authority/30UE,Unapportionable Central OHeads,1009,"Customer, ICT & Transactional",Computer Software-Purchase,40100,Communication and Computing,5028,Software change to remove F Premium for Elderly CTS claims in accordance with prescribed regulations.,16/03/2016,110804,"1,330.00",Revenue,Capita Business Services Ltd,17151
Chorley Borough Council,http://statistics.data.gov.uk/id/local-authority/30UE,Corporate Management,1008,Shared Service Arrangement,Treasury Management Service,40065,Services,5027,Treasury retainer contracts,18/03/2016,110625,"7,100.00",Revenue,Capita Treasury Solutions Ltd,16428
Chorley Borough Council,http://statistics.data.gov.uk/id/local-authority/30UE,Building Control,1090,Planning,Professional Fees,40063,Services,5027,Checking of Structural Calculations for Building Control,31/03/2016,109934,980.00,Revenue,Carr Faulkner Associates,17493
Chorley Borough Council,http://statistics.data.gov.uk/id/local-authority/30UE,Central Support Services,1009,"Customer, ICT & Transactional",Computer Equipment-Purchase,40098,Communication and Computing,5028,"iPad Air Wi-Fi + cell 16GB Space Grey, Model number A1475 (product code MD791B/B)",31/03/2016,110939,"3,218.30",Revenue,CDW Ltd,60681
Chorley Borough Council,http://statistics.data.gov.uk/id/local-authority/30UE,Service Management & Support,1009,Streetscene & Leisure Contracts,Supplies-Grounds Maintenance,40025,"Equipment, Furniture & Materia",5023,Supply 3 x tonne of 10mm tarmac to be collected by Chorley Council,24/03/2016,110947,296.40,Revenue,CEMEX UK Materials Ltd,16849
Chorley Borough Council,http://statistics.data.gov.uk/id/local-authority/30UE,Parking Services,1066,Streetscene & Leisure Contracts,External Contractors,50008,Private Contractors,5042,Merchant ID charges by HSBC for 2015 /16. 50 per month,09/03/2016,110065,278.99,Revenue,Chipside Ltd,22063
Chorley Borough Council,http://statistics.data.gov.uk/id/local-authority/30UE,Parking Services,1066,Streetscene & Leisure Contracts,External Contractors,50008,Private Contractors,5042,"MIPERMIT season ticket & staff permits, April 2015 to March 2016. Monthly charge",09/03/2016,110061,1.00,Revenue,Chipside Ltd,22063
Chorley Borough Council,http://statistics.data.gov.uk/id/local-authority/30UE,Parking Services,1066,Streetscene & Leisure Contracts,External Contractors,50008,Private Contractors,5042,"MIPERMIT season ticket & staff permits, April 2015 to March 2016. Monthly charge",09/03/2016,110062,77.61,Revenue,Chipside Ltd,22063
Chorley Borough Council,http://statistics.data.gov.uk/id/local-authority/30UE,Parking Services,1066,Streetscene & Leisure Contracts,External Contractors,50008,Private Contractors,5042,Notice Processing services as agreed in Lancashire contract. 320 PCNs per month @ 2.90 per ticket. April 2015 March 16,09/03/2016,110061,787.97,Revenue,Chipside Ltd,22063
Chorley Borough Council,http://statistics.data.gov.uk/id/local-authority/30UE,Parking Services,1066,Streetscene & Leisure Contracts,External Contractors,50008,Private Contractors,5042,Notice Processing services as agreed in Lancashire contract. 320 PCNs per month @ 2.90 per ticket.April 2015 March 16,09/03/2016,110062,384.00,Revenue,Chipside Ltd,22063
Chorley Borough Council,http://statistics.data.gov.uk/id/local-authority/30UE,Parking Services,1066,Streetscene & Leisure Contracts,External Contractors,50008,Private Contractors,5042,Notice Processing services as agreed in Lancashire contract. 320 PCNs per month @ 2.90 per ticket. April 2015  March 16,09/03/2016,110066,647.36,Revenue,Chipside Ltd,22063
Chorley Borough Council,http://statistics.data.gov.uk/id/local-authority/30UE,Democratic Represent and  Mgnt,1007,Governance,Grants To Other Organisations,40127,Grants and Subscriptions,5031,,16/03/2016,110851,250.00,Revenue,Chorley & District Neighbourhood Watch Association,59762
Chorley Borough Council,http://statistics.data.gov.uk/id/local-authority/30UE,Corporate Management,1008,Health Environment & Neighbourhoods,Taxi Testing & Vehicle Safety Report,40234,Services,5027,MOT,09/03/2016,110626,877.60,Revenue,Chorley Autocare Ltd,17110
Chorley Borough Council,http://statistics.data.gov.uk/id/local-authority/30UE,Corporate Management,1008,Health Environment & Neighbourhoods,Taxi Testing & Vehicle Safety Report,40234,Services,5027,taxi test,09/03/2016,110626,136.80,Revenue,Chorley Autocare Ltd,17110
Chorley Borough Council,http://statistics.data.gov.uk/id/local-authority/30UE,Other Short Term Creditors,,Shared Service Arrangement,General Balances,100,Balance Sheet,Balance,,18/03/2016,110933,"2,305.60",Revenue,Chorley Community Housing,20531
Chorley Borough Council,http://statistics.data.gov.uk/id/local-authority/30UE,Capital,Capital,Housing,Grants,3002,Capital Expenditure,Capital,ADDRESS REDACTED,11/03/2016,110757,879.50,Capital,Chorley Community Housing,20531
Chorley Borough Council,http://statistics.data.gov.uk/id/local-authority/30UE,Unapportionable Central OHeads,1009,Governance,Tools & Equipment - Purchase,40003,"Equipment, Furniture & Materia",5023,Supply of bulbs as per quote 17631,18/03/2016,110826,349.03,Revenue,Chorley Electrical Traders Ltd,16330
Chorley Borough Council,http://statistics.data.gov.uk/id/local-authority/30UE,Democratic Represent and  Mgnt,1007,Governance,Grants To Other Organisations,40127,Grants and Subscriptions,5031,,16/03/2016,110852,250.00,Revenue,Chorley Moor Residents Group,56614
Chorley Borough Council,http://statistics.data.gov.uk/id/local-authority/30UE,Democratic Represent and  Mgnt,1007,Governance,Grants To Other Organisations,40127,Grants and Subscriptions,5031,,16/03/2016,110853,250.00,Revenue,Chorley Moor Residents Group,56614
Chorley Borough Council,http://statistics.data.gov.uk/id/local-authority/30UE,Central Support Services,1009,Health Environment & Neighbourhoods,Children's Activities,40188,Miscellaneous Expenses,5034,Delivery of Athletics camp for Summer Holiday Programme August 10th - 12th at Albany Academy,16/03/2016,110791,540.00,Revenue,Chorley School Sport Partnership,56115
Chorley Borough Council,http://statistics.data.gov.uk/id/local-authority/30UE,Central Support Services,1009,Governance,Miscellaneous Expenses,40200,Miscellaneous Expenses,5034,Medical cover for the Chorley Grand Prix,31/03/2016,111171,250.00,Revenue,Chorley`s Angels Community Group,63882
Chorley Borough Council,http://statistics.data.gov.uk/id/local-authority/30UE,Unapportionable Central OHeads,1009,Governance,General Repairs - Reactive,20004,Repairs Maintenance & Alts,5005,Reactive blanket order until September 2015.,11/03/2016,110527,458.78,Revenue,Chubb Electronic Sec Sys Ltd,16228
Chorley Borough Council,http://statistics.data.gov.uk/id/local-authority/30UE,Unapportionable Central OHeads,1009,Shared Service Arrangement,Training Course Fees,17010,Indirect Employee Expenses,5002,P2/Foundation - Prince 2 Foundation Course - 64493-CIP,31/03/2016,111140,495.00,Revenue,CIPFA Business Ltd,16247
Chorley Borough Council,http://statistics.data.gov.uk/id/local-authority/30UE,Corporate Management,1008,Chief Executives Office,Consultants` Fees,40077,Services,5027,Project,31/03/2016,110328,"8,500.00",Revenue,Clare Foreman,74445
Chorley Borough Council,http://statistics.data.gov.uk/id/local-authority/30UE,Business Support,1095,Economic Development,Miscellaneous Expenses,40200,Miscellaneous Expenses,5034,Site Managers Safety Training Scheme Course (5 days: 7th - 11th March 2016.),24/03/2016,110963,138.00,Revenue,Compass MS Ltd,69550
Chorley Borough Council,http://statistics.data.gov.uk/id/local-authority/30UE,Business Support,1095,Economic Development,Miscellaneous Expenses,40200,Miscellaneous Expenses,5034,,24/03/2016,110963,335.00,Revenue,Compass MS Ltd,69550
Chorley Borough Council,http://statistics.data.gov.uk/id/local-authority/30UE,Unapportionable Central OHeads,1009,Governance,General Repairs - Reactive,20004,Repairs Maintenance & Alts,5005,"Clear out stream at rear of ADDRESS REDACTED, Euxton as per on site discussion ",31/03/2016,110993,"1,655.43",Revenue,Conservation Contracts North West,20520
Chorley Borough Council,http://statistics.data.gov.uk/id/local-authority/30UE,Service Management & Support,1009,Streetscene & Leisure Contracts,Grounds Maintenance Contractor,20043,Grounds Maintenance Costs,5013,"Woodland management work at Amber Drive, Chorley for 3 days.  Thinning trees and dead hedging. General tidy",18/03/2016,110862,957.00,Revenue,Conservation Contracts North West,20520
Chorley Borough Council,http://statistics.data.gov.uk/id/local-authority/30UE,Capital,Capital,Streetscene & Leisure Contracts,Main Contractor,3007,Capital Expenditure,Capital,Footpath resurfacing work to Carr Brook as per quotation JE5583  16,18/03/2016,110861,"9,900.00",Capital,Conservation Contracts North West,20520
Chorley Borough Council,http://statistics.data.gov.uk/id/local-authority/30UE,Capital,Capital,Streetscene & Leisure Contracts,Main Contractor,3007,Capital Expenditure,Capital,"Order for quotations JE 5585, 5634, 5635, 5636 - Footpath surfacing along Carr Brook, Whitttle/Clayton",31/03/2016,110983,"5,431.45",Capital,Conservation Contracts North West,20520
Chorley Borough Council,http://statistics.data.gov.uk/id/local-authority/30UE,Democratic Represent and  Mgnt,1007,Governance,Supplies-Grounds Maintenance,40025,"Equipment, Furniture & Materia",5023,Flood damage works at Birkacre and Astley Park.,31/03/2016,110046,"19,214.61",Revenue,Conservation Contracts North West,20520
Chorley Borough Council,http://statistics.data.gov.uk/id/local-authority/30UE,Democratic Represent and  Mgnt,1007,Streetscene & Leisure Contracts,Supplies-Grounds Maintenance,40025,"Equipment, Furniture & Materia",5023,Planting of reed bed in Astley Park.,24/03/2016,110953,624.00,Revenue,Conservation Contracts North West,20520
Chorley Borough Council,http://statistics.data.gov.uk/id/local-authority/30UE,Unapportionable Central OHeads,1009,Governance,General Repairs - Reactive,20004,Repairs Maintenance & Alts,5005,Blanket order for Reactive works for 2016.,31/03/2016,110783,"2,468.50",Revenue,Corlett Electrical Eng Co Ltd,16271
Chorley Borough Council,http://statistics.data.gov.uk/id/local-authority/30UE,Unapportionable Central OHeads,1009,Governance,General Repairs - Reactive,20004,Repairs Maintenance & Alts,5005,Blanket order for REACTIVE works until end of March 2016.,11/03/2016,110492,266.90,Revenue,Corlett Electrical Eng Co Ltd,16271
Chorley Borough Council,http://statistics.data.gov.uk/id/local-authority/30UE,Unapportionable Central OHeads,1009,Governance,General Repairs - Reactive,20004,Repairs Maintenance & Alts,5005,Blanket order for REACTIVE works until end of March 2016.,09/03/2016,110493,482.50,Revenue,Corlett Electrical Eng Co Ltd,16271
Chorley Borough Council,http://statistics.data.gov.uk/id/local-authority/30UE,Unapportionable Central OHeads,1009,Governance,General Repairs - Reactive,20004,Repairs Maintenance & Alts,5005,Blanket order for REACTIVE works until end of March 2016.,24/03/2016,110740,331.55,Revenue,Corlett Electrical Eng Co Ltd,16271
Chorley Borough Council,http://statistics.data.gov.uk/id/local-authority/30UE,Unapportionable Central OHeads,1009,Governance,General Repairs - Reactive,20004,Repairs Maintenance & Alts,5005,Reactive blanket for 2016 in relation to ADDRESS REDACTED,31/03/2016,110889,329.13,Revenue,Corona Energy Retail 2 Ltd,67249
Chorley Borough Council,http://statistics.data.gov.uk/id/local-authority/30UE,Central Support Services,1009,Streetscene & Leisure Contracts,Sports Development Initiatives,40186,Miscellaneous Expenses,5034,,11/03/2016,110664,800.00,Revenue,Cowm Leisure,74695
Chorley Borough Council,http://statistics.data.gov.uk/id/local-authority/30UE,Democratic Represent and  Mgnt,1007,Streetscene & Leisure Contracts,Fixtures & Fittings - Repair/Mtnce,20028,Fixtures and Fittings,5010,Service and repair of existing blind systems at Astley Hall. Two blinds above great hall main entrance door.,31/03/2016,111096,570.00,Revenue,CSC Window Films & Blinds,56388
Chorley Borough Council,http://statistics.data.gov.uk/id/local-authority/30UE,Democratic Represent and  Mgnt,1007,Governance,Grants To Other Organisations,40127,Grants and Subscriptions,5031,,24/03/2016,110810,250.00,Revenue,Cuerden Valley Park Trust,20574
Chorley Borough Council,http://statistics.data.gov.uk/id/local-authority/30UE,Economic Development,1096,Economic Development,Miscellaneous Expenses,40200,Miscellaneous Expenses,5034,For facilitation at Chorley Annual Business Network April 2016,24/03/2016,110994,500.00,Revenue,Dave Guest,19221
Chorley Borough Council,http://statistics.data.gov.uk/id/local-authority/30UE,Parking Services,1066,Governance,Tools & Equipment - Maintenance,40005,"Equipment, Furniture & Materia",5023,"Please carry out the following works to Pay & Display Machine No 5 Flat Iron Car Park, Chorley to make safe.Grind off sec",18/03/2016,110652,285.00,Revenue,David Ferrier C/O Parking Infrastructure Services,74436
Chorley Borough Council,http://statistics.data.gov.uk/id/local-authority/30UE,Unapportionable Central OHeads,1009,Policy & Performance,Exhibitions & Special Events,40158,Miscellaneous Expenses,5034,Engineer inspection fee for giant Ferris wheel,31/03/2016,110982,600.00,Revenue,de Koning Leisure Group Ltd,57082
Chorley Borough Council,http://statistics.data.gov.uk/id/local-authority/30UE,Non Domestic Rates Redistribut,,Shared Service Arrangement,Levy to Central Government,49001,Expenditure not in NCOS,,,30/03/2016,111108,"667,541.00",Revenue,Department of Communities and Local Government,16280
Chorley Borough Council,http://statistics.data.gov.uk/id/local-authority/30UE,Collection Fund Revenue Accoun,,Shared Service Arrangement,NNDR Central Share,2034,Precepts & Collection Fund,Precept,,30/03/2016,111092,"1,135,233.00",Revenue,Department of Communities and Local Government,16280
Chorley Borough Council,http://statistics.data.gov.uk/id/local-authority/30UE,Collection Fund Revenue Accoun,,Shared Service Arrangement,NNDR Central Share,2034,Precepts & Collection Fund,Precept,,30/03/2016,111092,"8,422.00",Revenue,Department of Communities and Local Government,16280
Chorley Borough Council,http://statistics.data.gov.uk/id/local-authority/30UE,Collection Fund Revenue Accoun,,Shared Service Arrangement,NNDR Central Share,2034,Precepts & Collection Fund,Precept,,30/03/2016,111093,"1,135,232.00",Revenue,Department of Communities and Local Government,16280
Chorley Borough Council,http://statistics.data.gov.uk/id/local-authority/30UE,Collection Fund Revenue Accoun,,Shared Service Arrangement,NNDR Central Share,2034,Precepts & Collection Fund,Precept,,30/03/2016,111093,"8,422.00",Revenue,Department of Communities and Local Government,16280
Chorley Borough Council,http://statistics.data.gov.uk/id/local-authority/30UE,Collection Fund Revenue Accoun,,Shared Service Arrangement,NNDR Central Share,2034,Precepts & Collection Fund,Precept,,30/03/2016,111094,"1,135,232.00",Revenue,Department of Communities and Local Government,16280
Chorley Borough Council,http://statistics.data.gov.uk/id/local-authority/30UE,Collection Fund Revenue Accoun,,Shared Service Arrangement,NNDR Central Share,2034,Precepts & Collection Fund,Precept,,30/03/2016,111094,"8,422.00",Revenue,Department of Communities and Local Government,16280
Chorley Borough Council,http://statistics.data.gov.uk/id/local-authority/30UE,Non Domestic Rates Redistribut,,Shared Service Arrangement,Tariff to Central Government,49000,Expenditure not in NCOS,,,30/03/2016,111092,"623,339.00",Revenue,Department of Communities and Local Government,16280
Chorley Borough Council,http://statistics.data.gov.uk/id/local-authority/30UE,Non Domestic Rates Redistribut,,Shared Service Arrangement,Tariff to Central Government,49000,Expenditure not in NCOS,,,30/03/2016,111093,"623,338.00",Revenue,Department of Communities and Local Government,16280
Chorley Borough Council,http://statistics.data.gov.uk/id/local-authority/30UE,Non Domestic Rates Redistribut,,Shared Service Arrangement,Tariff to Central Government,49000,Expenditure not in NCOS,,,30/03/2016,111094,"623,338.00",Revenue,Department of Communities and Local Government,16280
Chorley Borough Council,http://statistics.data.gov.uk/id/local-authority/30UE,Collection Fund Revenue Accoun,,Shared Service Arrangement,Transitional Protection,2033,Precepts & Collection Fund,Precept,,30/03/2016,111108,"128,587.00",Revenue,Department of Communities and Local Government,16280
Chorley Borough Council,http://statistics.data.gov.uk/id/local-authority/30UE,Service Management & Support,1009,Streetscene & Leisure Contracts,Supplies-Grounds Maintenance,40025,"Equipment, Furniture & Materia",5023,80 - 12ft x 6`` x 2`` wooden edging board 80 - 3`` - 4`` x 1.67m round posts,09/03/2016,110525,750.40,Revenue,Derek Fox & Sons,50884
Chorley Borough Council,http://statistics.data.gov.uk/id/local-authority/30UE,Democratic Represent and  Mgnt,1007,Streetscene & Leisure Contracts,Supplies-Grounds Maintenance,40025,"Equipment, Furniture & Materia",5023,1 days work for man and machine at Withnell nature reserve,31/03/2016,111122,225.00,Revenue,Derek R Smith,21092
Chorley Borough Council,http://statistics.data.gov.uk/id/local-authority/30UE,Service Management & Support,1009,Streetscene & Leisure Contracts,Supplies-Grounds Maintenance,40025,"Equipment, Furniture & Materia",5023,2 days work for man and machine at Yarrow Valley car park. Mon 21st/Tues22nd,31/03/2016,111122,450.00,Revenue,Derek R Smith,21092
Chorley Borough Council,http://statistics.data.gov.uk/id/local-authority/30UE,Service Management & Support,1009,Streetscene & Leisure Contracts,Supplies-Grounds Maintenance,40025,"Equipment, Furniture & Materia",5023,2 days work with machine clearing out silt in the big lodge at yarrow valley park.,31/03/2016,111122,450.00,Revenue,Derek R Smith,21092
Chorley Borough Council,http://statistics.data.gov.uk/id/local-authority/30UE,Service Management & Support,1009,Streetscene & Leisure Contracts,Tools & Equipment - Maintenance,40005,"Equipment, Furniture & Materia",5023,Carryout repairs to Chorley Council machinery as on delivery note numbers 018969  018968 and 018967 already completed,18/03/2016,110936,302.75,Revenue,Dick Leigh,17138
Chorley Borough Council,http://statistics.data.gov.uk/id/local-authority/30UE,Capital,Capital,Streetscene & Leisure Contracts,Other Contractor,3012,Capital Expenditure,Capital,Provision of Project Officer services associated with Ranglett`s Rec. Ground Veterans Allotment Plot.,04/03/2016,110187,"1,300.53",Capital,Dig In North West CIC,74336
Chorley Borough Council,http://statistics.data.gov.uk/id/local-authority/30UE,Corporate Management,1008,Health Environment & Neighbourhoods,CRB Disclosure Fees,40070,Services,5027,DBS CHECKS,02/03/2016,109768,308.00,Revenue,Disclosure & Barring Service,16387
Chorley Borough Council,http://statistics.data.gov.uk/id/local-authority/30UE,Building Control,1090,Planning,General Subscriptions,40146,Grants and Subscriptions,5031,Local Authority Building Control Service Fee 2016-2017,18/03/2016,110903,"1,918.68",Revenue,District Surveyors Association Limited,17538
Chorley Borough Council,http://statistics.data.gov.uk/id/local-authority/30UE,Business Support,1095,Economic Development,Grants To Other Organisations,40127,Grants and Subscriptions,5031,,09/03/2016,110500,"3,000.00",Revenue,Dominique Clare,74116
Chorley Borough Council,http://statistics.data.gov.uk/id/local-authority/30UE,Business Support,1095,Economic Development,Grants To Other Organisations,40127,Grants and Subscriptions,5031,,09/03/2016,110500,262.50,Revenue,Dominique Clare,74116
Chorley Borough Council,http://statistics.data.gov.uk/id/local-authority/30UE,Democratic Represent and  Mgnt,1007,Governance,Other Contributions,40145,Grants and Subscriptions,5031,Charity donation,09/03/2016,110547,500.00,Revenue,Donna`s Dream House,74553
Chorley Borough Council,http://statistics.data.gov.uk/id/local-authority/30UE,Capital,Capital,Streetscene & Leisure Contracts,Main Contractor,3007,Capital Expenditure,Capital,"CCTV Survey 2 full days 1350 CCTV Survey Report, video, plan - hand mark up of paper copy 35.00 High performance Jet",24/03/2016,109609,"2,181.00",Capital,Drain Alert Ltd,16961
Chorley Borough Council,http://statistics.data.gov.uk/id/local-authority/30UE,Capital,Capital,Streetscene & Leisure Contracts,Equipment,3014,Capital Expenditure,Capital,Replacement of boiler at Brinscall swimming pool with IDEAL EVOMAX 60 as quote to Ian Hamlet ref MF12337 of 6 Jan 16.,24/03/2016,110964,"5,517.50",Capital,ECG Facilities,74437
Chorley Borough Council,http://statistics.data.gov.uk/id/local-authority/30UE,Corporate Management,1008,Policy & Performance,Promotional Expenses,40159,Miscellaneous Expenses,5034,Willow Easter bunny for Market Walk seated planter,16/03/2016,110658,625.00,Revenue,Eco-Arts,21984
Chorley Borough Council,http://statistics.data.gov.uk/id/local-authority/30UE,Service Management & Support,1009,Streetscene & Leisure Contracts,External Contractor,40198,Miscellaneous Expenses,5034,Extended Phase 1 Habitat Survey and Ecology Report at Westway Playing Fields,09/03/2016,110348,"1,146.00",Revenue,Ecology Services,58852
Chorley Borough Council,http://statistics.data.gov.uk/id/local-authority/30UE,Central Support Services,1009,"Customer, ICT & Transactional",Mobile Phones,40086,Communication and Computing,5028,,16/03/2016,110794,533.94,Revenue,EE - Orange,16486
Chorley Borough Council,http://statistics.data.gov.uk/id/local-authority/30UE,Unapportionable Central OHeads,1009,"Customer, ICT & Transactional",Mobile Phones,40086,Communication and Computing,5028,"1gb data bundle on 4g network - 2 year contract. SIMs only. 30 users x 2.50 per month x 2 years = 1,800. Please supply",09/03/2016,110257,473.28,Revenue,EE LIMITED,63366
Chorley Borough Council,http://statistics.data.gov.uk/id/local-authority/30UE,Unapportionable Central OHeads,1009,"Customer, ICT & Transactional",Mobile Phones,40086,Communication and Computing,5028,"1gb data bundle on 4g network - 2 year contract. SIMs only. 30 users x 2.50 per month x 2 years = 1,800. Please supply",16/03/2016,110793,260.00,Revenue,EE LIMITED,63366
Chorley Borough Council,http://statistics.data.gov.uk/id/local-authority/30UE,Central Support Services,1009,"Customer, ICT & Transactional",Mobile Phones,40086,Communication and Computing,5028,"1gb data bundle on 4g network - 2 year contract. SIMs only. 30 users x 2.50 per month x 2 years = 1,800. Please supply",09/03/2016,110257,412.50,Revenue,EE LIMITED,63366
Chorley Borough Council,http://statistics.data.gov.uk/id/local-authority/30UE,Central Support Services,1009,"Customer, ICT & Transactional",Mobile Phones,40086,Communication and Computing,5028,"1gb data bundle on 4g network - 2 year contract. SIMs only. 30 users x 2.50 per month x 2 years = 1,800. Please supply",16/03/2016,110793,260.00,Revenue,EE LIMITED,63366
Chorley Borough Council,http://statistics.data.gov.uk/id/local-authority/30UE,Central Support Services,1009,"Customer, ICT & Transactional",Mobile Phones,40086,Communication and Computing,5028,"4g iPhone 5s, 16GB, space grey, unlimited calls & texts, 1GB data. 10 connections at 10 per user per month for 24 month",09/03/2016,110257,100.00,Revenue,EE LIMITED,63366
Chorley Borough Council,http://statistics.data.gov.uk/id/local-authority/30UE,Central Support Services,1009,"Customer, ICT & Transactional",Mobile Phones,40086,Communication and Computing,5028,"4g iPhone 5s, 16GB, space grey, unlimited calls & texts, 1GB data.10 connections at 10 per user per month for 24 month",16/03/2016,110793,350.00,Revenue,EE LIMITED,63366
Chorley Borough Council,http://statistics.data.gov.uk/id/local-authority/30UE,Central Support Services,1009,"Customer, ICT & Transactional",Mobile Phones,40086,Communication and Computing,5028,"4g iPhone 5s, 16GB, space grey, unlimited calls & texts, 1GB data.15 connections at 10 per user per month for 24 months",09/03/2016,110257,200.00,Revenue,EE LIMITED,63366
Chorley Borough Council,http://statistics.data.gov.uk/id/local-authority/30UE,Central Support Services,1009,"Customer, ICT & Transactional",Mobile Phones,40086,Communication and Computing,5028,"4g iPhone 5s, 16GB, space grey, unlimited calls & texts, 1GB data.15 connections at 10 per user per month for 24 month",16/03/2016,110793,500.00,Revenue,EE LIMITED,63366
Chorley Borough Council,http://statistics.data.gov.uk/id/local-authority/30UE,Central Support Services,1009,"Customer, ICT & Transactional",Mobile Phones,40086,Communication and Computing,5028,"4g iPhone 5s, 16GB, space grey, unlimited calls & texts, 1GB data. 2 connections at 10 per user per month for 24 month",09/03/2016,110257,75.00,Revenue,EE LIMITED,63366
Chorley Borough Council,http://statistics.data.gov.uk/id/local-authority/30UE,Central Support Services,1009,"Customer, ICT & Transactional",Mobile Phones,40086,Communication and Computing,5028,"4g iPhone 5s, 16GB, space grey, unlimited calls & texts, 1GB data.2 connections at 10 per user per month for 24 month",16/03/2016,110793,101.32,Revenue,EE LIMITED,63366
Chorley Borough Council,http://statistics.data.gov.uk/id/local-authority/30UE,Unapportionable Central OHeads,1009,Governance,General Repairs - Reactive,20004,Repairs Maintenance & Alts,5005,Blanket order for Reactive Works.,31/03/2016,109584,431.25,Revenue,Ellesmere Engineering Co Ltd,17520
Chorley Borough Council,http://statistics.data.gov.uk/id/local-authority/30UE,Unapportionable Central OHeads,1009,Governance,General Repairs - Reactive,20004,Repairs Maintenance & Alts,5005,Reactive BLANKET order for 2016.,09/03/2016,110375,562.79,Revenue,Ellesmere Engineering Co Ltd,17520
Chorley Borough Council,http://statistics.data.gov.uk/id/local-authority/30UE,Community Development,1097,Governance,Rent/Hire Of Premises,20017,Premises Rents,5007,"Rent from 28.09.15 - 27.09.16 (to be paid quarterly) for Credit Union, 29 Market Street, Chorley",31/03/2016,111163,"3,125.00",Revenue,Elmwood Property Investments Limited,60926
Chorley Borough Council,http://statistics.data.gov.uk/id/local-authority/30UE,Democratic Represent and  Mgnt,1007,Streetscene & Leisure Contracts,Rent/Hire Of Premises,20017,Premises Rents,5007,"Duxbury Coach House Rent - 10,625 per qtr To be invoiced quarterly Q1: 25/03/16 - 23/06/16  Q2: 24/06/16 - 23/09/16",31/03/2016,111080,"10,625.00",Revenue,European Settled Estates Plc,16495
Chorley Borough Council,http://statistics.data.gov.uk/id/local-authority/30UE,Democratic Represent and  Mgnt,1007,Streetscene & Leisure Contracts,Rent/Hire Of Premises,20017,Premises Rents,5007,"Service Charge - 1,125 per qtr to be invoiced quarterly Q1: 25/03/16 - 23/06/16       Q2: 24/06/16 - 23/09/16 Q2: 24/09/16 ",31/03/2016,111080,"1,125.00",Revenue,European Settled Estates Plc,16495
Chorley Borough Council,http://statistics.data.gov.uk/id/local-authority/30UE,Democratic Represent and  Mgnt,1007,Streetscene & Leisure Contracts,Rent/Hire Of Premises,20017,Premises Rents,5007,Service Charge on account Period 25/03 - 23/06,31/03/2016,111080,"10,000.00",Revenue,European Settled Estates Plc,16495
Chorley Borough Council,http://statistics.data.gov.uk/id/local-authority/30UE,Capital,Capital,Streetscene & Leisure Contracts,Main Contractor,3007,Capital Expenditure,Capital,"Planting to gap up:- 6 nr Prunus laurocerasus Otto Luyken  3L; 40nr 5L pot grown multiple hawthorn;.15nr rootball yew 80",09/03/2016,110569,408.40,Capital,Everglades Nurseries Ltd,20202
Chorley Borough Council,http://statistics.data.gov.uk/id/local-authority/30UE,Capital,Capital,Streetscene & Leisure Contracts,Main Contractor,3007,Capital Expenditure,Capital,Plants and sundries for Cottage Fields as set out in quote received 16th Feb.,09/03/2016,110608,418.10,Capital,Everglades Nurseries Ltd,20202
Chorley Borough Council,http://statistics.data.gov.uk/id/local-authority/30UE,Capital,Capital,Streetscene & Leisure Contracts,Main Contractor,3007,Capital Expenditure,Capital,"Tree and shrub order for Carr Brook as per spreadsheet quotation.  delivery to Fern Meadow, Clayton-le-Woods, PR6 7RN",09/03/2016,110568,"1,739.75",Capital,Everglades Nurseries Ltd,20202
Chorley Borough Council,http://statistics.data.gov.uk/id/local-authority/30UE,Service Management & Support,1009,Streetscene & Leisure Contracts,Supplies-Grounds Maintenance,40025,"Equipment, Furniture & Materia",5023,Planting scheme for Tatton Recreation Ground.3 nr Prunus Kanzan 12-14 3 nr Prunus subhirtella Autumnalis 12-14� ,09/03/2016,110567,610.55,Revenue,Everglades Nurseries Ltd,20202
Chorley Borough Council,http://statistics.data.gov.uk/id/local-authority/30UE,Unapportionable Central OHeads,1009,"Customer, ICT & Transactional",Debtor Tracing Service,40216,Services,5027,credit check,31/03/2016,110627,417.00,Revenue,Experian Limited,17797
Chorley Borough Council,http://statistics.data.gov.uk/id/local-authority/30UE,Unapportionable Central OHeads,1009,"Customer, ICT & Transactional",Search Fees,40068,Services,5027,licence,31/03/2016,110627,"2,220.00",Revenue,Experian Limited,17797
Chorley Borough Council,http://statistics.data.gov.uk/id/local-authority/30UE,Service Management & Support,1009,Streetscene & Leisure Contracts,Hire Of Transport,30028,Contrct Hire & Operating Lease,5018,"Hire of Case tractor and McConnell flail at price quoted via the chest for 12 month period. From 0/04/2015 to 31/03/2015",09/03/2016,110149,"1,565.29",Revenue,F R Sharrock Ltd,18091
Chorley Borough Council,http://statistics.data.gov.uk/id/local-authority/30UE,Service Management & Support,1009,Streetscene & Leisure Contracts,Hire Of Transport,30028,Contrct Hire & Operating Lease,5018,"Hire of Case tractor and McConnell flail at price quoted via the chest for 12 month period. From 0/04/2015 to 31/03/2015",31/03/2016,110865,"1,507.72",Revenue,F R Sharrock Ltd,18091
Chorley Borough Council,http://statistics.data.gov.uk/id/local-authority/30UE,Service Management & Support,1009,Streetscene & Leisure Contracts,Tools & Equipment - Maintenance,40005,"Equipment, Furniture & Materia",5023,Supply parts for Chorley Council machinery as per Email Pro-Forma invoice,31/03/2016,111016,"1,485.97",Revenue,F R Sharrock Ltd,18091
Chorley Borough Council,http://statistics.data.gov.uk/id/local-authority/30UE,Service Management & Support,1009,Streetscene & Leisure Contracts,Tools & Equipment - Purchase,40003,"Equipment, Furniture & Materia",5023,Supply of 3 x Ransomes Highway complete with 4 bladed cutting cylinders as per quoted through the ESPO Framework,31/03/2016,111081,"23,942.00",Revenue,F R Sharrock Ltd,18091
Chorley Borough Council,http://statistics.data.gov.uk/id/local-authority/30UE,Service Management & Support,1009,Streetscene & Leisure Contracts,Tools & Equipment - Purchase,40003,"Equipment, Furniture & Materia",5023,Supply of 3 x Ransomes Highway complete with 4 bladed cutting cylinders as per quoted through the ESPO Framework,31/03/2016,111082,"47,884.00",Revenue,F R Sharrock Ltd,18091
Chorley Borough Council,http://statistics.data.gov.uk/id/local-authority/30UE,Service Management & Support,1009,Streetscene & Leisure Contracts,Tools & Equipment - Purchase,40003,"Equipment, Furniture & Materia",5023,,31/03/2016,111081,55.00,Revenue,F R Sharrock Ltd,18091
Chorley Borough Council,http://statistics.data.gov.uk/id/local-authority/30UE,Service Management & Support,1009,Streetscene & Leisure Contracts,Tools & Equipment - Purchase,40003,"Equipment, Furniture & Materia",5023,,31/03/2016,111082,110.00,Revenue,F R Sharrock Ltd,18091
Chorley Borough Council,http://statistics.data.gov.uk/id/local-authority/30UE,Central Support Services,1009,Health Environment & Neighbourhoods,Exhibitions & Special Events,40158,Miscellaneous Expenses,5034,To provide Fairly Famous Family (Lifeguards) Sat 26th March 2016 at the Chorley Grand Prix,31/03/2016,111083,760.00,Revenue,Fools Paradise Ltd,17250
Chorley Borough Council,http://statistics.data.gov.uk/id/local-authority/30UE,Unapportionable Central OHeads,1009,HR & Org. Development,Legal Fees,40171,Miscellaneous Expenses,5034,Advice re investigation,09/03/2016,110526,531.50,Revenue,Forbes Solicitors,17527
Chorley Borough Council,http://statistics.data.gov.uk/id/local-authority/30UE,Business Support,1095,Economic Development,Miscellaneous Expenses,40200,Miscellaneous Expenses,5034,,31/03/2016,111091,800.00,Revenue,Freckle Boutique,75153
Chorley Borough Council,http://statistics.data.gov.uk/id/local-authority/30UE,Unapportionable Central OHeads,1009,Streetscene & Leisure Contracts,Exhibitions & Special Events,40158,Miscellaneous Expenses,5034,Carryout inspection land train in Dublin at price quoted To supply full report on vehicle safety and conformity. ,31/03/2016,110884,360.00,Revenue,Freight Transport Assoc Ltd,16333
Chorley Borough Council,http://statistics.data.gov.uk/id/local-authority/30UE,Service Management & Support,1009,Streetscene & Leisure Contracts,Training Course Fees,17010,Indirect Employee Expenses,5002,Transport Managers CPC Course,09/03/2016,110496,"1,197.00",Revenue,Freight Transport Assoc Ltd,16333
Chorley Borough Council,http://statistics.data.gov.uk/id/local-authority/30UE,Service Management & Support,1009,Streetscene & Leisure Contracts,Training Course Fees,17010,Indirect Employee Expenses,5002,,09/03/2016,110496,95.00,Revenue,Freight Transport Assoc Ltd,16333
Chorley Borough Council,http://statistics.data.gov.uk/id/local-authority/30UE,Central Support Services,1009,Health Environment & Neighbourhoods,Miscellaneous Expenses,40200,Miscellaneous Expenses,5034,Hire of inflatables on Friday 18th March at Clayton Green Sports Centre as agreed ,24/03/2016,110907,600.00,Revenue,Funtastic Entertainment,75045
Chorley Borough Council,http://statistics.data.gov.uk/id/local-authority/30UE,Capital,Capital,Housing,Grants,3002,Capital Expenditure,Capital,,02/03/2016,110127,"5,280.00",Capital,G McGavock Ltd,16921
Chorley Borough Council,http://statistics.data.gov.uk/id/local-authority/30UE,Capital,Capital,Housing,Grants,3002,Capital Expenditure,Capital,,24/03/2016,111043,"3,280.00",Capital,G McGavock Ltd,16921
Chorley Borough Council,http://statistics.data.gov.uk/id/local-authority/30UE,Democratic Represent and  Mgnt,1007,Streetscene & Leisure Contracts,Burglar Alarms & Security Systems,20075,Fixtures and Fittings,5010,Keyholding services 16-17,09/03/2016,110632,757.36,Revenue,G4S Secure Solutions (UK) Ltd,59898
Chorley Borough Council,http://statistics.data.gov.uk/id/local-authority/30UE,Business Support,1095,Governance,Electricity,20013,Energy Costs,5006,Energy Costs,11/03/2016,110502,431.25,Revenue,Gazprom Energy,56502
Chorley Borough Council,http://statistics.data.gov.uk/id/local-authority/30UE,Business Support,1095,Governance,Electricity,20013,Energy Costs,5006,Energy Costs,31/03/2016,111001,585.05,Revenue,Gazprom Energy,56502
Chorley Borough Council,http://statistics.data.gov.uk/id/local-authority/30UE,Business Support,1095,Governance,Electricity,20013,Energy Costs,5006,Energy Costs,31/03/2016,111002,"1,107.64",Revenue,Gazprom Energy,56502
Chorley Borough Council,http://statistics.data.gov.uk/id/local-authority/30UE,Service Management & Support,1009,Streetscene & Leisure Contracts,Supplies-Grounds Maintenance,40025,"Equipment, Furniture & Materia",5023,"White Bags on a roll.  Bottom-weld bag,  White,  printed on one side with Chorley Council in Black Lettering 25 bags per roll",31/03/2016,111084,"3,390.00",Revenue,Gelpack Excelsior Limited,74335
Chorley Borough Council,http://statistics.data.gov.uk/id/local-authority/30UE,Central Support Services,1009,Health Environment & Neighbourhoods,Impounded Dogs Costs,40207,Miscellaneous Expenses,5034,Kennelling fees for 2015/16,31/03/2016,111060,312.50,Revenue,Glencoe Boarding Kennels,16734
Chorley Borough Council,http://statistics.data.gov.uk/id/local-authority/30UE,Capital,Capital,Governance,Purchase Money,3027,Capital Expenditure,Capital,,02/03/2016,109703,"1,350.00",Capital,Glenvale Transport Ltd,74329
Chorley Borough Council,http://statistics.data.gov.uk/id/local-authority/30UE,Capital,Capital,Governance,Purchase Money,3027,Capital Expenditure,Capital,,02/03/2016,110146,"12,150.00",Capital,Glenvale Transport Ltd,74329
Chorley Borough Council,http://statistics.data.gov.uk/id/local-authority/30UE,Corporate Management,1008,Shared Service Arrangement,External Audit,40064,Services,5027,2014-15 External Audit Fee,24/03/2016,110979,"15,310.00",Revenue,Grant Thornton UK LLP,57322
Chorley Borough Council,http://statistics.data.gov.uk/id/local-authority/30UE,Corporate Management,1008,Shared Service Arrangement,External Audit,40064,Services,5027,2015-16 External Audit Fee,18/03/2016,110768,"11,313.75",Revenue,Grant Thornton UK LLP,57322
Chorley Borough Council,http://statistics.data.gov.uk/id/local-authority/30UE,Corporate Management,1008,Shared Service Arrangement,HM Land Registry Fees,40174,Miscellaneous Expenses,5034,Environment,02/03/2016,110329,3.00,Revenue,H M Land Registry,17567
Chorley Borough Council,http://statistics.data.gov.uk/id/local-authority/30UE,Central Support Services,1009,Shared Service Arrangement,HM Land Registry Fees,40174,Miscellaneous Expenses,5034,Environment,31/03/2016,111177,13.00,Revenue,H M Land Registry,17567
Chorley Borough Council,http://statistics.data.gov.uk/id/local-authority/30UE,Housing Strategy,1069,Shared Service Arrangement,HM Land Registry Fees,40174,Miscellaneous Expenses,5034,Housing,30/03/2016,110633,6.00,Revenue,H M Land Registry,17567
Chorley Borough Council,http://statistics.data.gov.uk/id/local-authority/30UE,Housing Strategy,1069,Shared Service Arrangement,HM Land Registry Fees,40174,Miscellaneous Expenses,5034,Housing,31/03/2016,111177,9.00,Revenue,H M Land Registry,17567
Chorley Borough Council,http://statistics.data.gov.uk/id/local-authority/30UE,Housing Strategy,1069,Shared Service Arrangement,HM Land Registry Fees,40174,Miscellaneous Expenses,5034,Housing needs,02/03/2016,110329,3.00,Revenue,H M Land Registry,17567
Chorley Borough Council,http://statistics.data.gov.uk/id/local-authority/30UE,Unapportionable Central OHeads,1009,Shared Service Arrangement,HM Land Registry Fees,40174,Miscellaneous Expenses,5034,Legal,02/03/2016,110329,163.00,Revenue,H M Land Registry,17567
Chorley Borough Council,http://statistics.data.gov.uk/id/local-authority/30UE,Unapportionable Central OHeads,1009,Shared Service Arrangement,HM Land Registry Fees,40174,Miscellaneous Expenses,5034,Legal,30/03/2016,110633,6.00,Revenue,H M Land Registry,17567
Chorley Borough Council,http://statistics.data.gov.uk/id/local-authority/30UE,Unapportionable Central OHeads,1009,Shared Service Arrangement,HM Land Registry Fees,40174,Miscellaneous Expenses,5034,Legal,31/03/2016,111177,73.00,Revenue,H M Land Registry,17567
Chorley Borough Council,http://statistics.data.gov.uk/id/local-authority/30UE,Unapportionable Central OHeads,1009,Shared Service Arrangement,HM Land Registry Fees,40174,Miscellaneous Expenses,5034,Liberata,02/03/2016,110329,115.00,Revenue,H M Land Registry,17567
Chorley Borough Council,http://statistics.data.gov.uk/id/local-authority/30UE,Unapportionable Central OHeads,1009,Shared Service Arrangement,HM Land Registry Fees,40174,Miscellaneous Expenses,5034,Liberata,30/03/2016,110633,82.00,Revenue,H M Land Registry,17567
Chorley Borough Council,http://statistics.data.gov.uk/id/local-authority/30UE,Unapportionable Central OHeads,1009,Shared Service Arrangement,HM Land Registry Fees,40174,Miscellaneous Expenses,5034,Liberata,31/03/2016,111177,229.00,Revenue,H M Land Registry,17567
Chorley Borough Council,http://statistics.data.gov.uk/id/local-authority/30UE,Unapportionable Central OHeads,1009,Shared Service Arrangement,HM Land Registry Fees,40174,Miscellaneous Expenses,5034,Local Tax,02/03/2016,110329,63.00,Revenue,H M Land Registry,17567
Chorley Borough Council,http://statistics.data.gov.uk/id/local-authority/30UE,Unapportionable Central OHeads,1009,Shared Service Arrangement,HM Land Registry Fees,40174,Miscellaneous Expenses,5034,Local tax,30/03/2016,110633,21.00,Revenue,H M Land Registry,17567
Chorley Borough Council,http://statistics.data.gov.uk/id/local-authority/30UE,Unapportionable Central OHeads,1009,Shared Service Arrangement,HM Land Registry Fees,40174,Miscellaneous Expenses,5034,Local tax,31/03/2016,111177,30.00,Revenue,H M Land Registry,17567
Chorley Borough Council,http://statistics.data.gov.uk/id/local-authority/30UE,Central Support Services,1009,Shared Service Arrangement,HM Land Registry Fees,40174,Miscellaneous Expenses,5034,People,31/03/2016,111177,30.00,Revenue,H M Land Registry,17567
Chorley Borough Council,http://statistics.data.gov.uk/id/local-authority/30UE,Development Control,1091,Shared Service Arrangement,HM Land Registry Fees,40174,Miscellaneous Expenses,5034,Planning,02/03/2016,110329,271.00,Revenue,H M Land Registry,17567
Chorley Borough Council,http://statistics.data.gov.uk/id/local-authority/30UE,Development Control,1091,Shared Service Arrangement,HM Land Registry Fees,40174,Miscellaneous Expenses,5034,Planning,30/03/2016,110633,219.00,Revenue,H M Land Registry,17567
Chorley Borough Council,http://statistics.data.gov.uk/id/local-authority/30UE,Development Control,1091,Shared Service Arrangement,HM Land Registry Fees,40174,Miscellaneous Expenses,5034,Planning,31/03/2016,111177,118.00,Revenue,H M Land Registry,17567
Chorley Borough Council,http://statistics.data.gov.uk/id/local-authority/30UE,Corporate Management,1008,Shared Service Arrangement,HM Land Registry Fees,40174,Miscellaneous Expenses,5034,People,02/03/2016,110329,45.00,Revenue,H M Land Registry,17567
Chorley Borough Council,http://statistics.data.gov.uk/id/local-authority/30UE,Unapportionable Central OHeads,1009,Shared Service Arrangement,HM Land Registry Fees,40174,Miscellaneous Expenses,5034,Revs and Bens,02/03/2016,110329,15.00,Revenue,H M Land Registry,17567
Chorley Borough Council,http://statistics.data.gov.uk/id/local-authority/30UE,Unapportionable Central OHeads,1009,Shared Service Arrangement,HM Land Registry Fees,40174,Miscellaneous Expenses,5034,Revs and Bens,30/03/2016,110633,3.00,Revenue,H M Land Registry,17567
Chorley Borough Council,http://statistics.data.gov.uk/id/local-authority/30UE,Unapportionable Central OHeads,1009,Shared Service Arrangement,HM Land Registry Fees,40174,Miscellaneous Expenses,5034,Revs and Bens,31/03/2016,111177,12.00,Revenue,H M Land Registry,17567
Chorley Borough Council,http://statistics.data.gov.uk/id/local-authority/30UE,Economic Development,1096,Shared Service Arrangement,Miscellaneous Expenses,40200,Miscellaneous Expenses,5034,Econ Devel,30/03/2016,110633,32.00,Revenue,H M Land Registry,17567
Chorley Borough Council,http://statistics.data.gov.uk/id/local-authority/30UE,Corporate Management,1008,Shared Service Arrangement,Miscellaneous Expenses,40200,Miscellaneous Expenses,5034,Environment,30/03/2016,110633,28.00,Revenue,H M Land Registry,17567
Chorley Borough Council,http://statistics.data.gov.uk/id/local-authority/30UE,Corporate Management,1008,Shared Service Arrangement,Miscellaneous Expenses,40200,Miscellaneous Expenses,5034,People,30/03/2016,110633,12.00,Revenue,H M Land Registry,17567
Chorley Borough Council,http://statistics.data.gov.uk/id/local-authority/30UE,Corporate Management,1008,Shared Service Arrangement,Miscellaneous Expenses,40200,Miscellaneous Expenses,5034,Policy,02/03/2016,110329,37.00,Revenue,H M Land Registry,17567
Chorley Borough Council,http://statistics.data.gov.uk/id/local-authority/30UE,Elections,1012,Governance,Computer Software-Maintenance,40107,Communication and Computing,5028,Annual Support I Maintenance for Eros Scanning and Avantguard auto 1 April 2016 - 31 March 2017,24/03/2016,111017,"7,911.26",Revenue,Halarose Limited,18133
Chorley Borough Council,http://statistics.data.gov.uk/id/local-authority/30UE,Business Support,1095,Economic Development,Grants To Other Organisations,40127,Grants and Subscriptions,5031,,24/03/2016,110997,"1,101.50",Revenue,Hallmark Chorley,72503
Chorley Borough Council,http://statistics.data.gov.uk/id/local-authority/30UE,Business Support,1095,Economic Development,Grants To Other Organisations,40127,Grants and Subscriptions,5031,,09/03/2016,110326,500.00,Revenue,Havana Brasserie Ltd,72660
Chorley Borough Council,http://statistics.data.gov.uk/id/local-authority/30UE,Business Support,1095,Economic Development,Grants To Other Organisations,40127,Grants and Subscriptions,5031,,09/03/2016,110326,"2,400.48",Revenue,Havana Brasserie Ltd,72660
Chorley Borough Council,http://statistics.data.gov.uk/id/local-authority/30UE,Unapportionable Central OHeads,1009,"Customer, ICT & Transactional",General Subscriptions,40146,Grants and Subscriptions,5031,Annual subscription to hbinfo until 31st March 2017 - `A` rate.,02/03/2016,110312,399.00,Revenue,Hbinfo Ltd,19710
Chorley Borough Council,http://statistics.data.gov.uk/id/local-authority/30UE,Business Support,1095,Economic Development,Miscellaneous Expenses,40200,Miscellaneous Expenses,5034,,31/03/2016,111138,"7,500.00",Revenue,Henry Alty Limited,22048
Chorley Borough Council,http://statistics.data.gov.uk/id/local-authority/30UE,Capital,Capital,Streetscene & Leisure Contracts,Equipment,3014,Capital Expenditure,Capital,500No. Fixed Leg Pedestrian Barrier 2.3m,31/03/2016,111162,"9,475.00",Capital,Heras Readyfence Hire & Sales,74680
Chorley Borough Council,http://statistics.data.gov.uk/id/local-authority/30UE,Control Accounts,Control,Governance,Manual Control Account,1,Balance Sheet,Balance,,24/03/2016,110841,"1,772.59",Revenue,Hispec Electrical Products,74900
Chorley Borough Council,http://statistics.data.gov.uk/id/local-authority/30UE,Other Short Term Debtors,,Shared Service Arrangement,General Balances,100,Balance Sheet,Balance,VAT,02/03/2016,110292,"64,718.61",Revenue,HM Customs And Excise,17569
Chorley Borough Council,http://statistics.data.gov.uk/id/local-authority/30UE,Central Support Services,1009,Health Environment & Neighbourhoods,Community Develop Initiatives,40185,Miscellaneous Expenses,5034,To provide cr�che support staff for 6 weekly sessions for Lifestyle Cooking programme,31/03/2016,111103,300.00,Revenue,Home-Start Central Lancashire Ltd,20585
Chorley Borough Council,http://statistics.data.gov.uk/id/local-authority/30UE,Democratic Represent and  Mgnt,1007,Governance,Grants To Other Organisations,40127,Grants and Subscriptions,5031,,16/03/2016,110854,250.00,Revenue,Home-Start Central Lancashire Ltd,20585
Chorley Borough Council,http://statistics.data.gov.uk/id/local-authority/30UE,Business Support,1095,Economic Development,Cleaning/Attendants' Services,20041,Cleaning and Domestic Supplies,5012,Daily Cleaning Services for Market Walk SC February 2016,04/03/2016,110389,"4,043.04",Revenue,Interserve,70619
Chorley Borough Council,http://statistics.data.gov.uk/id/local-authority/30UE,Community Development,1097,Governance,Rent/Hire Of Premises,20017,Premises Rents,5007,"Rent and insurance charge for 35-39 Market Street, Chorley.",11/03/2016,110680,"7,218.75",Revenue,J R Keys,17124
Chorley Borough Council,http://statistics.data.gov.uk/id/local-authority/30UE,Business Support,1095,Economic Development,Refuse Collection,20037,Cleaning and Domestic Supplies,5012,To supply Waste Compactor services to MWSC HD260TR Serial No: 02601707021135 March 2016,02/03/2016,110316,270.00,Revenue,J&H Rentals Limited,70699
Chorley Borough Council,http://statistics.data.gov.uk/id/local-authority/30UE,Business Support,1095,Economic Development,Grants To Other Organisations,40127,Grants and Subscriptions,5031,,24/03/2016,110996,"5,000.34",Revenue,Jagdish Patel (t/a Outdoor Land Ltd),70090
Chorley Borough Council,http://statistics.data.gov.uk/id/local-authority/30UE,Democratic Represent and  Mgnt,1007,Streetscene & Leisure Contracts,Exhibitions & Special Events,40158,Miscellaneous Expenses,5034,15 televisions at 275.00 each for the Sacrifice Exhibition - Astley Farmhouse = 4125.00,04/03/2016,110142,"3,437.50",Revenue,James Smith & Son Ltd,74244
Chorley Borough Council,http://statistics.data.gov.uk/id/local-authority/30UE,Corporate Management,1008,Shared Service Arrangement,Employee Related Insurance,18003,Indirect Employee Expenses,5002,car & terrorism,02/03/2016,110231,"1,095.00",Revenue,JLT Speciality Ltd,52747
Chorley Borough Council,http://statistics.data.gov.uk/id/local-authority/30UE,Corporate Management,1008,Shared Service Arrangement,Employee Related Insurance,18003,Indirect Employee Expenses,5002,computers & terrorism,02/03/2016,110232,"4,486.17",Revenue,JLT Speciality Ltd,52747
Chorley Borough Council,http://statistics.data.gov.uk/id/local-authority/30UE,Corporate Management,1008,Shared Service Arrangement,Employee Related Insurance,18003,Indirect Employee Expenses,5002,Property and terrorism insurance,16/03/2016,110230,"88,240.26",Revenue,JLT Speciality Ltd,52747
Chorley Borough Council,http://statistics.data.gov.uk/id/local-authority/30UE,Service Management & Support,1009,Streetscene & Leisure Contracts,Supplies-Grounds Maintenance,40025,"Equipment, Furniture & Materia",5023,10 @ 3.6m x150mm x 25mm,09/03/2016,110606,28.50,Revenue,John H Mayor & Sons Ltd,16635
Chorley Borough Council,http://statistics.data.gov.uk/id/local-authority/30UE,Service Management & Support,1009,Streetscene & Leisure Contracts,Supplies-Grounds Maintenance,40025,"Equipment, Furniture & Materia",5023,20 @ 1.2m x 75mm x 75mm birdsmouth post,09/03/2016,110606,81.60,Revenue,John H Mayor & Sons Ltd,16635
Chorley Borough Council,http://statistics.data.gov.uk/id/local-authority/30UE,Service Management & Support,1009,Streetscene & Leisure Contracts,Supplies-Grounds Maintenance,40025,"Equipment, Furniture & Materia",5023,20 @ 3.6m x 100mm x 39mm,09/03/2016,110606,65.60,Revenue,John H Mayor & Sons Ltd,16635
Chorley Borough Council,http://statistics.data.gov.uk/id/local-authority/30UE,Service Management & Support,1009,Streetscene & Leisure Contracts,Supplies-Grounds Maintenance,40025,"Equipment, Furniture & Materia",5023,20 @ 3.6m x 150mm x 50mm green timber,09/03/2016,110606,129.60,Revenue,John H Mayor & Sons Ltd,16635
Chorley Borough Council,http://statistics.data.gov.uk/id/local-authority/30UE,Service Management & Support,1009,Streetscene & Leisure Contracts,Supplies-Grounds Maintenance,40025,"Equipment, Furniture & Materia",5023,"30 -  3.5`` x 1.5`` wooden rails 200 - 6` x 6`` featherboards6`` metal bolts - 50",09/03/2016,110560,317.10,Revenue,John H Mayor & Sons Ltd,16635
Chorley Borough Council,http://statistics.data.gov.uk/id/local-authority/30UE,Service Management & Support,1009,Streetscene & Leisure Contracts,Supplies-Grounds Maintenance,40025,"Equipment, Furniture & Materia",5023,30 @ 3.6m x 75mm x 75mm,09/03/2016,110606,145.80,Revenue,John H Mayor & Sons Ltd,16635
Chorley Borough Council,http://statistics.data.gov.uk/id/local-authority/30UE,Service Management & Support,1009,Streetscene & Leisure Contracts,Supplies-Grounds Maintenance,40025,"Equipment, Furniture & Materia",5023,Please supply 20 x Railway Sleepers,09/03/2016,110559,420.00,Revenue,John H Mayor & Sons Ltd,16635
Chorley Borough Council,http://statistics.data.gov.uk/id/local-authority/30UE,Corporate Management,1008,Policy & Performance,Publicity - Advertising,40157,Miscellaneous Expenses,5034,2 Half Page adverts in the Chorley Guardian for Half Term and Mother`s Day,31/03/2016,110543,326.21,Revenue,Johnston Publishing Ltd,20072
Chorley Borough Council,http://statistics.data.gov.uk/id/local-authority/30UE,Development Control,1091,Planning,Statutory Notices,40160,Miscellaneous Expenses,5034,Planning Public Notices to appear in the Chorley Guardian April 2015 to March 2016,02/03/2016,110275,424.50,Revenue,Johnston Publishing Ltd,20072
Chorley Borough Council,http://statistics.data.gov.uk/id/local-authority/30UE,Development Control,1091,Planning,Statutory Notices,40160,Miscellaneous Expenses,5034,Planning Public Notices to appear in the Chorley Guardian April 2015 to March 2016,18/03/2016,110737,577.32,Revenue,Johnston Publishing Ltd,20072
Chorley Borough Council,http://statistics.data.gov.uk/id/local-authority/30UE,Development Control,1091,Planning,Statutory Notices,40160,Miscellaneous Expenses,5034,Planning Public Notices to appear in the Chorley Guardian April 2015 to March 2016,31/03/2016,111019,475.44,Revenue,Johnston Publishing Ltd,20072
Chorley Borough Council,http://statistics.data.gov.uk/id/local-authority/30UE,Capital,Capital,Housing,Grants,3002,Capital Expenditure,Capital,ADDRESS REDACTED,31/03/2016,111109,"4,120.00",Capital,K Berry Ltd,16421
Chorley Borough Council,http://statistics.data.gov.uk/id/local-authority/30UE,Capital,Capital,Housing,Grants,3002,Capital Expenditure,Capital,ADDRESS REDACTED,31/03/2016,111110,"3,480.00",Capital,K Berry Ltd,16421
Chorley Borough Council,http://statistics.data.gov.uk/id/local-authority/30UE,Capital,Capital,Housing,Grants,3002,Capital Expenditure,Capital,,24/03/2016,111041,"1,445.00",Capital,K Berry Ltd,16421
Chorley Borough Council,http://statistics.data.gov.uk/id/local-authority/30UE,Capital,Capital,Housing,Grants,3002,Capital Expenditure,Capital,,24/03/2016,111044,640.00,Capital,K Berry Ltd,16421
Chorley Borough Council,http://statistics.data.gov.uk/id/local-authority/30UE,Capital,Capital,Housing,Grants,3002,Capital Expenditure,Capital,,31/03/2016,111111,"3,715.00",Capital,K Berry Ltd,16421
Chorley Borough Council,http://statistics.data.gov.uk/id/local-authority/30UE,Capital,Capital,Housing,Grants,3002,Capital Expenditure,Capital,,31/03/2016,111112,"2,030.00",Capital,K Berry Ltd,16421
Chorley Borough Council,http://statistics.data.gov.uk/id/local-authority/30UE,Service Management & Support,1009,Streetscene & Leisure Contracts,Entry Fees,40237,Miscellaneous Expenses,5034,"Green Flag Application Award Fee for Astley Park, Chorley",09/03/2016,110351,363.00,Revenue,Keep Britain Tidy,22196
Chorley Borough Council,http://statistics.data.gov.uk/id/local-authority/30UE,Service Management & Support,1009,Streetscene & Leisure Contracts,Entry Fees,40237,Miscellaneous Expenses,5034,Green Flag Application Award Fee for Yarrow Valley Country Park,09/03/2016,110354,363.00,Revenue,Keep Britain Tidy,22196
Chorley Borough Council,http://statistics.data.gov.uk/id/local-authority/30UE,Service Management & Support,1009,Streetscene & Leisure Contracts,Entry Fees,40237,Miscellaneous Expenses,5034,Green Flag Application award for fee for Coronation Recreation Ground,09/03/2016,110352,312.00,Revenue,Keep Britain Tidy,22196
Chorley Borough Council,http://statistics.data.gov.uk/id/local-authority/30UE,Service Management & Support,1009,Streetscene & Leisure Contracts,Entry Fees,40237,Miscellaneous Expenses,5034,Green Flag Application Fee for Tatton Recreation Ground,09/03/2016,110353,312.00,Revenue,Keep Britain Tidy,22196
Chorley Borough Council,http://statistics.data.gov.uk/id/local-authority/30UE,Service Management & Support,1009,Streetscene & Leisure Contracts,Entry Fees,40237,Miscellaneous Expenses,5034,Green Flag Application Fee for Withnell Local Nature Reserve,09/03/2016,110350,312.00,Revenue,Keep Britain Tidy,22196
Chorley Borough Council,http://statistics.data.gov.uk/id/local-authority/30UE,Unapportionable Central OHeads,1009,Shared Service Arrangement,Consultants` Fees,40077,Services,5027,Alternate Financing Briefing Paper,04/03/2016,110242,"3,000.00",Revenue,KPMG LLP,74550
Chorley Borough Council,http://statistics.data.gov.uk/id/local-authority/30UE,Control Accounts,Control,Shared Service Arrangement,General Balances,100,Balance Sheet,Balance,,18/03/2016,110911,"1,166.85",Revenue,Labour Councillors Association,17577
Chorley Borough Council,http://statistics.data.gov.uk/id/local-authority/30UE,Service Management & Support,1009,Streetscene & Leisure Contracts,Tools & Equipment - Maintenance,40005,"Equipment, Furniture & Materia",5023,Carryout servicing and calibration of of Chorley Council CAT and Genny devices as requested,31/03/2016,110210,374.50,Revenue,Lambda Calibration Ltd,73724
Chorley Borough Council,http://statistics.data.gov.uk/id/local-authority/30UE,Parking Services,1066,Health Environment & Neighbourhoods,Car Park Lamps,20064,Grounds Maintenance Costs,5013,lighting and electrical for carparks,18/03/2016,106374,"1,357.06",Revenue,Lancashire County Council,20027
Chorley Borough Council,http://statistics.data.gov.uk/id/local-authority/30UE,Service Management & Support,1009,Streetscene & Leisure Contracts,External Contractor,40198,Miscellaneous Expenses,5034,Additional brown tourist signs for Astley Hall & Park as per agreed schedule,16/03/2016,110790,"1,737.00",Revenue,Lancashire County Council,17758
Chorley Borough Council,http://statistics.data.gov.uk/id/local-authority/30UE,Capital,Capital,Housing,Grants,3002,Capital Expenditure,Capital,ADDRESS REDACTED,02/03/2016,110271,"8,435.00",Capital,Lancashire County Council,17758
Chorley Borough Council,http://statistics.data.gov.uk/id/local-authority/30UE,Capital,Capital,Housing,Grants,3002,Capital Expenditure,Capital,ADDRESS REDACTED,11/03/2016,110756,569.25,Capital,Lancashire County Council,17758
Chorley Borough Council,http://statistics.data.gov.uk/id/local-authority/30UE,Capital,Capital,Housing,Grants,3002,Capital Expenditure,Capital,,24/03/2016,111042,"3,768.12",Capital,Lancashire County Council,17758
Chorley Borough Council,http://statistics.data.gov.uk/id/local-authority/30UE,Capital,Capital,Housing,Grants,3002,Capital Expenditure,Capital,,24/03/2016,111046,"2,923.00",Capital,Lancashire County Council,17758
Chorley Borough Council,http://statistics.data.gov.uk/id/local-authority/30UE,Capital,Capital,Housing,Grants,3002,Capital Expenditure,Capital,,24/03/2016,111047,"2,660.00",Capital,Lancashire County Council,17758
Chorley Borough Council,http://statistics.data.gov.uk/id/local-authority/30UE,Precepts and Collection Fund,Precepts,Shared Service Arrangement,LCC Precept,2009,Precepts & Collection Fund,Precept,,02/03/2016,110347,"3,975,062.00",Revenue,Lancashire County Council,18386
Chorley Borough Council,http://statistics.data.gov.uk/id/local-authority/30UE,Precepts and Collection Fund,Precepts,Shared Service Arrangement,LCC Precept,2009,Precepts & Collection Fund,Precept,,30/03/2016,111089,"3,975,062.00",Revenue,Lancashire County Council,18386
Chorley Borough Council,http://statistics.data.gov.uk/id/local-authority/30UE,Collection Fund Revenue Accoun,,Shared Service Arrangement,NNDR County Share,2036,Precepts & Collection Fund,Precept,,02/03/2016,110347,"247,375.00",Revenue,Lancashire County Council,18386
Chorley Borough Council,http://statistics.data.gov.uk/id/local-authority/30UE,Collection Fund Revenue Accoun,,Shared Service Arrangement,NNDR County Share,2036,Precepts & Collection Fund,Precept,,30/03/2016,111089,"247,375.00",Revenue,Lancashire County Council,18386
Chorley Borough Council,http://statistics.data.gov.uk/id/local-authority/30UE,Capital,Capital,Streetscene & Leisure Contracts,Other Contractor,3012,Capital Expenditure,Capital,"Design, production & installation of brown tourist signs for Astley Hall & Park. ",16/03/2016,110789,"6,001.58",Capital,Lancashire County Council,17758
Chorley Borough Council,http://statistics.data.gov.uk/id/local-authority/30UE,Building Control,1090,Shared Service Arrangement,Pensions Increase Act Payments,18005,Indirect Employee Expenses,5002,CAY Pension recharges,02/03/2016,110263,"18,441.14",Revenue,Lancashire County Council,18386
Chorley Borough Council,http://statistics.data.gov.uk/id/local-authority/30UE,Building Control,1090,Shared Service Arrangement,Pensions Increase Act Payments,18005,Indirect Employee Expenses,5002,Pension strain,02/03/2016,110263,"14,291.38",Revenue,Lancashire County Council,18386
Chorley Borough Council,http://statistics.data.gov.uk/id/local-authority/30UE,Unapportionable Central OHeads,1009,Shared Service Arrangement,Pensions Increase Act Payments,18005,Indirect Employee Expenses,5002,,02/03/2016,110323,"18,248.04",Revenue,Lancashire County Council,18386
Chorley Borough Council,http://statistics.data.gov.uk/id/local-authority/30UE,Unapportionable Central OHeads,1009,Shared Service Arrangement,Pensions Increase Act Payments,18005,Indirect Employee Expenses,5002,,02/03/2016,110324,"18,187.67",Revenue,Lancashire County Council,18386
Chorley Borough Council,http://statistics.data.gov.uk/id/local-authority/30UE,Unapportionable Central OHeads,1009,Shared Service Arrangement,Pensions Increase Act Payments,18005,Indirect Employee Expenses,5002,,31/03/2016,111174,"18,312.48",Revenue,Lancashire County Council,18386
Chorley Borough Council,http://statistics.data.gov.uk/id/local-authority/30UE,Service Management & Support,1009,Streetscene & Leisure Contracts,Vehicle Maintenance,30045,Direct Transport Costs,5016,Replace gear knob on RV14DVB as required,09/03/2016,110563,304.09,Revenue,LANCASHIRE DAF,18149
Chorley Borough Council,http://statistics.data.gov.uk/id/local-authority/30UE,Corporate Management,1008,Policy & Performance,Other Fees,40212,Miscellaneous Expenses,5034,Subsidy for the provision of a Meals on Wheels service in Chorley - 4 weeks up to 21 February,02/03/2016,110284,844.54,Revenue,Lancashire Fayre,62967
Chorley Borough Council,http://statistics.data.gov.uk/id/local-authority/30UE,Unapportionable Central OHeads,1009,Shared Service Arrangement,Pensions Deficit Recovery Contributions,12003,Direct Employee Expenses,5001,,02/03/2016,110486,"69,325.00",Revenue,Lancashire Pensions Services,16696
Chorley Borough Council,http://statistics.data.gov.uk/id/local-authority/30UE,Unapportionable Central OHeads,1009,Shared Service Arrangement,Pensions Deficit Recovery Contributions,12003,Direct Employee Expenses,5001,,02/03/2016,110487,"69,325.00",Revenue,Lancashire Pensions Services,16696
Chorley Borough Council,http://statistics.data.gov.uk/id/local-authority/30UE,Unapportionable Central OHeads,1009,Shared Service Arrangement,Pensions Deficit Recovery Contributions,12003,Direct Employee Expenses,5001,,30/03/2016,111074,"69,325.00",Revenue,Lancashire Pensions Services,16696
Chorley Borough Council,http://statistics.data.gov.uk/id/local-authority/30UE,Corporate Management,1008,Streetscene & Leisure Contracts,Clinical Waste Collection,50007,Private Contractors,5042,Disposal of Clinical waste from Chorley Households. April 2015 to March 2016 yellow bag collections approx 550 per month..,24/03/2016,110968,967.67,Revenue,Lancashire Teaching Hospitals NHS FT,19003
Chorley Borough Council,http://statistics.data.gov.uk/id/local-authority/30UE,Control Accounts,Control,Shared Service Arrangement,Manual Control Account,1,Balance Sheet,Balance,REFUND,31/03/2016,CRREF49,"1,216.40",Revenue,Lancashire Teaching Hospitals NHS FT,19003
Chorley Borough Council,http://statistics.data.gov.uk/id/local-authority/30UE,Precepts and Collection Fund,Precepts,Shared Service Arrangement,LCFA Precept,2011,Precepts & Collection Fund,Precept,,02/03/2016,110346,"228,207.00",Revenue,Lancs Combined Fire Authority,17768
Chorley Borough Council,http://statistics.data.gov.uk/id/local-authority/30UE,Precepts and Collection Fund,Precepts,Shared Service Arrangement,LCFA Precept,2011,Precepts & Collection Fund,Precept,,30/03/2016,111090,"228,207.00",Revenue,Lancs Combined Fire Authority,17768
Chorley Borough Council,http://statistics.data.gov.uk/id/local-authority/30UE,Collection Fund Revenue Accoun,,Shared Service Arrangement,NNDR Fire Share,2037,Precepts & Collection Fund,Precept,,02/03/2016,110346,"27,846.00",Revenue,Lancs Combined Fire Authority,17768
Chorley Borough Council,http://statistics.data.gov.uk/id/local-authority/30UE,Collection Fund Revenue Accoun,,Shared Service Arrangement,NNDR Fire Share,2037,Precepts & Collection Fund,Precept,,30/03/2016,111090,"27,486.00",Revenue,Lancs Combined Fire Authority,17768
Chorley Borough Council,http://statistics.data.gov.uk/id/local-authority/30UE,Collection Fund Revenue Accoun,,Shared Service Arrangement,NNDR Fire Share,2037,Precepts & Collection Fund,Precept,,30/03/2016,111090,-360.00,Revenue,Lancs Combined Fire Authority,17768
Chorley Borough Council,http://statistics.data.gov.uk/id/local-authority/30UE,Development Control,1091,Governance,Legal Fees,40171,Miscellaneous Expenses,5034,Advice in relation to planning applications (S.73 applications and reserved matters),11/03/2016,110571,"1,400.00",Revenue,Landmark Chambers,56730
Chorley Borough Council,http://statistics.data.gov.uk/id/local-authority/30UE,Control Accounts,Control,Shared Service Arrangement,Manual Control Account,1,Balance Sheet,Balance,refund,18/03/2016,CRREF47,"1,800.00",Revenue,Landmark Chambers,56730
Chorley Borough Council,http://statistics.data.gov.uk/id/local-authority/30UE,Unapportionable Central OHeads,1009,Governance,Professional Fees,40063,Services,5027,Professional Fees in respect of Rhodri Price Lewis QC 12/02/2016 - Joint opinion,04/03/2016,110391,"1,750.00",Revenue,Landmark Chambers,56730
Chorley Borough Council,http://statistics.data.gov.uk/id/local-authority/30UE,Unapportionable Central OHeads,1009,"Customer, ICT & Transactional",Service Fees,40056,Services,5027,Annual fee for language services,18/03/2016,110874,295.00,Revenue,Language Line Ltd,16342
Chorley Borough Council,http://statistics.data.gov.uk/id/local-authority/30UE,Central Support Services,1009,"Customer, ICT & Transactional",Computer Software-Maintenance,40107,Communication and Computing,5028,SharePoint Business Data List Connector Annual Software Assurance Duration: 2016-04-01 - 31.03.2017 ,30/03/2016,110665,420.00,Revenue,Layer2,60484
Chorley Borough Council,http://statistics.data.gov.uk/id/local-authority/30UE,Housing Strategy,1069,Housing,Miscellaneous Expenses,40200,Miscellaneous Expenses,5034,Training for Chorley Council Digital Inclusion Sessions,04/03/2016,110016,"4,840.78",Revenue,learndirect Ltd,74290
Chorley Borough Council,http://statistics.data.gov.uk/id/local-authority/30UE,Unapportionable Central OHeads,1009,Shared Service Arrangement,Car Leasing Payment,14100,Direct Employee Expenses,5001,vat,31/03/2016,110924,278.17,Revenue,LeasePlan UK Ltd T/A Automotive Leasing,65197
Chorley Borough Council,http://statistics.data.gov.uk/id/local-authority/30UE,Corporate Management,1008,Shared Service Arrangement,Car Leasing Payment,14100,Direct Employee Expenses,5001,vat,31/03/2016,110969,300.19,Revenue,LeasePlan UK Ltd T/A Automotive Leasing,65197
Chorley Borough Council,http://statistics.data.gov.uk/id/local-authority/30UE,Unapportionable Central OHeads,1009,Shared Service Arrangement,Car Leasing Payment,14100,Direct Employee Expenses,5001,Car Leasing,31/03/2016,110924,"3,049.72",Revenue,LeasePlan UK Ltd T/A Automotive Leasing,65197
Chorley Borough Council,http://statistics.data.gov.uk/id/local-authority/30UE,Corporate Management,1008,Shared Service Arrangement,Car Leasing Payment,14100,Direct Employee Expenses,5001,Car Leasing,31/03/2016,110969,"3,370.28",Revenue,LeasePlan UK Ltd T/A Automotive Leasing,65197
Chorley Borough Council,http://statistics.data.gov.uk/id/local-authority/30UE,Control Accounts,Control,Shared Service Arrangement,Manual Control Account,1,Balance Sheet,Balance,,31/03/2016,110924,-278.17,Revenue,LeasePlan UK Ltd T/A Automotive Leasing,65197
Chorley Borough Council,http://statistics.data.gov.uk/id/local-authority/30UE,Control Accounts,Control,Shared Service Arrangement,Manual Control Account,1,Balance Sheet,Balance,,31/03/2016,110969,-300.19,Revenue,LeasePlan UK Ltd T/A Automotive Leasing,65197
Chorley Borough Council,http://statistics.data.gov.uk/id/local-authority/30UE,Unapportionable Central OHeads,1009,Governance,Asset Maintenance Fund,20012,Repairs Maintenance & Alts,5005,"Deep clean, sanitise and deodorise Lancastrian and bar carpets 13 January 2016",04/03/2016,109943,550.00,Revenue,Leyland Cleaning Services Limited,21612
Chorley Borough Council,http://statistics.data.gov.uk/id/local-authority/30UE,Unapportionable Central OHeads,1009,Shared Service Arrangement,General Subscriptions,40146,Grants and Subscriptions,5031,2016/17 annual subscription to the Financial Intelligence Toolkit. for Chorley Borough Council.,09/03/2016,110529,"3,980.00",Revenue,LG Futures,22551
Chorley Borough Council,http://statistics.data.gov.uk/id/local-authority/30UE,Unapportionable Central OHeads,1009,Governance,Asset Maintenance Fund,20012,Repairs Maintenance & Alts,5005,Feb-16,09/03/2016,110550,500.00,Revenue,Liberata UK,20716
Chorley Borough Council,http://statistics.data.gov.uk/id/local-authority/30UE,Unapportionable Central OHeads,1009,HR & Org. Development,Legal Fees,40171,Miscellaneous Expenses,5034,Legal Fees re Investigation,24/03/2016,111010,750.00,Revenue,Linder Myers,75049
Chorley Borough Council,http://statistics.data.gov.uk/id/local-authority/30UE,Central Support Services,1009,Governance,Miscellaneous Expenses,40200,Miscellaneous Expenses,5034,Double page Chorley Grand Prix advertisement in the March edition of Chorley Life magazine,31/03/2016,111148,468.00,Revenue,Local Life 247 Ltd.,63624
Chorley Borough Council,http://statistics.data.gov.uk/id/local-authority/30UE,Development Control,1091,Chief Executives Office,Conferences - Staff,40120,Expenses,5030,Planning Enforcement Conference,24/03/2016,110760,395.00,Revenue,LSR Solicitors,74904
Chorley Borough Council,http://statistics.data.gov.uk/id/local-authority/30UE,Central Support Services,1009,Streetscene & Leisure Contracts,Miscellaneous Expenses,40200,Miscellaneous Expenses,5034,"Tree Work as per quotation from spec on annotated plans for Eaves Green, Chorley. To be completed by the end of Feb",02/03/2016,110272,"4,000.00",Revenue,M J Walker,62044
Chorley Borough Council,http://statistics.data.gov.uk/id/local-authority/30UE,Capital,Capital,Streetscene & Leisure Contracts,Main Contractor,3007,Capital Expenditure,Capital,Shot blasting of double gates and 2 single gates from Knowley Brow Play Area. undercoat and repaint black,24/03/2016,110824,400.00,Capital,M W Rainford,17057
Chorley Borough Council,http://statistics.data.gov.uk/id/local-authority/30UE,Central Support Services,1009,Health Environment & Neighbourhoods,Miscellaneous Expenses,40200,Miscellaneous Expenses,5034,Mediation Service - 6 cases @ 600 per case,04/03/2016,110161,"3,600.00",Revenue,MANCHESTER CITY COUNCIL,18212
Chorley Borough Council,http://statistics.data.gov.uk/id/local-authority/30UE,Central Support Services,1009,Health Environment & Neighbourhoods,Miscellaneous Expenses,40200,Miscellaneous Expenses,5034,"EPR inspections for: 8x Petrol Vapour Recovery 2x Mobile plant (multiple plant at each operator)1x crematorium1x tim",24/03/2016,110970,"1,150.00",Revenue,Martin Environmental Solutions,74356
Chorley Borough Council,http://statistics.data.gov.uk/id/local-authority/30UE,Business Support,1095,Governance,Professional Fees,40063,Services,5027,Fee in relation to 4/5 Flat Iron Parade (Children`s Society).,02/03/2016,110251,"2,662.50",Revenue,Mason Partners LLP,64581
Chorley Borough Council,http://statistics.data.gov.uk/id/local-authority/30UE,Business Support,1095,Governance,Professional Fees,40063,Services,5027,Fee in relation to Unit 10 Market Walk (Gibson Sports).,02/03/2016,110250,"1,875.00",Revenue,Mason Partners LLP,64581
Chorley Borough Council,http://statistics.data.gov.uk/id/local-authority/30UE,Business Support,1095,Governance,Professional Fees,40063,Services,5027,Fee in relation to Unit 6 Flat Iron Parade (Vision Express).,02/03/2016,110252,"1,350.00",Revenue,Mason Partners LLP,64581
Chorley Borough Council,http://statistics.data.gov.uk/id/local-authority/30UE,Unapportionable Central OHeads,1009,HR & Org. Development,Agency Staff,13000,Direct Employee Expenses,5001,NAME REDACTED,02/03/2016,110256,132.12,Revenue,Matrix SCM Ltd,22128
Chorley Borough Council,http://statistics.data.gov.uk/id/local-authority/30UE,Unapportionable Central OHeads,1009,HR & Org. Development,Agency Staff,13000,Direct Employee Expenses,5001,NAME REDACTED,16/03/2016,110750,330.30,Revenue,Matrix SCM Ltd,22128
Chorley Borough Council,http://statistics.data.gov.uk/id/local-authority/30UE,Unapportionable Central OHeads,1009,HR & Org. Development,Agency Staff,13000,Direct Employee Expenses,5001,NAME REDACTED,02/03/2016,110256,604.23,Revenue,Matrix SCM Ltd,22128
Chorley Borough Council,http://statistics.data.gov.uk/id/local-authority/30UE,Unapportionable Central OHeads,1009,HR & Org. Development,Agency Staff,13000,Direct Employee Expenses,5001,NAME REDACTED,16/03/2016,110750,862.80,Revenue,Matrix SCM Ltd,22128
Chorley Borough Council,http://statistics.data.gov.uk/id/local-authority/30UE,Unapportionable Central OHeads,1009,HR & Org. Development,Agency Staff,13000,Direct Employee Expenses,5001,NAME REDACTED,18/03/2016,110920,431.40,Revenue,Matrix SCM Ltd,22128
Chorley Borough Council,http://statistics.data.gov.uk/id/local-authority/30UE,Unapportionable Central OHeads,1009,HR & Org. Development,Agency Staff,13000,Direct Employee Expenses,5001,NAME REDACTED,31/03/2016,111075,431.40,Revenue,Matrix SCM Ltd,22128
Chorley Borough Council,http://statistics.data.gov.uk/id/local-authority/30UE,Unapportionable Central OHeads,1009,HR & Org. Development,Agency Staff,13000,Direct Employee Expenses,5001,NAME REDACTED,31/03/2016,111075,132.12,Revenue,Matrix SCM Ltd,22128
Chorley Borough Council,http://statistics.data.gov.uk/id/local-authority/30UE,Capital,Capital,Streetscene & Leisure Contracts,Main Contractor,3007,Capital Expenditure,Capital,40 ton of Ultra tech,31/03/2016,110901,"1,170.99",Capital,Mc & Ma Stewart (Haulage Ltd),16627
Chorley Borough Council,http://statistics.data.gov.uk/id/local-authority/30UE,Democratic Represent and  Mgnt,1007,Streetscene & Leisure Contracts,Playground Equipment,40008,"Equipment, Furniture & Materia",5023,20 ton 2mm/6mm Quartz gravel natural rounded stone,31/03/2016,110902,784.08,Revenue,Mc & Ma Stewart (Haulage Ltd),16627
Chorley Borough Council,http://statistics.data.gov.uk/id/local-authority/30UE,Unapportionable Central OHeads,1009,"Customer, ICT & Transactional",Training Course Fees,17010,Indirect Employee Expenses,5002,Meritec - Self employed training course 2 days 17.12.15 and 22.12.15,24/03/2016,108173,825.00,Revenue,Meritec,19498
Chorley Borough Council,http://statistics.data.gov.uk/id/local-authority/30UE,Central Support Services,1009,Streetscene & Leisure Contracts,Miscellaneous Expenses,40200,Miscellaneous Expenses,5034,Supply and delivery of 20ft advertising blimp for Chorley GP event Inc. helium gas canister (x2),09/03/2016,110330,724.00,Revenue,Merlin Inflatables Co Limited,74342
Chorley Borough Council,http://statistics.data.gov.uk/id/local-authority/30UE,Capital,Capital,Streetscene & Leisure Contracts,Equipment,3014,Capital Expenditure,Capital,240 litre wheeled bin BROWN with Chorley logo,04/03/2016,110387,"9,172.80",Capital,MGB Plastics Ltd,18624
Chorley Borough Council,http://statistics.data.gov.uk/id/local-authority/30UE,Capital,Capital,Streetscene & Leisure Contracts,Equipment,3014,Capital Expenditure,Capital,"240 litre wheeled bin, BLUE with Chorley logo",04/03/2016,110388,"9,172.80",Capital,MGB Plastics Ltd,18624
Chorley Borough Council,http://statistics.data.gov.uk/id/local-authority/30UE,Capital,Capital,Streetscene & Leisure Contracts,Equipment,3014,Capital Expenditure,Capital,"240 litre wheeled bin, GREEN with Chorley logo",02/03/2016,110277,"9,172.80",Capital,MGB Plastics Ltd,18624
Chorley Borough Council,http://statistics.data.gov.uk/id/local-authority/30UE,Capital,Capital,Housing,Grants,3002,Capital Expenditure,Capital,ADDRESS REDACTED,11/03/2016,110755,"4,109.95",Capital,Mint Northwest Ltd,65607
Chorley Borough Council,http://statistics.data.gov.uk/id/local-authority/30UE,Capital,Capital,Housing,Grants,3002,Capital Expenditure,Capital,,24/03/2016,111045,"4,472.06",Capital,Mint Northwest Ltd,65607
Chorley Borough Council,http://statistics.data.gov.uk/id/local-authority/30UE,Service Management & Support,1009,Streetscene & Leisure Contracts,External Contractor,40198,Miscellaneous Expenses,5034,"WORKS TO NUMEROUS WAR GRAVES AT CHORLEY CEMETERY, as per quotation",09/03/2016,110553,"2,200.00",Revenue,MJR Masonry Services,56017
Chorley Borough Council,http://statistics.data.gov.uk/id/local-authority/30UE,Private Sector HSG Renewal,1073,Housing,External Contractor,40198,Miscellaneous Expenses,5034,ADDRESS REDACTED,11/03/2016,110711,250.00,Revenue,Mobility Care Services,70841
Chorley Borough Council,http://statistics.data.gov.uk/id/local-authority/30UE,Private Sector HSG Renewal,1073,Housing,External Contractor,40198,Miscellaneous Expenses,5034,ADDRESS REDACTED,11/03/2016,110700,280.00,Revenue,Mobility Care Services,70841
Chorley Borough Council,http://statistics.data.gov.uk/id/local-authority/30UE,Private Sector HSG Renewal,1073,Housing,External Contractor,40198,Miscellaneous Expenses,5034,ADDRESS REDACTED,11/03/2016,110688,250.00,Revenue,Mobility Care Services,70841
Chorley Borough Council,http://statistics.data.gov.uk/id/local-authority/30UE,Private Sector HSG Renewal,1073,Housing,External Contractor,40198,Miscellaneous Expenses,5034,ADDRESS REDACTED,11/03/2016,110696,280.00,Revenue,Mobility Care Services,70841
Chorley Borough Council,http://statistics.data.gov.uk/id/local-authority/30UE,Private Sector HSG Renewal,1073,Housing,External Contractor,40198,Miscellaneous Expenses,5034,ADDRESS REDACTED,11/03/2016,110699,250.00,Revenue,Mobility Care Services,70841
Chorley Borough Council,http://statistics.data.gov.uk/id/local-authority/30UE,Private Sector HSG Renewal,1073,Housing,External Contractor,40198,Miscellaneous Expenses,5034,ADDRESS REDACTED,11/03/2016,110704,250.00,Revenue,Mobility Care Services,70841
Chorley Borough Council,http://statistics.data.gov.uk/id/local-authority/30UE,Private Sector HSG Renewal,1073,Housing,External Contractor,40198,Miscellaneous Expenses,5034,ADDRESS REDACTED,11/03/2016,110708,276.00,Revenue,Mobility Care Services,70841
Chorley Borough Council,http://statistics.data.gov.uk/id/local-authority/30UE,Private Sector HSG Renewal,1073,Housing,External Contractor,40198,Miscellaneous Expenses,5034,ADDRESS REDACTED,11/03/2016,110703,580.00,Revenue,Mobility Care Services,70841
Chorley Borough Council,http://statistics.data.gov.uk/id/local-authority/30UE,Private Sector HSG Renewal,1073,Housing,External Contractor,40198,Miscellaneous Expenses,5034,ADDRESS REDACTED,11/03/2016,110690,830.00,Revenue,Mobility Care Services,70841
Chorley Borough Council,http://statistics.data.gov.uk/id/local-authority/30UE,Private Sector HSG Renewal,1073,Housing,External Contractor,40198,Miscellaneous Expenses,5034,ADDRESS REDACTED,11/03/2016,110707,380.00,Revenue,Mobility Care Services,70841
Chorley Borough Council,http://statistics.data.gov.uk/id/local-authority/30UE,Central Support Services,1009,Health Environment & Neighbourhoods,Community Develop Initiatives,40185,Miscellaneous Expenses,5034,children`s,09/03/2016,110636,15.75,Revenue,Modern Embroidery Ltd,68723
Chorley Borough Council,http://statistics.data.gov.uk/id/local-authority/30UE,Central Support Services,1009,Health Environment & Neighbourhoods,Community Develop Initiatives,40185,Miscellaneous Expenses,5034,Supply of Couch to 5K t-shirts ordered ,09/03/2016,110636,388.50,Revenue,Modern Embroidery Ltd,68723
Chorley Borough Council,http://statistics.data.gov.uk/id/local-authority/30UE,Capital,Capital,Streetscene & Leisure Contracts,Main Contractor,3007,Capital Expenditure,Capital,labour,02/03/2016,110189,900.00,Capital,Mr Andy Hart,72236
Chorley Borough Council,http://statistics.data.gov.uk/id/local-authority/30UE,Capital,Capital,Streetscene & Leisure Contracts,Main Contractor,3007,Capital Expenditure,Capital,Works completed @ Carr Brook Footpath repairs,02/03/2016,110189,300.00,Capital,Mr Andy Hart,72236
Chorley Borough Council,http://statistics.data.gov.uk/id/local-authority/30UE,Service Management & Support,1009,Streetscene & Leisure Contracts,External Contractor,40198,Miscellaneous Expenses,5034,"Work carried out @ Tatton Rec, Chorley. Zip slide",18/03/2016,110827,192.00,Revenue,Mr Stephen Scambler,16710
Chorley Borough Council,http://statistics.data.gov.uk/id/local-authority/30UE,Service Management & Support,1009,Streetscene & Leisure Contracts,Hire Of Transport,30028,Contrct Hire & Operating Lease,5018,Hire of 2 tonne trailer for use with transporting ride on mowers 2 weeks,31/03/2016,111128,150.00,Revenue,MW Grass Machinery,21616
Chorley Borough Council,http://statistics.data.gov.uk/id/local-authority/30UE,Service Management & Support,1009,Streetscene & Leisure Contracts,Hire Of Transport,30028,Contrct Hire & Operating Lease,5018,Hire of hollow core machine for hollow tinning of bowling greens as requested to include new tines to suite requirement,31/03/2016,111128,480.00,Revenue,MW Grass Machinery,21616
Chorley Borough Council,http://statistics.data.gov.uk/id/local-authority/30UE,Service Management & Support,1009,Streetscene & Leisure Contracts,Hire Of Transport,30028,Contrct Hire & Operating Lease,5018,Hire of rotovator for wild flower areas as requested for 1 week,31/03/2016,111128,75.00,Revenue,MW Grass Machinery,21616
Chorley Borough Council,http://statistics.data.gov.uk/id/local-authority/30UE,Service Management & Support,1009,Streetscene & Leisure Contracts,Tools & Equipment - Maintenance,40005,"Equipment, Furniture & Materia",5023,Carryout full winter service including cylinder and bottom blade grinding on Ransomes Supercerte as req on inv number 1268,18/03/2016,110926,320.22,Revenue,MW Grass Machinery,21616
Chorley Borough Council,http://statistics.data.gov.uk/id/local-authority/30UE,Service Management & Support,1009,Streetscene & Leisure Contracts,Tools & Equipment - Maintenance,40005,"Equipment, Furniture & Materia",5023,Carryout full winter service including cylinder and bottom blade grinding on Ransomes Supercerte as req on inv number 1269,18/03/2016,110925,355.42,Revenue,MW Grass Machinery,21616
Chorley Borough Council,http://statistics.data.gov.uk/id/local-authority/30UE,Service Management & Support,1009,Streetscene & Leisure Contracts,Tools & Equipment - Maintenance,40005,"Equipment, Furniture & Materia",5023,Carryout full winter service to include cylinder grind and machine overall as on invoice number 1258,11/03/2016,110683,355.42,Revenue,MW Grass Machinery,21616
Chorley Borough Council,http://statistics.data.gov.uk/id/local-authority/30UE,Service Management & Support,1009,Streetscene & Leisure Contracts,Tools & Equipment - Maintenance,40005,"Equipment, Furniture & Materia",5023,Carryout full winter service to include cylinder grinding and machine overall as on invoice number 1257,11/03/2016,110684,355.42,Revenue,MW Grass Machinery,21616
Chorley Borough Council,http://statistics.data.gov.uk/id/local-authority/30UE,Service Management & Support,1009,Streetscene & Leisure Contracts,Training Course Fees,17010,Indirect Employee Expenses,5002,3 positions for the play area inspection course,09/03/2016,110362,"1,868.50",Revenue,Myerscough College,18214
Chorley Borough Council,http://statistics.data.gov.uk/id/local-authority/30UE,Service Management & Support,1009,Streetscene & Leisure Contracts,Training Course Fees,17010,Indirect Employee Expenses,5002,One of fee for apprentice training for 2 year for NAME REDACTED as per Email,02/03/2016,109668,400.00,Revenue,Myerscough College,18214
Chorley Borough Council,http://statistics.data.gov.uk/id/local-authority/30UE,Unapportionable Central OHeads,1009,Policy & Performance,Printing,40043,"Printing, Stationery & General",5026,"Printing of 12,000 What`s Happening magazines for distribution across the borough",02/03/2016,110335,"2,306.00",Revenue,N B Colour Print Ltd,17917
Chorley Borough Council,http://statistics.data.gov.uk/id/local-authority/30UE,Service Management & Support,1009,Streetscene & Leisure Contracts,External Contractor,40198,Miscellaneous Expenses,5034,materials,18/03/2016,110827,240.00,Revenue,Name Redacted,16710
Chorley Borough Council,http://statistics.data.gov.uk/id/local-authority/30UE,Business Support,1095,Economic Development,Grants To Other Organisations,40127,Grants and Subscriptions,5031,,09/03/2016,110345,"3,131.25",Revenue,Name Redacted,72386
Chorley Borough Council,http://statistics.data.gov.uk/id/local-authority/30UE,Business Support,1095,Economic Development,Grants To Other Organisations,40127,Grants and Subscriptions,5031,,09/03/2016,110649,"1,912.50",Revenue,Name Redacted,74649
Chorley Borough Council,http://statistics.data.gov.uk/id/local-authority/30UE,Corporate Management,1008,Shared Service Arrangement,Home Loss Payment,40139,Grants and Subscriptions,5031,Flood Eva 2015 Household Flood Payment Scheme (Lancashire),02/03/2016,109150,500.00,Revenue,Name Redacted,73770
Chorley Borough Council,http://statistics.data.gov.uk/id/local-authority/30UE,Corporate Management,1008,Shared Service Arrangement,Home Loss Payment,40139,Grants and Subscriptions,5031,Flood Eva 2015 Household Flood Payment Scheme (Lancashire),02/03/2016,109361,500.00,Revenue,Name Redacted,73976
Chorley Borough Council,http://statistics.data.gov.uk/id/local-authority/30UE,Corporate Management,1008,Shared Service Arrangement,Home Loss Payment,40139,Grants and Subscriptions,5031,Flood Eva 2015 Household Flood Payment Scheme (Lancashire),02/03/2016,110441,500.00,Revenue,Name Redacted,74798
Chorley Borough Council,http://statistics.data.gov.uk/id/local-authority/30UE,Corporate Management,1008,Shared Service Arrangement,Home Loss Payment,40139,Grants and Subscriptions,5031,Flood Eva 2015 Household Flood Payment Scheme (Lancashire),02/03/2016,109151,500.00,Revenue,Name Redacted,73771
Chorley Borough Council,http://statistics.data.gov.uk/id/local-authority/30UE,Corporate Management,1008,Shared Service Arrangement,Home Loss Payment,40139,Grants and Subscriptions,5031,Flood Eva 2015 Household Flood Payment Scheme (Lancashire),02/03/2016,109152,500.00,Revenue,Name Redacted,73772
Chorley Borough Council,http://statistics.data.gov.uk/id/local-authority/30UE,Corporate Management,1008,Shared Service Arrangement,Home Loss Payment,40139,Grants and Subscriptions,5031,Flood Eva 2015 Household Flood Payment Scheme (Lancashire),02/03/2016,110454,500.00,Revenue,Name Redacted,74811
Chorley Borough Council,http://statistics.data.gov.uk/id/local-authority/30UE,Corporate Management,1008,Shared Service Arrangement,Home Loss Payment,40139,Grants and Subscriptions,5031,Flood Eva 2015 Household Flood Payment Scheme (Lancashire),02/03/2016,109153,500.00,Revenue,Name Redacted,73773
Chorley Borough Council,http://statistics.data.gov.uk/id/local-authority/30UE,Corporate Management,1008,Shared Service Arrangement,Home Loss Payment,40139,Grants and Subscriptions,5031,Flood Eva 2015 Household Flood Payment Scheme (Lancashire),30/03/2016,111160,500.00,Revenue,Name Redacted,75221
Chorley Borough Council,http://statistics.data.gov.uk/id/local-authority/30UE,Corporate Management,1008,Shared Service Arrangement,Home Loss Payment,40139,Grants and Subscriptions,5031,Flood Eva 2015 Household Flood Payment Scheme (Lancashire),02/03/2016,109154,500.00,Revenue,Name Redacted,73774
Chorley Borough Council,http://statistics.data.gov.uk/id/local-authority/30UE,Corporate Management,1008,Shared Service Arrangement,Home Loss Payment,40139,Grants and Subscriptions,5031,Flood Eva 2015 Household Flood Payment Scheme (Lancashire),02/03/2016,110466,500.00,Revenue,Name Redacted,74823
Chorley Borough Council,http://statistics.data.gov.uk/id/local-authority/30UE,Corporate Management,1008,Shared Service Arrangement,Home Loss Payment,40139,Grants and Subscriptions,5031,Flood Eva 2015 Household Flood Payment Scheme (Lancashire),02/03/2016,109108,500.00,Revenue,Name Redacted,73728
Chorley Borough Council,http://statistics.data.gov.uk/id/local-authority/30UE,Corporate Management,1008,Shared Service Arrangement,Home Loss Payment,40139,Grants and Subscriptions,5031,Flood Eva 2015 Household Flood Payment Scheme (Lancashire),02/03/2016,109276,500.00,Revenue,Name Redacted,73893
Chorley Borough Council,http://statistics.data.gov.uk/id/local-authority/30UE,Corporate Management,1008,Shared Service Arrangement,Home Loss Payment,40139,Grants and Subscriptions,5031,Flood Eva 2015 Household Flood Payment Scheme (Lancashire),02/03/2016,109334,500.00,Revenue,Name Redacted,73949
Chorley Borough Council,http://statistics.data.gov.uk/id/local-authority/30UE,Corporate Management,1008,Shared Service Arrangement,Home Loss Payment,40139,Grants and Subscriptions,5031,Flood Eva 2015 Household Flood Payment Scheme (Lancashire),02/03/2016,109155,500.00,Revenue,Name Redacted,73775
Chorley Borough Council,http://statistics.data.gov.uk/id/local-authority/30UE,Corporate Management,1008,Shared Service Arrangement,Home Loss Payment,40139,Grants and Subscriptions,5031,Flood Eva 2015 Household Flood Payment Scheme (Lancashire),30/03/2016,111156,500.00,Revenue,Name Redacted,75209
Chorley Borough Council,http://statistics.data.gov.uk/id/local-authority/30UE,Corporate Management,1008,Shared Service Arrangement,Home Loss Payment,40139,Grants and Subscriptions,5031,Flood Eva 2015 Household Flood Payment Scheme (Lancashire),02/03/2016,109156,500.00,Revenue,Name Redacted,73776
Chorley Borough Council,http://statistics.data.gov.uk/id/local-authority/30UE,Corporate Management,1008,Shared Service Arrangement,Home Loss Payment,40139,Grants and Subscriptions,5031,Flood Eva 2015 Household Flood Payment Scheme (Lancashire),02/03/2016,109157,500.00,Revenue,Name Redacted,73777
Chorley Borough Council,http://statistics.data.gov.uk/id/local-authority/30UE,Corporate Management,1008,Shared Service Arrangement,Home Loss Payment,40139,Grants and Subscriptions,5031,Flood Eva 2015 Household Flood Payment Scheme (Lancashire),02/03/2016,109158,500.00,Revenue,Name Redacted,73778
Chorley Borough Council,http://statistics.data.gov.uk/id/local-authority/30UE,Corporate Management,1008,Shared Service Arrangement,Home Loss Payment,40139,Grants and Subscriptions,5031,Flood Eva 2015 Household Flood Payment Scheme (Lancashire),02/03/2016,110484,500.00,Revenue,Name Redacted,74841
Chorley Borough Council,http://statistics.data.gov.uk/id/local-authority/30UE,Corporate Management,1008,Shared Service Arrangement,Home Loss Payment,40139,Grants and Subscriptions,5031,Flood Eva 2015 Household Flood Payment Scheme (Lancashire),02/03/2016,109159,500.00,Revenue,Name Redacted,73779
Chorley Borough Council,http://statistics.data.gov.uk/id/local-authority/30UE,Corporate Management,1008,Shared Service Arrangement,Home Loss Payment,40139,Grants and Subscriptions,5031,Flood Eva 2015 Household Flood Payment Scheme (Lancashire),02/03/2016,109109,500.00,Revenue,Name Redacted,73729
Chorley Borough Council,http://statistics.data.gov.uk/id/local-authority/30UE,Corporate Management,1008,Shared Service Arrangement,Home Loss Payment,40139,Grants and Subscriptions,5031,Flood Eva 2015 Household Flood Payment Scheme (Lancashire),02/03/2016,110459,500.00,Revenue,Name Redacted,74816
Chorley Borough Council,http://statistics.data.gov.uk/id/local-authority/30UE,Corporate Management,1008,Shared Service Arrangement,Home Loss Payment,40139,Grants and Subscriptions,5031,Flood Eva 2015 Household Flood Payment Scheme (Lancashire),02/03/2016,110437,500.00,Revenue,Name Redacted,74794
Chorley Borough Council,http://statistics.data.gov.uk/id/local-authority/30UE,Corporate Management,1008,Shared Service Arrangement,Home Loss Payment,40139,Grants and Subscriptions,5031,Flood Eva 2015 Household Flood Payment Scheme (Lancashire),02/03/2016,109362,500.00,Revenue,Name Redacted,73977
Chorley Borough Council,http://statistics.data.gov.uk/id/local-authority/30UE,Corporate Management,1008,Shared Service Arrangement,Home Loss Payment,40139,Grants and Subscriptions,5031,Flood Eva 2015 Household Flood Payment Scheme (Lancashire),02/03/2016,110448,500.00,Revenue,Name Redacted,74805
Chorley Borough Council,http://statistics.data.gov.uk/id/local-authority/30UE,Corporate Management,1008,Shared Service Arrangement,Home Loss Payment,40139,Grants and Subscriptions,5031,Flood Eva 2015 Household Flood Payment Scheme (Lancashire),02/03/2016,109110,500.00,Revenue,Name Redacted,73730
Chorley Borough Council,http://statistics.data.gov.uk/id/local-authority/30UE,Corporate Management,1008,Shared Service Arrangement,Home Loss Payment,40139,Grants and Subscriptions,5031,Flood Eva 2015 Household Flood Payment Scheme (Lancashire),02/03/2016,109160,500.00,Revenue,Name Redacted,73780
Chorley Borough Council,http://statistics.data.gov.uk/id/local-authority/30UE,Corporate Management,1008,Shared Service Arrangement,Home Loss Payment,40139,Grants and Subscriptions,5031,Flood Eva 2015 Household Flood Payment Scheme (Lancashire),02/03/2016,110430,500.00,Revenue,Name Redacted,74787
Chorley Borough Council,http://statistics.data.gov.uk/id/local-authority/30UE,Corporate Management,1008,Shared Service Arrangement,Home Loss Payment,40139,Grants and Subscriptions,5031,Flood Eva 2015 Household Flood Payment Scheme (Lancashire),02/03/2016,109363,500.00,Revenue,Name Redacted,73978
Chorley Borough Council,http://statistics.data.gov.uk/id/local-authority/30UE,Corporate Management,1008,Shared Service Arrangement,Home Loss Payment,40139,Grants and Subscriptions,5031,Flood Eva 2015 Household Flood Payment Scheme (Lancashire),02/03/2016,109161,500.00,Revenue,Name Redacted,73781
Chorley Borough Council,http://statistics.data.gov.uk/id/local-authority/30UE,Corporate Management,1008,Shared Service Arrangement,Home Loss Payment,40139,Grants and Subscriptions,5031,Flood Eva 2015 Household Flood Payment Scheme (Lancashire),02/03/2016,110426,500.00,Revenue,Name Redacted,74783
Chorley Borough Council,http://statistics.data.gov.uk/id/local-authority/30UE,Corporate Management,1008,Shared Service Arrangement,Home Loss Payment,40139,Grants and Subscriptions,5031,Flood Eva 2015 Household Flood Payment Scheme (Lancashire),02/03/2016,110456,500.00,Revenue,Name Redacted,74813
Chorley Borough Council,http://statistics.data.gov.uk/id/local-authority/30UE,Corporate Management,1008,Shared Service Arrangement,Home Loss Payment,40139,Grants and Subscriptions,5031,Flood Eva 2015 Household Flood Payment Scheme (Lancashire),02/03/2016,110477,500.00,Revenue,Name Redacted,74834
Chorley Borough Council,http://statistics.data.gov.uk/id/local-authority/30UE,Corporate Management,1008,Shared Service Arrangement,Home Loss Payment,40139,Grants and Subscriptions,5031,Flood Eva 2015 Household Flood Payment Scheme (Lancashire),02/03/2016,109162,500.00,Revenue,Name Redacted,73782
Chorley Borough Council,http://statistics.data.gov.uk/id/local-authority/30UE,Corporate Management,1008,Shared Service Arrangement,Home Loss Payment,40139,Grants and Subscriptions,5031,Flood Eva 2015 Household Flood Payment Scheme (Lancashire),02/03/2016,109291,500.00,Revenue,Name Redacted,73907
Chorley Borough Council,http://statistics.data.gov.uk/id/local-authority/30UE,Corporate Management,1008,Shared Service Arrangement,Home Loss Payment,40139,Grants and Subscriptions,5031,Flood Eva 2015 Household Flood Payment Scheme (Lancashire),02/03/2016,110451,500.00,Revenue,Name Redacted,74808
Chorley Borough Council,http://statistics.data.gov.uk/id/local-authority/30UE,Corporate Management,1008,Shared Service Arrangement,Home Loss Payment,40139,Grants and Subscriptions,5031,Flood Eva 2015 Household Flood Payment Scheme (Lancashire),02/03/2016,109364,500.00,Revenue,Name Redacted,73979
Chorley Borough Council,http://statistics.data.gov.uk/id/local-authority/30UE,Corporate Management,1008,Shared Service Arrangement,Home Loss Payment,40139,Grants and Subscriptions,5031,Flood Eva 2015 Household Flood Payment Scheme (Lancashire),02/03/2016,110479,500.00,Revenue,Name Redacted,74836
Chorley Borough Council,http://statistics.data.gov.uk/id/local-authority/30UE,Corporate Management,1008,Shared Service Arrangement,Home Loss Payment,40139,Grants and Subscriptions,5031,Flood Eva 2015 Household Flood Payment Scheme (Lancashire),02/03/2016,109277,500.00,Revenue,Name Redacted,73894
Chorley Borough Council,http://statistics.data.gov.uk/id/local-authority/30UE,Corporate Management,1008,Shared Service Arrangement,Home Loss Payment,40139,Grants and Subscriptions,5031,Flood Eva 2015 Household Flood Payment Scheme (Lancashire),02/03/2016,110415,500.00,Revenue,Name Redacted,74772
Chorley Borough Council,http://statistics.data.gov.uk/id/local-authority/30UE,Corporate Management,1008,Shared Service Arrangement,Home Loss Payment,40139,Grants and Subscriptions,5031,Flood Eva 2015 Household Flood Payment Scheme (Lancashire),02/03/2016,109163,500.00,Revenue,Name Redacted,73783
Chorley Borough Council,http://statistics.data.gov.uk/id/local-authority/30UE,Corporate Management,1008,Shared Service Arrangement,Home Loss Payment,40139,Grants and Subscriptions,5031,Flood Eva 2015 Household Flood Payment Scheme (Lancashire),02/03/2016,109164,500.00,Revenue,Name Redacted,73994
Chorley Borough Council,http://statistics.data.gov.uk/id/local-authority/30UE,Corporate Management,1008,Shared Service Arrangement,Home Loss Payment,40139,Grants and Subscriptions,5031,Flood Eva 2015 Household Flood Payment Scheme (Lancashire),02/03/2016,110397,500.00,Revenue,Name Redacted,74755
Chorley Borough Council,http://statistics.data.gov.uk/id/local-authority/30UE,Corporate Management,1008,Shared Service Arrangement,Home Loss Payment,40139,Grants and Subscriptions,5031,Flood Eva 2015 Household Flood Payment Scheme (Lancashire),02/03/2016,109111,500.00,Revenue,Name Redacted,73731
Chorley Borough Council,http://statistics.data.gov.uk/id/local-authority/30UE,Corporate Management,1008,Shared Service Arrangement,Home Loss Payment,40139,Grants and Subscriptions,5031,Flood Eva 2015 Household Flood Payment Scheme (Lancashire),02/03/2016,109165,500.00,Revenue,Name Redacted,73784
Chorley Borough Council,http://statistics.data.gov.uk/id/local-authority/30UE,Corporate Management,1008,Shared Service Arrangement,Home Loss Payment,40139,Grants and Subscriptions,5031,Flood Eva 2015 Household Flood Payment Scheme (Lancashire),02/03/2016,109166,500.00,Revenue,Name Redacted,73785
Chorley Borough Council,http://statistics.data.gov.uk/id/local-authority/30UE,Corporate Management,1008,Shared Service Arrangement,Home Loss Payment,40139,Grants and Subscriptions,5031,Flood Eva 2015 Household Flood Payment Scheme (Lancashire),02/03/2016,109278,500.00,Revenue,Name Redacted,73895
Chorley Borough Council,http://statistics.data.gov.uk/id/local-authority/30UE,Corporate Management,1008,Shared Service Arrangement,Home Loss Payment,40139,Grants and Subscriptions,5031,Flood Eva 2015 Household Flood Payment Scheme (Lancashire),02/03/2016,109167,500.00,Revenue,Name Redacted,73786
Chorley Borough Council,http://statistics.data.gov.uk/id/local-authority/30UE,Corporate Management,1008,Shared Service Arrangement,Home Loss Payment,40139,Grants and Subscriptions,5031,Flood Eva 2015 Household Flood Payment Scheme (Lancashire),02/03/2016,109168,500.00,Revenue,Name Redacted,73787
Chorley Borough Council,http://statistics.data.gov.uk/id/local-authority/30UE,Corporate Management,1008,Shared Service Arrangement,Home Loss Payment,40139,Grants and Subscriptions,5031,Flood Eva 2015 Household Flood Payment Scheme (Lancashire),02/03/2016,109279,500.00,Revenue,Name Redacted,73896
Chorley Borough Council,http://statistics.data.gov.uk/id/local-authority/30UE,Corporate Management,1008,Shared Service Arrangement,Home Loss Payment,40139,Grants and Subscriptions,5031,Flood Eva 2015 Household Flood Payment Scheme (Lancashire),02/03/2016,110412,500.00,Revenue,Name Redacted,74769
Chorley Borough Council,http://statistics.data.gov.uk/id/local-authority/30UE,Corporate Management,1008,Shared Service Arrangement,Home Loss Payment,40139,Grants and Subscriptions,5031,Flood Eva 2015 Household Flood Payment Scheme (Lancashire),02/03/2016,110405,500.00,Revenue,Name Redacted,74762
Chorley Borough Council,http://statistics.data.gov.uk/id/local-authority/30UE,Corporate Management,1008,Shared Service Arrangement,Home Loss Payment,40139,Grants and Subscriptions,5031,Flood Eva 2015 Household Flood Payment Scheme (Lancashire),02/03/2016,109112,500.00,Revenue,Name Redacted,73732
Chorley Borough Council,http://statistics.data.gov.uk/id/local-authority/30UE,Corporate Management,1008,Shared Service Arrangement,Home Loss Payment,40139,Grants and Subscriptions,5031,Flood Eva 2015 Household Flood Payment Scheme (Lancashire),30/03/2016,111154,500.00,Revenue,Name Redacted,75207
Chorley Borough Council,http://statistics.data.gov.uk/id/local-authority/30UE,Corporate Management,1008,Shared Service Arrangement,Home Loss Payment,40139,Grants and Subscriptions,5031,Flood Eva 2015 Household Flood Payment Scheme (Lancashire),02/03/2016,109280,500.00,Revenue,Name Redacted,73897
Chorley Borough Council,http://statistics.data.gov.uk/id/local-authority/30UE,Corporate Management,1008,Shared Service Arrangement,Home Loss Payment,40139,Grants and Subscriptions,5031,Flood Eva 2015 Household Flood Payment Scheme (Lancashire),02/03/2016,110433,500.00,Revenue,Name Redacted,74790
Chorley Borough Council,http://statistics.data.gov.uk/id/local-authority/30UE,Corporate Management,1008,Shared Service Arrangement,Home Loss Payment,40139,Grants and Subscriptions,5031,Flood Eva 2015 Household Flood Payment Scheme (Lancashire),02/03/2016,109169,500.00,Revenue,Name Redacted,73788
Chorley Borough Council,http://statistics.data.gov.uk/id/local-authority/30UE,Corporate Management,1008,Shared Service Arrangement,Home Loss Payment,40139,Grants and Subscriptions,5031,Flood Eva 2015 Household Flood Payment Scheme (Lancashire),02/03/2016,110411,500.00,Revenue,Name Redacted,74768
Chorley Borough Council,http://statistics.data.gov.uk/id/local-authority/30UE,Corporate Management,1008,Shared Service Arrangement,Home Loss Payment,40139,Grants and Subscriptions,5031,Flood Eva 2015 Household Flood Payment Scheme (Lancashire),02/03/2016,109281,500.00,Revenue,Name Redacted,73898
Chorley Borough Council,http://statistics.data.gov.uk/id/local-authority/30UE,Corporate Management,1008,Shared Service Arrangement,Home Loss Payment,40139,Grants and Subscriptions,5031,Flood Eva 2015 Household Flood Payment Scheme (Lancashire),02/03/2016,110464,500.00,Revenue,Name Redacted,74821
Chorley Borough Council,http://statistics.data.gov.uk/id/local-authority/30UE,Corporate Management,1008,Shared Service Arrangement,Home Loss Payment,40139,Grants and Subscriptions,5031,Flood Eva 2015 Household Flood Payment Scheme (Lancashire),02/03/2016,109113,500.00,Revenue,Name Redacted,73733
Chorley Borough Council,http://statistics.data.gov.uk/id/local-authority/30UE,Corporate Management,1008,Shared Service Arrangement,Home Loss Payment,40139,Grants and Subscriptions,5031,Flood Eva 2015 Household Flood Payment Scheme (Lancashire),02/03/2016,109357,500.00,Revenue,Name Redacted,73972
Chorley Borough Council,http://statistics.data.gov.uk/id/local-authority/30UE,Corporate Management,1008,Shared Service Arrangement,Home Loss Payment,40139,Grants and Subscriptions,5031,Flood Eva 2015 Household Flood Payment Scheme (Lancashire),02/03/2016,109170,500.00,Revenue,Name Redacted,73789
Chorley Borough Council,http://statistics.data.gov.uk/id/local-authority/30UE,Corporate Management,1008,Shared Service Arrangement,Home Loss Payment,40139,Grants and Subscriptions,5031,Flood Eva 2015 Household Flood Payment Scheme (Lancashire),02/03/2016,109114,500.00,Revenue,Name Redacted,73734
Chorley Borough Council,http://statistics.data.gov.uk/id/local-authority/30UE,Corporate Management,1008,Shared Service Arrangement,Home Loss Payment,40139,Grants and Subscriptions,5031,Flood Eva 2015 Household Flood Payment Scheme (Lancashire),02/03/2016,109282,500.00,Revenue,Name Redacted,73899
Chorley Borough Council,http://statistics.data.gov.uk/id/local-authority/30UE,Corporate Management,1008,Shared Service Arrangement,Home Loss Payment,40139,Grants and Subscriptions,5031,Flood Eva 2015 Household Flood Payment Scheme (Lancashire),02/03/2016,109335,500.00,Revenue,Name Redacted,73950
Chorley Borough Council,http://statistics.data.gov.uk/id/local-authority/30UE,Corporate Management,1008,Shared Service Arrangement,Home Loss Payment,40139,Grants and Subscriptions,5031,Flood Eva 2015 Household Flood Payment Scheme (Lancashire),02/03/2016,109171,500.00,Revenue,Name Redacted,73790
Chorley Borough Council,http://statistics.data.gov.uk/id/local-authority/30UE,Corporate Management,1008,Shared Service Arrangement,Home Loss Payment,40139,Grants and Subscriptions,5031,Flood Eva 2015 Household Flood Payment Scheme (Lancashire),02/03/2016,110438,500.00,Revenue,Name Redacted,74795
Chorley Borough Council,http://statistics.data.gov.uk/id/local-authority/30UE,Corporate Management,1008,Shared Service Arrangement,Home Loss Payment,40139,Grants and Subscriptions,5031,Flood Eva 2015 Household Flood Payment Scheme (Lancashire),02/03/2016,109115,500.00,Revenue,Name Redacted,73735
Chorley Borough Council,http://statistics.data.gov.uk/id/local-authority/30UE,Corporate Management,1008,Shared Service Arrangement,Home Loss Payment,40139,Grants and Subscriptions,5031,Flood Eva 2015 Household Flood Payment Scheme (Lancashire),02/03/2016,109172,500.00,Revenue,Name Redacted,73791
Chorley Borough Council,http://statistics.data.gov.uk/id/local-authority/30UE,Corporate Management,1008,Shared Service Arrangement,Home Loss Payment,40139,Grants and Subscriptions,5031,Flood Eva 2015 Household Flood Payment Scheme (Lancashire),02/03/2016,109116,500.00,Revenue,Name Redacted,73736
Chorley Borough Council,http://statistics.data.gov.uk/id/local-authority/30UE,Corporate Management,1008,Shared Service Arrangement,Home Loss Payment,40139,Grants and Subscriptions,5031,Flood Eva 2015 Household Flood Payment Scheme (Lancashire),02/03/2016,109336,500.00,Revenue,Name Redacted,73951
Chorley Borough Council,http://statistics.data.gov.uk/id/local-authority/30UE,Corporate Management,1008,Shared Service Arrangement,Home Loss Payment,40139,Grants and Subscriptions,5031,Flood Eva 2015 Household Flood Payment Scheme (Lancashire),02/03/2016,110400,500.00,Revenue,Name Redacted,74757
Chorley Borough Council,http://statistics.data.gov.uk/id/local-authority/30UE,Corporate Management,1008,Shared Service Arrangement,Home Loss Payment,40139,Grants and Subscriptions,5031,Flood Eva 2015 Household Flood Payment Scheme (Lancashire),02/03/2016,110461,500.00,Revenue,Name Redacted,74818
Chorley Borough Council,http://statistics.data.gov.uk/id/local-authority/30UE,Corporate Management,1008,Shared Service Arrangement,Home Loss Payment,40139,Grants and Subscriptions,5031,Flood Eva 2015 Household Flood Payment Scheme (Lancashire),02/03/2016,109283,500.00,Revenue,Name Redacted,73900
Chorley Borough Council,http://statistics.data.gov.uk/id/local-authority/30UE,Corporate Management,1008,Shared Service Arrangement,Home Loss Payment,40139,Grants and Subscriptions,5031,Flood Eva 2015 Household Flood Payment Scheme (Lancashire),02/03/2016,109284,500.00,Revenue,Name Redacted,73901
Chorley Borough Council,http://statistics.data.gov.uk/id/local-authority/30UE,Corporate Management,1008,Shared Service Arrangement,Home Loss Payment,40139,Grants and Subscriptions,5031,Flood Eva 2015 Household Flood Payment Scheme (Lancashire),02/03/2016,109383,500.00,Revenue,Name Redacted,74003
Chorley Borough Council,http://statistics.data.gov.uk/id/local-authority/30UE,Corporate Management,1008,Shared Service Arrangement,Home Loss Payment,40139,Grants and Subscriptions,5031,Flood Eva 2015 Household Flood Payment Scheme (Lancashire),02/03/2016,110431,500.00,Revenue,Name Redacted,74788
Chorley Borough Council,http://statistics.data.gov.uk/id/local-authority/30UE,Corporate Management,1008,Shared Service Arrangement,Home Loss Payment,40139,Grants and Subscriptions,5031,Flood Eva 2015 Household Flood Payment Scheme (Lancashire),02/03/2016,109285,500.00,Revenue,Name Redacted,73902
Chorley Borough Council,http://statistics.data.gov.uk/id/local-authority/30UE,Corporate Management,1008,Shared Service Arrangement,Home Loss Payment,40139,Grants and Subscriptions,5031,Flood Eva 2015 Household Flood Payment Scheme (Lancashire),30/03/2016,111158,500.00,Revenue,Name Redacted,75212
Chorley Borough Council,http://statistics.data.gov.uk/id/local-authority/30UE,Corporate Management,1008,Shared Service Arrangement,Home Loss Payment,40139,Grants and Subscriptions,5031,Flood Eva 2015 Household Flood Payment Scheme (Lancashire),02/03/2016,110472,500.00,Revenue,Name Redacted,74829
Chorley Borough Council,http://statistics.data.gov.uk/id/local-authority/30UE,Corporate Management,1008,Shared Service Arrangement,Home Loss Payment,40139,Grants and Subscriptions,5031,Flood Eva 2015 Household Flood Payment Scheme (Lancashire),02/03/2016,109286,500.00,Revenue,Name Redacted,73903
Chorley Borough Council,http://statistics.data.gov.uk/id/local-authority/30UE,Corporate Management,1008,Shared Service Arrangement,Home Loss Payment,40139,Grants and Subscriptions,5031,Flood Eva 2015 Household Flood Payment Scheme (Lancashire),02/03/2016,110406,500.00,Revenue,Name Redacted,74763
Chorley Borough Council,http://statistics.data.gov.uk/id/local-authority/30UE,Corporate Management,1008,Shared Service Arrangement,Home Loss Payment,40139,Grants and Subscriptions,5031,Flood Eva 2015 Household Flood Payment Scheme (Lancashire),02/03/2016,110413,500.00,Revenue,Name Redacted,74770
Chorley Borough Council,http://statistics.data.gov.uk/id/local-authority/30UE,Corporate Management,1008,Shared Service Arrangement,Home Loss Payment,40139,Grants and Subscriptions,5031,Flood Eva 2015 Household Flood Payment Scheme (Lancashire),02/03/2016,109173,500.00,Revenue,Name Redacted,73792
Chorley Borough Council,http://statistics.data.gov.uk/id/local-authority/30UE,Corporate Management,1008,Shared Service Arrangement,Home Loss Payment,40139,Grants and Subscriptions,5031,Flood Eva 2015 Household Flood Payment Scheme (Lancashire),02/03/2016,109287,500.00,Revenue,Name Redacted,73997
Chorley Borough Council,http://statistics.data.gov.uk/id/local-authority/30UE,Corporate Management,1008,Shared Service Arrangement,Home Loss Payment,40139,Grants and Subscriptions,5031,Flood Eva 2015 Household Flood Payment Scheme (Lancashire),02/03/2016,109288,500.00,Revenue,Name Redacted,73904
Chorley Borough Council,http://statistics.data.gov.uk/id/local-authority/30UE,Corporate Management,1008,Shared Service Arrangement,Home Loss Payment,40139,Grants and Subscriptions,5031,Flood Eva 2015 Household Flood Payment Scheme (Lancashire),02/03/2016,109386,500.00,Revenue,Name Redacted,74006
Chorley Borough Council,http://statistics.data.gov.uk/id/local-authority/30UE,Corporate Management,1008,Shared Service Arrangement,Home Loss Payment,40139,Grants and Subscriptions,5031,Flood Eva 2015 Household Flood Payment Scheme (Lancashire),02/03/2016,109337,500.00,Revenue,Name Redacted,73952
Chorley Borough Council,http://statistics.data.gov.uk/id/local-authority/30UE,Corporate Management,1008,Shared Service Arrangement,Home Loss Payment,40139,Grants and Subscriptions,5031,Flood Eva 2015 Household Flood Payment Scheme (Lancashire),02/03/2016,109174,500.00,Revenue,Name Redacted,73793
Chorley Borough Council,http://statistics.data.gov.uk/id/local-authority/30UE,Corporate Management,1008,Shared Service Arrangement,Home Loss Payment,40139,Grants and Subscriptions,5031,Flood Eva 2015 Household Flood Payment Scheme (Lancashire),02/03/2016,109175,500.00,Revenue,Name Redacted,73794
Chorley Borough Council,http://statistics.data.gov.uk/id/local-authority/30UE,Corporate Management,1008,Shared Service Arrangement,Home Loss Payment,40139,Grants and Subscriptions,5031,Flood Eva 2015 Household Flood Payment Scheme (Lancashire),02/03/2016,110474,500.00,Revenue,Name Redacted,74831
Chorley Borough Council,http://statistics.data.gov.uk/id/local-authority/30UE,Corporate Management,1008,Shared Service Arrangement,Home Loss Payment,40139,Grants and Subscriptions,5031,Flood Eva 2015 Household Flood Payment Scheme (Lancashire),02/03/2016,109289,500.00,Revenue,Name Redacted,73905
Chorley Borough Council,http://statistics.data.gov.uk/id/local-authority/30UE,Corporate Management,1008,Shared Service Arrangement,Home Loss Payment,40139,Grants and Subscriptions,5031,Flood Eva 2015 Household Flood Payment Scheme (Lancashire),02/03/2016,109117,500.00,Revenue,Name Redacted,73737
Chorley Borough Council,http://statistics.data.gov.uk/id/local-authority/30UE,Corporate Management,1008,Shared Service Arrangement,Home Loss Payment,40139,Grants and Subscriptions,5031,Flood Eva 2015 Household Flood Payment Scheme (Lancashire),02/03/2016,109176,500.00,Revenue,Name Redacted,73795
Chorley Borough Council,http://statistics.data.gov.uk/id/local-authority/30UE,Corporate Management,1008,Shared Service Arrangement,Home Loss Payment,40139,Grants and Subscriptions,5031,Flood Eva 2015 Household Flood Payment Scheme (Lancashire),02/03/2016,109118,500.00,Revenue,Name Redacted,73738
Chorley Borough Council,http://statistics.data.gov.uk/id/local-authority/30UE,Corporate Management,1008,Shared Service Arrangement,Home Loss Payment,40139,Grants and Subscriptions,5031,Flood Eva 2015 Household Flood Payment Scheme (Lancashire),02/03/2016,109290,500.00,Revenue,Name Redacted,73906
Chorley Borough Council,http://statistics.data.gov.uk/id/local-authority/30UE,Corporate Management,1008,Shared Service Arrangement,Home Loss Payment,40139,Grants and Subscriptions,5031,Flood Eva 2015 Household Flood Payment Scheme (Lancashire),02/03/2016,109378,500.00,Revenue,Name Redacted,74008
Chorley Borough Council,http://statistics.data.gov.uk/id/local-authority/30UE,Corporate Management,1008,Shared Service Arrangement,Home Loss Payment,40139,Grants and Subscriptions,5031,Flood Eva 2015 Household Flood Payment Scheme (Lancashire),02/03/2016,109177,500.00,Revenue,Name Redacted,73796
Chorley Borough Council,http://statistics.data.gov.uk/id/local-authority/30UE,Corporate Management,1008,Shared Service Arrangement,Home Loss Payment,40139,Grants and Subscriptions,5031,Flood Eva 2015 Household Flood Payment Scheme (Lancashire),02/03/2016,110455,500.00,Revenue,Name Redacted,74812
Chorley Borough Council,http://statistics.data.gov.uk/id/local-authority/30UE,Corporate Management,1008,Shared Service Arrangement,Home Loss Payment,40139,Grants and Subscriptions,5031,Flood Eva 2015 Household Flood Payment Scheme (Lancashire),02/03/2016,109384,500.00,Revenue,Name Redacted,74004
Chorley Borough Council,http://statistics.data.gov.uk/id/local-authority/30UE,Corporate Management,1008,Shared Service Arrangement,Home Loss Payment,40139,Grants and Subscriptions,5031,Flood Eva 2015 Household Flood Payment Scheme (Lancashire),02/03/2016,109292,500.00,Revenue,Name Redacted,73908
Chorley Borough Council,http://statistics.data.gov.uk/id/local-authority/30UE,Corporate Management,1008,Shared Service Arrangement,Home Loss Payment,40139,Grants and Subscriptions,5031,Flood Eva 2015 Household Flood Payment Scheme (Lancashire),02/03/2016,110428,500.00,Revenue,Name Redacted,74785
Chorley Borough Council,http://statistics.data.gov.uk/id/local-authority/30UE,Corporate Management,1008,Shared Service Arrangement,Home Loss Payment,40139,Grants and Subscriptions,5031,Flood Eva 2015 Household Flood Payment Scheme (Lancashire),02/03/2016,109178,500.00,Revenue,Name Redacted,73797
Chorley Borough Council,http://statistics.data.gov.uk/id/local-authority/30UE,Corporate Management,1008,Shared Service Arrangement,Home Loss Payment,40139,Grants and Subscriptions,5031,Flood Eva 2015 Household Flood Payment Scheme (Lancashire),02/03/2016,109365,500.00,Revenue,Name Redacted,73980
Chorley Borough Council,http://statistics.data.gov.uk/id/local-authority/30UE,Corporate Management,1008,Shared Service Arrangement,Home Loss Payment,40139,Grants and Subscriptions,5031,Flood Eva 2015 Household Flood Payment Scheme (Lancashire),02/03/2016,109293,500.00,Revenue,Name Redacted,73909
Chorley Borough Council,http://statistics.data.gov.uk/id/local-authority/30UE,Corporate Management,1008,Shared Service Arrangement,Home Loss Payment,40139,Grants and Subscriptions,5031,Flood Eva 2015 Household Flood Payment Scheme (Lancashire),02/03/2016,109179,500.00,Revenue,Name Redacted,73798
Chorley Borough Council,http://statistics.data.gov.uk/id/local-authority/30UE,Corporate Management,1008,Shared Service Arrangement,Home Loss Payment,40139,Grants and Subscriptions,5031,Flood Eva 2015 Household Flood Payment Scheme (Lancashire),02/03/2016,109294,500.00,Revenue,Name Redacted,73910
Chorley Borough Council,http://statistics.data.gov.uk/id/local-authority/30UE,Corporate Management,1008,Shared Service Arrangement,Home Loss Payment,40139,Grants and Subscriptions,5031,Flood Eva 2015 Household Flood Payment Scheme (Lancashire),02/03/2016,109180,500.00,Revenue,Name Redacted,73799
Chorley Borough Council,http://statistics.data.gov.uk/id/local-authority/30UE,Corporate Management,1008,Shared Service Arrangement,Home Loss Payment,40139,Grants and Subscriptions,5031,Flood Eva 2015 Household Flood Payment Scheme (Lancashire),02/03/2016,109295,500.00,Revenue,Name Redacted,73911
Chorley Borough Council,http://statistics.data.gov.uk/id/local-authority/30UE,Corporate Management,1008,Shared Service Arrangement,Home Loss Payment,40139,Grants and Subscriptions,5031,Flood Eva 2015 Household Flood Payment Scheme (Lancashire),02/03/2016,109338,500.00,Revenue,Name Redacted,73953
Chorley Borough Council,http://statistics.data.gov.uk/id/local-authority/30UE,Corporate Management,1008,Shared Service Arrangement,Home Loss Payment,40139,Grants and Subscriptions,5031,Flood Eva 2015 Household Flood Payment Scheme (Lancashire),02/03/2016,109181,500.00,Revenue,Name Redacted,73800
Chorley Borough Council,http://statistics.data.gov.uk/id/local-authority/30UE,Corporate Management,1008,Shared Service Arrangement,Home Loss Payment,40139,Grants and Subscriptions,5031,Flood Eva 2015 Household Flood Payment Scheme (Lancashire),02/03/2016,109182,500.00,Revenue,Name Redacted,73801
Chorley Borough Council,http://statistics.data.gov.uk/id/local-authority/30UE,Corporate Management,1008,Shared Service Arrangement,Home Loss Payment,40139,Grants and Subscriptions,5031,Flood Eva 2015 Household Flood Payment Scheme (Lancashire),02/03/2016,110408,500.00,Revenue,Name Redacted,74765
Chorley Borough Council,http://statistics.data.gov.uk/id/local-authority/30UE,Corporate Management,1008,Shared Service Arrangement,Home Loss Payment,40139,Grants and Subscriptions,5031,Flood Eva 2015 Household Flood Payment Scheme (Lancashire),02/03/2016,109339,500.00,Revenue,Name Redacted,73954
Chorley Borough Council,http://statistics.data.gov.uk/id/local-authority/30UE,Corporate Management,1008,Shared Service Arrangement,Home Loss Payment,40139,Grants and Subscriptions,5031,Flood Eva 2015 Household Flood Payment Scheme (Lancashire),02/03/2016,109119,500.00,Revenue,Name Redacted,73739
Chorley Borough Council,http://statistics.data.gov.uk/id/local-authority/30UE,Corporate Management,1008,Shared Service Arrangement,Home Loss Payment,40139,Grants and Subscriptions,5031,Flood Eva 2015 Household Flood Payment Scheme (Lancashire),02/03/2016,109120,500.00,Revenue,Name Redacted,73740
Chorley Borough Council,http://statistics.data.gov.uk/id/local-authority/30UE,Corporate Management,1008,Shared Service Arrangement,Home Loss Payment,40139,Grants and Subscriptions,5031,Flood Eva 2015 Household Flood Payment Scheme (Lancashire),02/03/2016,110450,500.00,Revenue,Name Redacted,74807
Chorley Borough Council,http://statistics.data.gov.uk/id/local-authority/30UE,Corporate Management,1008,Shared Service Arrangement,Home Loss Payment,40139,Grants and Subscriptions,5031,Flood Eva 2015 Household Flood Payment Scheme (Lancashire),02/03/2016,109121,500.00,Revenue,Name Redacted,73741
Chorley Borough Council,http://statistics.data.gov.uk/id/local-authority/30UE,Corporate Management,1008,Shared Service Arrangement,Home Loss Payment,40139,Grants and Subscriptions,5031,Flood Eva 2015 Household Flood Payment Scheme (Lancashire),02/03/2016,109296,500.00,Revenue,Name Redacted,73912
Chorley Borough Council,http://statistics.data.gov.uk/id/local-authority/30UE,Corporate Management,1008,Shared Service Arrangement,Home Loss Payment,40139,Grants and Subscriptions,5031,Flood Eva 2015 Household Flood Payment Scheme (Lancashire),02/03/2016,109297,500.00,Revenue,Name Redacted,73913
Chorley Borough Council,http://statistics.data.gov.uk/id/local-authority/30UE,Corporate Management,1008,Shared Service Arrangement,Home Loss Payment,40139,Grants and Subscriptions,5031,Flood Eva 2015 Household Flood Payment Scheme (Lancashire),02/03/2016,109183,500.00,Revenue,Name Redacted,73802
Chorley Borough Council,http://statistics.data.gov.uk/id/local-authority/30UE,Corporate Management,1008,Shared Service Arrangement,Home Loss Payment,40139,Grants and Subscriptions,5031,Flood Eva 2015 Household Flood Payment Scheme (Lancashire),02/03/2016,109122,500.00,Revenue,Name Redacted,73742
Chorley Borough Council,http://statistics.data.gov.uk/id/local-authority/30UE,Corporate Management,1008,Shared Service Arrangement,Home Loss Payment,40139,Grants and Subscriptions,5031,Flood Eva 2015 Household Flood Payment Scheme (Lancashire),02/03/2016,110435,500.00,Revenue,Name Redacted,74792
Chorley Borough Council,http://statistics.data.gov.uk/id/local-authority/30UE,Corporate Management,1008,Shared Service Arrangement,Home Loss Payment,40139,Grants and Subscriptions,5031,Flood Eva 2015 Household Flood Payment Scheme (Lancashire),02/03/2016,109123,500.00,Revenue,Name Redacted,73743
Chorley Borough Council,http://statistics.data.gov.uk/id/local-authority/30UE,Corporate Management,1008,Shared Service Arrangement,Home Loss Payment,40139,Grants and Subscriptions,5031,Flood Eva 2015 Household Flood Payment Scheme (Lancashire),02/03/2016,109184,500.00,Revenue,Name Redacted,73803
Chorley Borough Council,http://statistics.data.gov.uk/id/local-authority/30UE,Corporate Management,1008,Shared Service Arrangement,Home Loss Payment,40139,Grants and Subscriptions,5031,Flood Eva 2015 Household Flood Payment Scheme (Lancashire),02/03/2016,110478,500.00,Revenue,Name Redacted,74835
Chorley Borough Council,http://statistics.data.gov.uk/id/local-authority/30UE,Corporate Management,1008,Shared Service Arrangement,Home Loss Payment,40139,Grants and Subscriptions,5031,Flood Eva 2015 Household Flood Payment Scheme (Lancashire),02/03/2016,109185,500.00,Revenue,Name Redacted,73804
Chorley Borough Council,http://statistics.data.gov.uk/id/local-authority/30UE,Corporate Management,1008,Shared Service Arrangement,Home Loss Payment,40139,Grants and Subscriptions,5031,Flood Eva 2015 Household Flood Payment Scheme (Lancashire),02/03/2016,110469,500.00,Revenue,Name Redacted,74826
Chorley Borough Council,http://statistics.data.gov.uk/id/local-authority/30UE,Corporate Management,1008,Shared Service Arrangement,Home Loss Payment,40139,Grants and Subscriptions,5031,Flood Eva 2015 Household Flood Payment Scheme (Lancashire),02/03/2016,109186,500.00,Revenue,Name Redacted,73805
Chorley Borough Council,http://statistics.data.gov.uk/id/local-authority/30UE,Corporate Management,1008,Shared Service Arrangement,Home Loss Payment,40139,Grants and Subscriptions,5031,Flood Eva 2015 Household Flood Payment Scheme (Lancashire),02/03/2016,109379,500.00,Revenue,Name Redacted,73999
Chorley Borough Council,http://statistics.data.gov.uk/id/local-authority/30UE,Corporate Management,1008,Shared Service Arrangement,Home Loss Payment,40139,Grants and Subscriptions,5031,Flood Eva 2015 Household Flood Payment Scheme (Lancashire),02/03/2016,110414,500.00,Revenue,Name Redacted,74771
Chorley Borough Council,http://statistics.data.gov.uk/id/local-authority/30UE,Corporate Management,1008,Shared Service Arrangement,Home Loss Payment,40139,Grants and Subscriptions,5031,Flood Eva 2015 Household Flood Payment Scheme (Lancashire),02/03/2016,110399,500.00,Revenue,Name Redacted,74842
Chorley Borough Council,http://statistics.data.gov.uk/id/local-authority/30UE,Corporate Management,1008,Shared Service Arrangement,Home Loss Payment,40139,Grants and Subscriptions,5031,Flood Eva 2015 Household Flood Payment Scheme (Lancashire),02/03/2016,109358,500.00,Revenue,Name Redacted,73973
Chorley Borough Council,http://statistics.data.gov.uk/id/local-authority/30UE,Corporate Management,1008,Shared Service Arrangement,Home Loss Payment,40139,Grants and Subscriptions,5031,Flood Eva 2015 Household Flood Payment Scheme (Lancashire),02/03/2016,109124,500.00,Revenue,Name Redacted,73744
Chorley Borough Council,http://statistics.data.gov.uk/id/local-authority/30UE,Corporate Management,1008,Shared Service Arrangement,Home Loss Payment,40139,Grants and Subscriptions,5031,Flood Eva 2015 Household Flood Payment Scheme (Lancashire),02/03/2016,109187,500.00,Revenue,Name Redacted,73806
Chorley Borough Council,http://statistics.data.gov.uk/id/local-authority/30UE,Corporate Management,1008,Shared Service Arrangement,Home Loss Payment,40139,Grants and Subscriptions,5031,Flood Eva 2015 Household Flood Payment Scheme (Lancashire),02/03/2016,110480,500.00,Revenue,Name Redacted,74837
Chorley Borough Council,http://statistics.data.gov.uk/id/local-authority/30UE,Corporate Management,1008,Shared Service Arrangement,Home Loss Payment,40139,Grants and Subscriptions,5031,Flood Eva 2015 Household Flood Payment Scheme (Lancashire),02/03/2016,109188,500.00,Revenue,Name Redacted,73807
Chorley Borough Council,http://statistics.data.gov.uk/id/local-authority/30UE,Corporate Management,1008,Shared Service Arrangement,Home Loss Payment,40139,Grants and Subscriptions,5031,Flood Eva 2015 Household Flood Payment Scheme (Lancashire),02/03/2016,110409,500.00,Revenue,Name Redacted,74766
Chorley Borough Council,http://statistics.data.gov.uk/id/local-authority/30UE,Corporate Management,1008,Shared Service Arrangement,Home Loss Payment,40139,Grants and Subscriptions,5031,Flood Eva 2015 Household Flood Payment Scheme (Lancashire),02/03/2016,110421,500.00,Revenue,Name Redacted,74778
Chorley Borough Council,http://statistics.data.gov.uk/id/local-authority/30UE,Corporate Management,1008,Shared Service Arrangement,Home Loss Payment,40139,Grants and Subscriptions,5031,Flood Eva 2015 Household Flood Payment Scheme (Lancashire),02/03/2016,109298,500.00,Revenue,Name Redacted,73914
Chorley Borough Council,http://statistics.data.gov.uk/id/local-authority/30UE,Corporate Management,1008,Shared Service Arrangement,Home Loss Payment,40139,Grants and Subscriptions,5031,Flood Eva 2015 Household Flood Payment Scheme (Lancashire),02/03/2016,109189,500.00,Revenue,Name Redacted,73808
Chorley Borough Council,http://statistics.data.gov.uk/id/local-authority/30UE,Corporate Management,1008,Shared Service Arrangement,Home Loss Payment,40139,Grants and Subscriptions,5031,Flood Eva 2015 Household Flood Payment Scheme (Lancashire),02/03/2016,110463,500.00,Revenue,Name Redacted,74820
Chorley Borough Council,http://statistics.data.gov.uk/id/local-authority/30UE,Corporate Management,1008,Shared Service Arrangement,Home Loss Payment,40139,Grants and Subscriptions,5031,Flood Eva 2015 Household Flood Payment Scheme (Lancashire),02/03/2016,110434,500.00,Revenue,Name Redacted,74791
Chorley Borough Council,http://statistics.data.gov.uk/id/local-authority/30UE,Corporate Management,1008,Shared Service Arrangement,Home Loss Payment,40139,Grants and Subscriptions,5031,Flood Eva 2015 Household Flood Payment Scheme (Lancashire),02/03/2016,110410,500.00,Revenue,Name Redacted,74767
Chorley Borough Council,http://statistics.data.gov.uk/id/local-authority/30UE,Corporate Management,1008,Shared Service Arrangement,Home Loss Payment,40139,Grants and Subscriptions,5031,Flood Eva 2015 Household Flood Payment Scheme (Lancashire),30/03/2016,111155,500.00,Revenue,Name Redacted,75208
Chorley Borough Council,http://statistics.data.gov.uk/id/local-authority/30UE,Corporate Management,1008,Shared Service Arrangement,Home Loss Payment,40139,Grants and Subscriptions,5031,Flood Eva 2015 Household Flood Payment Scheme (Lancashire),02/03/2016,109299,500.00,Revenue,Name Redacted,73915
Chorley Borough Council,http://statistics.data.gov.uk/id/local-authority/30UE,Corporate Management,1008,Shared Service Arrangement,Home Loss Payment,40139,Grants and Subscriptions,5031,Flood Eva 2015 Household Flood Payment Scheme (Lancashire),02/03/2016,109340,500.00,Revenue,Name Redacted,73955
Chorley Borough Council,http://statistics.data.gov.uk/id/local-authority/30UE,Corporate Management,1008,Shared Service Arrangement,Home Loss Payment,40139,Grants and Subscriptions,5031,Flood Eva 2015 Household Flood Payment Scheme (Lancashire),02/03/2016,109190,500.00,Revenue,Name Redacted,73809
Chorley Borough Council,http://statistics.data.gov.uk/id/local-authority/30UE,Corporate Management,1008,Shared Service Arrangement,Home Loss Payment,40139,Grants and Subscriptions,5031,Flood Eva 2015 Household Flood Payment Scheme (Lancashire),02/03/2016,109300,500.00,Revenue,Name Redacted,73916
Chorley Borough Council,http://statistics.data.gov.uk/id/local-authority/30UE,Corporate Management,1008,Shared Service Arrangement,Home Loss Payment,40139,Grants and Subscriptions,5031,Flood Eva 2015 Household Flood Payment Scheme (Lancashire),02/03/2016,109125,500.00,Revenue,Name Redacted,73745
Chorley Borough Council,http://statistics.data.gov.uk/id/local-authority/30UE,Corporate Management,1008,Shared Service Arrangement,Home Loss Payment,40139,Grants and Subscriptions,5031,Flood Eva 2015 Household Flood Payment Scheme (Lancashire),02/03/2016,109191,500.00,Revenue,Name Redacted,73810
Chorley Borough Council,http://statistics.data.gov.uk/id/local-authority/30UE,Corporate Management,1008,Shared Service Arrangement,Home Loss Payment,40139,Grants and Subscriptions,5031,Flood Eva 2015 Household Flood Payment Scheme (Lancashire),02/03/2016,110422,500.00,Revenue,Name Redacted,74779
Chorley Borough Council,http://statistics.data.gov.uk/id/local-authority/30UE,Corporate Management,1008,Shared Service Arrangement,Home Loss Payment,40139,Grants and Subscriptions,5031,Flood Eva 2015 Household Flood Payment Scheme (Lancashire),02/03/2016,110392,500.00,Revenue,Name Redacted,74750
Chorley Borough Council,http://statistics.data.gov.uk/id/local-authority/30UE,Corporate Management,1008,Shared Service Arrangement,Home Loss Payment,40139,Grants and Subscriptions,5031,Flood Eva 2015 Household Flood Payment Scheme (Lancashire),30/03/2016,111153,500.00,Revenue,Name Redacted,75206
Chorley Borough Council,http://statistics.data.gov.uk/id/local-authority/30UE,Corporate Management,1008,Shared Service Arrangement,Home Loss Payment,40139,Grants and Subscriptions,5031,Flood Eva 2015 Household Flood Payment Scheme (Lancashire),02/03/2016,109301,500.00,Revenue,Name Redacted,73917
Chorley Borough Council,http://statistics.data.gov.uk/id/local-authority/30UE,Corporate Management,1008,Shared Service Arrangement,Home Loss Payment,40139,Grants and Subscriptions,5031,Flood Eva 2015 Household Flood Payment Scheme (Lancashire),02/03/2016,109126,500.00,Revenue,Name Redacted,73746
Chorley Borough Council,http://statistics.data.gov.uk/id/local-authority/30UE,Corporate Management,1008,Shared Service Arrangement,Home Loss Payment,40139,Grants and Subscriptions,5031,Flood Eva 2015 Household Flood Payment Scheme (Lancashire),02/03/2016,109192,500.00,Revenue,Name Redacted,73811
Chorley Borough Council,http://statistics.data.gov.uk/id/local-authority/30UE,Corporate Management,1008,Shared Service Arrangement,Home Loss Payment,40139,Grants and Subscriptions,5031,Flood Eva 2015 Household Flood Payment Scheme (Lancashire),02/03/2016,110407,500.00,Revenue,Name Redacted,74764
Chorley Borough Council,http://statistics.data.gov.uk/id/local-authority/30UE,Corporate Management,1008,Shared Service Arrangement,Home Loss Payment,40139,Grants and Subscriptions,5031,Flood Eva 2015 Household Flood Payment Scheme (Lancashire),02/03/2016,109193,500.00,Revenue,Name Redacted,73812
Chorley Borough Council,http://statistics.data.gov.uk/id/local-authority/30UE,Corporate Management,1008,Shared Service Arrangement,Home Loss Payment,40139,Grants and Subscriptions,5031,Flood Eva 2015 Household Flood Payment Scheme (Lancashire),02/03/2016,109194,500.00,Revenue,Name Redacted,73813
Chorley Borough Council,http://statistics.data.gov.uk/id/local-authority/30UE,Corporate Management,1008,Shared Service Arrangement,Home Loss Payment,40139,Grants and Subscriptions,5031,Flood Eva 2015 Household Flood Payment Scheme (Lancashire),02/03/2016,109127,500.00,Revenue,Name Redacted,73747
Chorley Borough Council,http://statistics.data.gov.uk/id/local-authority/30UE,Corporate Management,1008,Shared Service Arrangement,Home Loss Payment,40139,Grants and Subscriptions,5031,Flood Eva 2015 Household Flood Payment Scheme (Lancashire),02/03/2016,109341,500.00,Revenue,Name Redacted,73956
Chorley Borough Council,http://statistics.data.gov.uk/id/local-authority/30UE,Corporate Management,1008,Shared Service Arrangement,Home Loss Payment,40139,Grants and Subscriptions,5031,Flood Eva 2015 Household Flood Payment Scheme (Lancashire),02/03/2016,109302,500.00,Revenue,Name Redacted,73918
Chorley Borough Council,http://statistics.data.gov.uk/id/local-authority/30UE,Corporate Management,1008,Shared Service Arrangement,Home Loss Payment,40139,Grants and Subscriptions,5031,Flood Eva 2015 Household Flood Payment Scheme (Lancashire),02/03/2016,110398,500.00,Revenue,Name Redacted,74756
Chorley Borough Council,http://statistics.data.gov.uk/id/local-authority/30UE,Corporate Management,1008,Shared Service Arrangement,Home Loss Payment,40139,Grants and Subscriptions,5031,Flood Eva 2015 Household Flood Payment Scheme (Lancashire),02/03/2016,109303,500.00,Revenue,Name Redacted,73919
Chorley Borough Council,http://statistics.data.gov.uk/id/local-authority/30UE,Corporate Management,1008,Shared Service Arrangement,Home Loss Payment,40139,Grants and Subscriptions,5031,Flood Eva 2015 Household Flood Payment Scheme (Lancashire),02/03/2016,109195,500.00,Revenue,Name Redacted,73814
Chorley Borough Council,http://statistics.data.gov.uk/id/local-authority/30UE,Corporate Management,1008,Shared Service Arrangement,Home Loss Payment,40139,Grants and Subscriptions,5031,Flood Eva 2015 Household Flood Payment Scheme (Lancashire),02/03/2016,109196,500.00,Revenue,Name Redacted,73815
Chorley Borough Council,http://statistics.data.gov.uk/id/local-authority/30UE,Corporate Management,1008,Shared Service Arrangement,Home Loss Payment,40139,Grants and Subscriptions,5031,Flood Eva 2015 Household Flood Payment Scheme (Lancashire),02/03/2016,109197,500.00,Revenue,Name Redacted,73816
Chorley Borough Council,http://statistics.data.gov.uk/id/local-authority/30UE,Corporate Management,1008,Shared Service Arrangement,Home Loss Payment,40139,Grants and Subscriptions,5031,Flood Eva 2015 Household Flood Payment Scheme (Lancashire),02/03/2016,109128,500.00,Revenue,Name Redacted,73748
Chorley Borough Council,http://statistics.data.gov.uk/id/local-authority/30UE,Corporate Management,1008,Shared Service Arrangement,Home Loss Payment,40139,Grants and Subscriptions,5031,Flood Eva 2015 Household Flood Payment Scheme (Lancashire),02/03/2016,109366,500.00,Revenue,Name Redacted,73981
Chorley Borough Council,http://statistics.data.gov.uk/id/local-authority/30UE,Corporate Management,1008,Shared Service Arrangement,Home Loss Payment,40139,Grants and Subscriptions,5031,Flood Eva 2015 Household Flood Payment Scheme (Lancashire),02/03/2016,109198,500.00,Revenue,Name Redacted,73817
Chorley Borough Council,http://statistics.data.gov.uk/id/local-authority/30UE,Corporate Management,1008,Shared Service Arrangement,Home Loss Payment,40139,Grants and Subscriptions,5031,Flood Eva 2015 Household Flood Payment Scheme (Lancashire),02/03/2016,109199,500.00,Revenue,Name Redacted,73818
Chorley Borough Council,http://statistics.data.gov.uk/id/local-authority/30UE,Corporate Management,1008,Shared Service Arrangement,Home Loss Payment,40139,Grants and Subscriptions,5031,Flood Eva 2015 Household Flood Payment Scheme (Lancashire),02/03/2016,109200,500.00,Revenue,Name Redacted,73819
